Workbook

Sheet Zusammenstellung n. Messstelle
B1: Hydrologische Untersuchungsstelle Salzburg - Ingenieurbüro
B2: Zusammenstellung Wasserproben Projekt A362 5 002 18 - Flughafen Salzburg
B3: Datenstand: 06.04.2022, Datenbasis: Prüfberichte Hydrologische Untersuchungsstelle - Labor; gültig sind ausschließlich die Original-Prüberichte; nähere Angaben wie Prüfmethoden, Messunsicherheit, ausführendes Labor usf. sind den Original-Prüfberichten enthalten und können diesen entnommen werden;
B5: Messstelle_ wählen | C5: All
B7: Meas_Erg | D7: Eingangsdatum | E7: PN_Datum | F7: Protokollnummer | G7: Prüfbericht-Nr. | H7: Messstelle korr. | I7: PN_Anlage | J7: PN_Stelle
A8: =CONCATENATE(TRANSPOSE((_xlfn._xlws.FILTER(D7:Z7,D7:Z7<>"","-")))," ->") -> Eingangsdatum -> | D8: 2018-10-31 | J8: 2018-11-30 | P8: 2019-02-06 | AC8: 2019-03-15 | AE8: 2019-03-20 | AG8: 2019-04-09 | AH8: 2019-04-15 | AO8: 2019-08-07 | AW8: 2019-11-04 | BC8: 2019-12-18 | BD8: 2020-01-27 | BK8: 2020-03-03 | BL8: 2020-04-29 | BS8: 2020-06-03 | BT8: 2020-07-06 | BU8: 2020-07-30 | CB8: 2020-08-27 | CC8: 2020-10-08 | CD8: 2020-11-03 | CK8: 2020-12-21 | CL8: 2021-01-26 | CP8: 2021-01-28 | CS8: 2021-03-02 | CT8: 2021-04-15 | DC8: 2021-05-05 | DE8: 2021-05-27 | DM8: 2021-06-02 | DO8: 2021-06-15 | DU8: 2021-06-16 | DX8: 2021-06-30 | DY8: 2021-07-28 | DZ8: 2021-09-01 | EA8: 2021-09-29 | EJ8: 2021-11-09 | ER8: 2021-11-10 | EY8: 2021-11-11 | FA8: 2021-12-03 | FD8: 2021-12-06 | FG8: 2021-12-07 | FJ8: 2021-12-10 | FN8: 2021-12-13 | FT8: 2021-12-16 | GF8: 2021-12-21 | GI8: 2022-01-27 | GL8: 2022-01-31 | GR8: 2022-02-08 | GW8: 2022-02-09 | GZ8: 2022-03-01 | HG8: 2022-03-09
A9: PN_Datum -> | D9: 2018-10-31 | J9: 2018-11-30 | P9: 2019-02-06 | AC9: 2019-03-15 | AE9: 2019-03-14 | AF9: 2019-03-19 | AG9: 2019-03-27 | AH9: 2019-04-15 | AO9: 2019-08-07 | AW9: 2019-11-04 | BC9: 2019-12-18 | BD9: 2020-01-27 | BK9: 2020-03-03 | BL9: 2020-04-29 | BS9: 2020-06-03 | BT9: 2020-07-06 | BU9: 2020-07-30 | CB9: 2020-08-27 | CC9: 2020-10-08 | CD9: 2020-11-03 | CK9: 2020-12-21 | CL9: 2021-01-26 | CP9: 2021-01-28 | CS9: 2021-03-02 | CT9: 2021-04-15 | DC9: 2021-05-05 | DE9: 2021-05-27 | DM9: 2021-06-02 | DO9: 2021-06-14 | DR9: 2021-06-15 | DU9: 2021-06-15 | DV9: 2021-06-16 | DX9: 2021-06-30 | DY9: 2021-07-28 | DZ9: 2021-09-01 | EA9: 2021-09-29 | EJ9: (Leer) | ER9: 2021-11-10 | EY9: 2021-11-11 | FA9: 2021-12-02 | FB9: 2021-12-03 | FD9: 2021-12-06 | FG9: 2021-12-06 | FJ9: 2021-12-10 | FN9: 2021-12-10 | FP9: 2021-12-13 | FT9: 2021-12-16 | GF9: 2021-12-21 | GI9: 2022-01-27 | GL9: 2022-01-28 | GR9: 2022-02-08 | GW9: 2022-02-09 | GZ9: 2022-03-01 | HG9: 2022-03-09
A10: Protokollnummer -> | D10: 09780/18 | E10: 09781/18 | F10: 09782/18 | G10: 09783/18 | H10: 09784/18 | I10: 09785/18 | J10: 10762/18 | K10: 10763/18 | L10: 10764/18 | M10: 10765/18 | N10: 10766/18 | O10: 10767/18 | P10: 00555/19 | Q10: 00556/19 | R10: 00557/19 | S10: 00558/19 | T10: 00559/19 | U10: 00560/19 | V10: 00561/19 | W10: 00562/19 | X10: 00563/19 | Y10: 00564/19 | Z10: 00565/19 | AA10: 00566/19 | AB10: 00567/19 | AC10: 01424/19 | AD10: 01425/19 | AE10: 01578/19 | AF10: 01579/19 | AG10: 02137/19 | AH10: 02317/19 | AI10: 02318/19 | AJ10: 02319/19 | AK10: 02320/19 | AL10: 02321/19 | AM10: 02322/19 | AN10: 02323/19 | AO10: 06104/19 | AP10: 06105/19 | AQ10: 06106/19 | AR10: 06108/19 | AS10: 06109/19 | AT10: 06111/19 | AU10: 06112/19 | AV10: 06113/19 | AW10: 08792/19 | AX10: 08793/19 | AY10: 08794/19 | AZ10: 08796/19 | BA10: 08797/19 | BB10: 08799/19 | BC10: 10446/19 | BD10: 00419/20 | BE10: 00420/20 | BF10: 00421/20 | BG10: 00422/20 | BH10: 00423/20 | BI10: 00424/20 | BJ10: 00425/20 | BK10: 01167/20 | BL10: 02129/20 | BM10: 02130/20 | BN10: 02131/20 | BO10: 02132/20 | BP10: 02133/20 | BQ10: 02134/20 | BR10: 02135/20 | BS10: 03233/20 | BT10: 04629/20 | BU10: 05757/20 | BV10: 05758/20 | BW10: 05759/20 | BX10: 05760/20 | BY10: 05761/20 | BZ10: 05762/20 | CA10: 05763/20 | CB10: 06626/20 | CC10: 08222/20 | CD10: 09284/20 | CE10: 09285/20 | CF10: 09286/20 | CG10: 09287/20 | CH10: 09288/20 | CI10: 09289/20 | CJ10: 09290/20 | CK10: 10904/20 | CL10: 00359/21 | CM10: 00360/21 | CN10: 00361/21 | CO10: 00362/21 | CP10: 00461/21 | CQ10: 00462/21 | CR10: 00463/21 | CS10: 01121/21 | CT10: 02423/21 | CU10: 02424/21 | CV10: 02425/21 | CW10: 02426/21 | CX10: 02427/21 | CY10: 02428/21 | CZ10: 02429/21 | DA10: 02430/21 | DB10: 02431/21 | DC10: 03111/21 | DD10: 03112/21 | DE10: 04144/21 | DF10: 04145/21 | DG10: 04146/21 | DH10: 04147/21 | DI10: 04148/21 | DJ10: 04149/21 | DK10: 04150/21 | DL10: 04151/21 | DM10: 04368/21 | DN10: 04369/21 | DO10: 04774/21 | DP10: 04775/21 | DQ10: 04776/21 | DR10: 04899/21 | DS10: 04900/21 | DT10: 04901/21 | DU10: 04925/21 | DV10: 04977/21 | DW10: 04978/21 | DX10: 05668/21 | DY10: 06960/21 | DZ10: 08003/21 | EA10: 09094/21 | EB10: 09095/21 | EC10: 09096/21 | ED10: 09097/21 | EE10: 09098/21 | EF10: 09099/21 | EG10: 09100/21 | EH10: 09101/21 | EI10: 09102/21 | EJ10: 10776/21 | EK10: 10777/21 | EL10: 10778/21 | EM10: 10779/21 | EN10: 10780/21 | EO10: 10781/21 | EP10: 10782/21 | EQ10: 10783/21 | ER10: 10822/21 | ES10: 10823/21 | ET10: 10824/21 | EU10: 10825/21 | EV10: 10826/21 | EW10: 10886/21 | EX10: 10887/21 | EY10: 10960/21 | EZ10: 10961/21 | FA10: 11739/21 | FB10: 11736/21 | FC10: 11740/21 | FD10: 11741/21 | FE10: 11742/21 | FF10: 11743/21 | FG10: 11774/21 | FH10: 11775/21 | FI10: 11776/21 | FJ10: 11831/21 | FK10: 11832/21 | FL10: 11833/21 | FM10: 11834/21 | FN10: 11843/21 | FO10: 11844/21 | FP10: 11845/21 | FQ10: 11846/21 | FR10: 11847/21 | FS10: 11848/21 | FT10: 12142/21 | FU10: 12143/21 | FV10: 12144/21 | FW10: 12145/21 | FX10: 12146/21 | FY10: 12147/21 | FZ10: 12148/21 | GA10: 12149/21 | GB10: 12150/21 | GC10: 12151/21 | GD10: 12152/21 | GE10: 12153/21 | GF10: 12248/21 | GG10: 12249/21 | GH10: 12250/21 | GI10: 00573/22 | GJ10: 00574/22 | GK10: 00575/22 | GL10: 00584/22 | GM10: 00585/22 | GN10: 00586/22 | GO10: 00587/22 | GP10: 00588/22 | GQ10: 00589/22 | GR10: 00729/22 | GS10: 00730/22 | GT10: 00731/22 | GU10: 00732/22 | GV10: 00733/22 | GW10: 00804/22 | GX10: 00805/22 | GY10: 00806/22 | GZ10: 01283/22 | HA10: 01284/22 | HB10: 01285/22 | HC10: 01286/22 | HD10: 01287/22 | HE10: 01288/22 | HF10: 01289/22 | HG10: 01589/22 | HH10: 01590/22 | HI10: 01591/22 | HJ10: 01592/22
A11: Prüfbericht-Nr. -> | D11: PB-07128/18 | E11: PB-07129/18 | F11: PB-07130/18 | G11: PB-07131/18 | H11: PB-07132/18 | I11: PB-07133/18 | J11: PB-00122/19 | K11: PB-00123/19 | L11: PB-00124/19 | M11: PB-00125/19 | N11: PB-00126/19 | O11: PB-00127/19 | P11: PB-00962/19 | Q11: PB-00963/19 | R11: PB-00964/19 | S11: PB-00965/19 | T11: PB-00966/19 | U11: PB-00967/19 | V11: PB-00968/19 | W11: PB-00969/19 | X11: PB-00970/19 | Y11: PB-00971/19 | Z11: PB-00972/19 | AA11: PB-00973/19 | AB11: PB-00974/19 | AC11: PB-01243/19 | AD11: PB-01244/19 | AE11: PB-01246/19 | AF11: PB-01247/19 | AG11: PB-02101/19 | AH11: PB-02102/19 | AI11: PB-02103/19 | AJ11: PB-02104/19 | AK11: PB-02105/19 | AL11: PB-02106/19 | AM11: PB-02107/19 | AN11: PB-02108/19 | AO11: PB-07180/19 | AP11: PB-07181/19 | AQ11: PB-07182/19 | AR11: PB-07184/19 | AS11: PB-07185/19 | AT11: PB-07187/19 | AU11: PB-07188/19 | AV11: PB-07189/19 | AW11: PB-07637/19 | AX11: PB-07638/19 | AY11: PB-07639/19 | AZ11: PB-07640/19 | BA11: PB-07641/19 | BB11: PB-07642/19 | BC11: PB-00406/20 | BD11: PB-01553/20 | BE11: PB-01554/20 | BF11: PB-01555/20 | BG11: PB-01556/20 | BH11: PB-01557/20 | BI11: PB-01558/20 | BJ11: PB-01559/20 | BK11: PB-01692/20 | BL11: PB-03095/20 | BM11: PB-03096/20 | BN11: PB-03097/20 | BO11: PB-03098/20 | BP11: PB-03099/20 | BQ11: PB-03100/20 | BR11: PB-03101/20 | BS11: PB-03102/20 | BT11: PB-07496/20 | BU11: PB-07497/20 | BV11: PB-07498/20 | BW11: PB-07499/20 | BX11: PB-07500/20 | BY11: PB-07501/20 | BZ11: PB-07502/20 | CA11: PB-07503/20 | CB11: PB-07504/20 | CC11: PB-07505/20 | CD11: PB-08096/20 | CE11: PB-08097/20 | CF11: PB-08098/20 | CG11: PB-08099/20 | CH11: PB-08100/20 | CI11: PB-08101/20 | CJ11: PB-08102/20 | CK11: PB-00936/21 | CL11: PB-00929/21 | CM11: PB-00930/21 | CN11: PB-00931/21 | CO11: PB-00932/21 | CP11: PB-00933/21 | CQ11: PB-00934/21 | CR11: PB-00935/21 | CS11: PB-00937/21 | CT11: PB-02489/21 | CU11: PB-02490/21 | CV11: PB-02491/21 | CW11: PB-02492/21 | CX11: PB-02493/21 | CY11: PB-02494/21 | CZ11: PB-02495/21 | DA11: PB-02496/21 | DB11: PB-02497/21 | DC11: PB-03192/21 | DD11: PB-03193/21 | DE11: PB-05073/21 | DF11: PB-05074/21 | DG11: PB-04181/21 | DH11: PB-04182/21 | DI11: PB-04183/21 | DJ11: PB-04184/21 | DK11: PB-04185/21 | DL11: PB-04186/21 | DM11: PB-04187/21 | DN11: PB-04188/21 | DO11: PB-04189/21 | DP11: PB-04190/21 | DQ11: PB-04191/21 | DR11: PB-04195/21 | DS11: PB-04196/21 | DT11: PB-04197/21 | DU11: PB-04211/21 | DV11: PB-04213/21 | DW11: PB-04214/21 | DX11: PB-04217/21 | DY11: PB-05797/21 | DZ11: PB-05917/21 | EA11: PB-07440/21 | EB11: PB-07440/21 | EC11: PB-07440/21 | ED11: PB-07440/21 | EE11: PB-07440/21 | EF11: PB-07440/21 | EG11: PB-07440/21 | EH11: PB-07440/21 | EI11: PB-07440/21 | EJ11: PB-08543/21 | EK11: PB-08543/21 | EL11: PB-08543/21 | EM11: PB-08543/21 | EN11: PB-00610/22 | EO11: PB-00610/22 | EP11: PB-08543/21 | EQ11: PB-08543/21 | ER11: PB-08357/21 | ES11: PB-00610/22 | ET11: PB-08543/21 | EU11: PB-08543/21 | EV11: PB-08543/21 | EW11: PB-08543/21 | EX11: PB-08543/21 | EY11: PB-08543/21 | EZ11: PB-08543/21 | FA11: PB-08674/21 | FB11: PB-08673/21 | FC11: PB-08674/21 | FD11: PB-08674/21 | FE11: PB-08674/21 | FF11: PB-08674/21 | FG11: PB-08674/21 | FH11: PB-08674/21 | FI11: PB-08674/21 | FJ11: PB-08674/21 | FK11: PB-08674/21 | FL11: PB-08674/21 | FM11: PB-08674/21 | FN11: PB-08674/21 | FO11: PB-08674/21 | FP11: PB-08674/21 | FQ11: PB-08674/21 | FR11: PB-08674/21 | FS11: PB-08674/21 | FT11: PB-01246/22 | FU11: PB-01246/22 | FV11: PB-01246/22 | FW11: PB-01246/22 | FX11: PB-01246/22 | FY11: PB-01246/22 | FZ11: PB-01246/22 | GA11: PB-01246/22 | GB11: PB-01246/22 | GC11: PB-01246/22 | GD11: PB-01246/22 | GE11: PB-01246/22 | GF11: PB-01247/22 | GG11: PB-01247/22 | GH11: PB-01247/22 | GI11: PB-01248/22 | GJ11: PB-01248/22 | GK11: PB-01248/22 | GL11: PB-01249/22 | GM11: PB-01249/22 | GN11: PB-01249/22 | GO11: PB-01249/22 | GP11: PB-01249/22 | GQ11: PB-01249/22 | GR11: PB-01250/22 | GS11: PB-01250/22 | GT11: PB-01250/22 | GU11: PB-01250/22 | GV11: PB-01250/22 | GW11: PB-01251/22 | GX11: PB-01251/22 | GY11: PB-01251/22 | GZ11: PB-01515/22 | HA11: PB-01515/22 | HB11: PB-01515/22 | HC11: PB-01515/22 | HD11: PB-01515/22 | HE11: PB-01515/22 | HF11: PB-01515/22 | HG11: PB-01516/22 | HH11: PB-01516/22 | HI11: PB-01516/22 | HJ11: PB-01516/22
A12: Messstelle korr. -> | D12: P2 | E12: P3 | F12: FH2 | G12: FH4 | H12: FH5 | I12: FH7 | J12: P2 | K12: P3 | L12: FH N2 | M12: FH4 | N12: FH5 | O12: FH7 | P12: P1 | Q12: P2 | R12: Sanierbrunnen Flughafen | S12: KB5/01 | T12: FH5 | U12: FH7 | V12: FH4 | W12: FH N2 | X12: Freundlinger | Y12: WO-GE-Imm. | Z12: Baumschule Mayer | AA12: FH N1 | AB12: FH N3 | AC12: P2 | AD12: P3 | AE12: P0006-19-12-4 (Ablauf Abstellfläche) | AF12: P0006-19-12-6 (Ablauf Abstellfläche) | AG12: P0006-19-15-6 (Ablauf Abstellfläche) | AH12: P1 | AI12: P2 | AJ12: P3 | AK12: FH7 | AL12: FH4 | AM12: Freundlinger | AN12: Baumschule Mayer | AO12: P1 | AP12: P2 | AQ12: P3 | AR12: FH7 | AS12: FH4 | AT12: Freundlinger | AU12: Hofer Baustelle P7 | AV12: Baumschule Mayer | AW12: P1 | AX12: P2 | AY12: P3 | AZ12: FH7 | BA12: FH7 | BB12: „Ersatz“ Hofer | BC12: Freundlinger | BD12: P1 | BE12: P2 | BF12: P3 | BG12: FH7 | BH12: FH4 | BI12: Freundlinger | BJ12: ÖFAG | BK12: P3 | BL12: P1 | BM12: P2 | BN12: P3 | BO12: FH7 | BP12: FH4 | BQ12: Freundlinger | BR12: ÖFAG | BS12: P3 | BT12: P3 | BU12: P1 | BV12: P2 | BW12: P3 | BX12: FH7 | BY12: FH4 | BZ12: Freundlinger | CA12: ÖFAG | CB12: P3 | CC12: P3 | CD12: P1 | CE12: P2 | CF12: P3 | CG12: FH7 | CH12: FH4 | CI12: Freundlinger | CJ12: ÖFAG | CK12: P3 | CL12: P2 | CM12: P3 | CN12: FH4 | CO12: Freundlinger | CP12: Baumschule Mayer | CQ12: ÖFAG | CR12: Baumschule Mayer | CS12: P3 | CT12: P1 | CU12: P2 | CV12: P3 | CW12: FH4 | CX12: FH7 | CY12: Freundlinger | CZ12: ÖFAG | DA12: Baumschule Mayer | DB12: Autobahnmeisterei | DC12: P3 | DD12: Walchhofer | DE12: P1 | DF12: P2 | DG12: P3 | DH12: Autobahnmeisterei | DI12: FH7 | DJ12: FH4 | DK12: Freundlinger | DL12: ÖFAG | DM12: Baumschule Mayer | DN12: Walchhofer | DO12: AS_RKS_ZP_27 | DP12: AS_RKS_ZP_28 | DQ12: AS_RKS_ZP_29 | DR12: AS_RKS_ZP_30 | DS12: AS_RKS_ZP_23 | DT12: AS_RKS_ZP_22 | DU12: AS_RKS_ZP_24 | DV12: AS_RKS_ZP_25 | DW12: AS_RKS_ZP_26 | DX12: P3 | DY12: P3 | DZ12: P3 | EA12: P1 | EB12: P2 | EC12: P3 | ED12: FH7 | EE12: FH4 | EF12: Freundlinger | EG12: ÖFAG | EH12: Walchhofer | EI12: Autobahnmeisterei | EJ12: Messnetz Magistrat GW - Haimlgasse 5 | EK12: Messnetz Magistrat GW - Schönleitenstraße 1 (Herz-Jesu-Missionare) | EL12: Messnetz Magistrat GW - Klessheimer Allee 67 (Restaurant) | EM12: Messnetz Magistrat GW - Ignaz-Harrer-Straße 79 (Chr.-Doppler-Klinik Parkpl.) | EN12: Lieferinger Mühlbach im Bereich Josef-Obermair-Weg | EO12: Glan im Bereich der Brücke Stauffeneggstraße | EP12: KB5/01 | EQ12: NW-Brunnen der Landesfeuerwehrschule, Karolingerstraße 30 | ER12: P. Pfenninger Stiftung - Quelle Fischkalter | ES12: Fischerwirtsbach vor Mündung in den Lieferinger Mühlbach | ET12: FH N2 | EU12: FH N3 | EV12: Baumschule Mayer | EW12: FH2 | EX12: P3 | EY12: GW Messnetz Hydro - Maxglan Bl 307 | EZ12: GW Messnetz Hydro - Maxglan Bl 624 | FA12: AS KB B3 | FB12: P3 | FC12: AS KB B3 | FD12: AS KB B3 | FE12: AS KB B3 | FF12: AS KB B3 | FG12: AS KB B3 | FH12: AS KB B3 | FI12: AS KB B3 | FJ12: AS-KB-B3-PS3A_R | FK12: AS-KB-B3-PS2 E_R | FL12: AS-KB-B3-PS2 E_FS1 | FM12: AS-KB-B3-PS2 E_FS2 | FN12: AS-KB-B3-PS3A_FS1 | FO12: AS-KB-B3-PS3A_FS2 | FP12: AS-KB-B3-PS3 E_R | FQ12: AS-KB-B3-PS3 E_FS1 | FR12: AS-KB-B3-PS3 E_FS2 | FS12: AS-KB-B3 Blindprobe_B | FT12: P1 | FU12: P2 | FV12: P3 | FW12: FH7 | FX12: FH4 | FY12: FH2 | FZ12: Freundlinger | GA12: ÖFAG | GB12: Baumschule Mayer | GC12: Autobahnmeisterei | GD12: Messnetz Magistrat GW - Laufenstr. 55 | GE12: GW Messnetz Hydro - Itzling Bl 616 | GF12: Messnetz Magistrat GW - Messezentrum | GG12: Messnetz Magistrat GW - Lieferg. Badesee I (südlich) | GH12: Messnetz Magistrat GW - Lieferg. Badesee II (nördlich) | GI12: P3 | GJ12: AS KB B1 | GK12: AS KB B3 | GL12: AS KB B4 | GM12: Quelle NW CDK | GN12: NW-Brunnen CDK | GO12: NW-Brunnen Missionshaus Herz-Jesu-Missionare | GP12: Altglan nahe Autobahn (A1) | GQ12: Lieferinger Mühlbach nahe Autobahn (A1) | GR12: FH2 | GS12: NW-Brunnen OBI/Mega Baumax, Brunnen 2 | GT12: Fischerwirtsbach vor Mündung in den Lieferinger Mühlbach | GU12: NW-Brunnen GD Salzburger Wirtschaftshof | GV12: Messnetz Magistrat GW - Klessheimer Allee 67 (Restaurant) | GW12: NW-Brunnen Himmelfreundpointner, Ludwig-Viktor-Gasse 3 | GX12: NW-Brunnen Wäscherei Wacht, Michael Filz-Gasse 10 | GY12: NW-Brunnen Ehgartner, Norbert-Brüll-Straße 24 | GZ12: FH5 | HA12: P3 | HB12: FH2 | HC12: FH6 | HD12: FH N2 | HE12: FH N1 | HF12: Brunnen Bischofswald | HG12: Messnetz Magistrat GW - Haimlgasse 5 | HH12: NW-Brunnen Gde Wals-Siezenheim, Mühlwegstr. 22 | HI12: NW-Brunnen Red Bull,Sportanlage Taxham | HJ12: NW-Brunnen SSK, Wals-Siezenheim
A13: PN_Anlage -> | D13: P2 | E13: P3 | F13: FH2 | G13: FH4/94 | H13: FH5/94 | I13: FH7/94 | J13: P2 | K13: P3 | L13: FH N2 | M13: FH 4 | N13: FH 5 | O13: FH 7 | P13: Pegel 1 | Q13: Pegel 2 | R13: Br.San. | S13: KB5/01 | T13: FH5/94 | U13: FH7/94 | V13: FH4/94 | W13: FH N2 | X13: Freundlinger | Y13: WO-GE-Imm. | Z13: Baumschule Mayer | AA13: FH N1/91 | AB13: FH N3/91 | AC13: Pegel 2 | AD13: Pegel 3 | AE13: P0006-19-12-4 (Ablauf Abstellfläche) | AF13: P0006-19-12-6 (Ablauf Abstellfläche) | AG13: P0006-19-15-6 (Ablauf Abstellfläche) | AH13: Pegel 1 | AI13: Pegel 2 | AJ13: Pegel 3 | AK13: FH7/94 | AL13: FH4/94 | AM13: Freundlinger | AN13: Baumschule Mayer | AO13: Flughafen | AP13: Flughafen | AQ13: Flughafen | AR13: Flughafen | AS13: Flughafen | AT13: Flughafen | AU13: Flughafen | AV13: Flughafen | AW13: Flughafen | AX13: Flughafen | AY13: Flughafen | AZ13: Flughafen | BA13: Flughafen | BB13: Flughafen | BC13: Flughafen | BD13: Flughafen | BE13: Flughafen | BF13: Flughafen | BG13: Flughafen | BH13: Flughafen | BI13: Flughafen | BJ13: Flughafen | BK13: Flughafen | BL13: Flughafen | BM13: Flughafen | BN13: Flughafen | BO13: Flughafen | BP13: Flughafen | BQ13: Flughafen | BR13: Flughafen | BS13: Flughafen | BT13: Flughafen | BU13: Flughafen | BV13: Flughafen | BW13: Flughafen | BX13: Flughafen | BY13: Flughafen | BZ13: Flughafen | CA13: Flughafen | CB13: Flughafen | CC13: Flughafen | CD13: Flughafen | CE13: Flughafen | CF13: Flughafen | CG13: Flughafen | CH13: Flughafen | CI13: Flughafen | CJ13: Flughafen | CK13: Flughafen | CL13: Flughafen | CM13: Flughafen | CN13: Flughafen | CO13: Flughafen | CP13: Flughafen | CQ13: Flughafen | CR13: Flughafen | CS13: Flughafen | CT13: Flughafen | CU13: Flughafen | CV13: Flughafen | CW13: Flughafen | CX13: Flughafen | CY13: Flughafen | CZ13: Flughafen | DA13: Flughafen | DB13: Flughafen | DC13: Flughafen | DD13: Flughafen | DE13: Flughafen | DF13: Flughafen | DG13: Flughafen | DH13: Flughafen | DI13: Flughafen | DJ13: Flughafen | DK13: Flughafen | DL13: Flughafen | DM13: Flughafen | DN13: Flughafen | DO13: Flughafen | DP13: Flughafen | DQ13: Flughafen | DR13: Flughafen | DS13: Flughafen | DT13: Flughafen | DU13: Flughafen | DV13: Flughafen | DW13: Flughafen | DX13: Flughafen | DY13: Flughafen | DZ13: Flughafen | EA13: Flughafen | EB13: Flughafen | EC13: Flughafen | ED13: Flughafen | EE13: Flughafen | EF13: Flughafen | EG13: Flughafen | EH13: Flughafen | EI13: Flughafen | EJ13: Flughafen | EK13: Flughafen | EL13: Flughafen | EM13: Flughafen | EN13: Flughafen | EO13: Flughafen | EP13: Flughafen | EQ13: Flughafen | ER13: Flughafen | ES13: Flughafen | ET13: Flughafen | EU13: Flughafen | EV13: Flughafen | EW13: Flughafen | EX13: Flughafen | EY13: Flughafen | EZ13: Flughafen | FA13: AS-KB-B3 | FB13: Flughafen | FC13: AS-KB-B3 | FD13: AS-KB-B3 | FE13: AS-KB-B3 | FF13: AS-KB-B3 | FG13: AS-KB-B3 | FH13: AS-KB-B3 | FI13: AS-KB-B3 | FJ13: AS-KB-B3-PS3A_R | FK13: AS-KB-B3-PS2 E_R | FL13: AS-KB-B3-PS2 E_FS1 | FM13: AS-KB-B3-PS2 E_FS2 | FN13: AS-KB-B3-PS3A_FS1 | FO13: AS-KB-B3-PS3A_FS2 | FP13: AS-KB-B3-PS3 E_R | FQ13: AS-KB-B3-PS3 E_FS1 | FR13: AS-KB-B3-PS3 E_FS2 | FS13: AS-KB-B3 Blindprobe_B | FT13: Flughafen | FU13: Flughafen | FV13: Flughafen | FW13: Flughafen | FX13: Flughafen | FY13: Flughafen | FZ13: Flughafen | GA13: Flughafen | GB13: Flughafen | GC13: Flughafen | GD13: Flughafen | GE13: Flughafen | GF13: Flughafen | GG13: Flughafen | GH13: Flughafen | GI13: P3 | GJ13: AS KB B1 | GK13: AS KB B3 | GL13: AS KB B4 | GM13: CDK NW-Quelle NW | GN13: CDK Brunnen | GO13: Her-Jesu-M NW Brunnen | GP13: Altglan nahe Autobahn | GQ13: Lieferinger Mühlbach nahe Autobahn | GR13: FH2 | GS13: OBI Baumarkt Br. 2 | GT13: Fischerwirtsbach | GU13: GD Salzburg Wirtschaftshof | GV13: Messnetz Magistrat | GW13: Ludwig-Viktor-Gasse 3 - Beer | GX13: Wacht | GY13: Ehgartner - Norbert-Brüll-Straße | GZ13: FH5 | HA13: P3 | HB13: FH2 | HC13: FH6 | HD13: FH N2 | HE13: FH N1 | HF13: Brunnen Bischofswald | HG13: Heimlgasse 5 | HH13: Mühlwegstraße 22 | HI13: Sportanlage Taxham | HJ13: SSK Wals-Siezenheim
A14: PN_Stelle -> | B14: Parameter | C14: Einheit | D14: (Leer) | E14: (Leer) | F14: (Leer) | G14: (Leer) | H14: (Leer) | I14: (Leer) | J14: (Leer) | K14: (Leer) | L14: (Leer) | M14: (Leer) | N14: (Leer) | O14: (Leer) | P14: (Leer) | Q14: (Leer) | R14: (Leer) | S14: (Leer) | T14: (Leer) | U14: (Leer) | V14: (Leer) | W14: (Leer) | X14: (Leer) | Y14: (Leer) | Z14: (Leer) | AA14: (Leer) | AB14: (Leer) | AC14: (Leer) | AD14: (Leer) | AE14: Mischung aus 4/5 | AF14: Mischung aus 8/9 | AG14: Mischung aus 6/7 | AH14: (Leer) | AI14: (Leer) | AJ14: (Leer) | AK14: (Leer) | AL14: (Leer) | AM14: (Leer) | AN14: (Leer) | AO14: Pegel 1 | AP14: Pegel 2 | AQ14: Pegel 3 | AR14: FH7/94 | AS14: FH4/94 | AT14: Freundlinger Glanhofen 17 | AU14: Hofer Baustelle P.7 | AV14: Baumschule Mayer Rosa-Hofmann-Str.22 | AW14: Pegel 1 | AX14: Pegel 2 | AY14: Pegel 3 | AZ14: FH 7/94 | BA14: FH 7/94 | BB14: „Ersatz“ Hofer | BC14: Freundlinger | BD14: Pegel 1 | BE14: Pegel 2 | BF14: Pegel 3 | BG14: FH 7/94 | BH14: FH 4/94 | BI14: Freundlinger | BJ14: ÖFAG | BK14: Pegel 3 | BL14: Pegel 1 | BM14: Pegel 2 | BN14: Pegel 3 | BO14: FH7/94 | BP14: FH4/94 | BQ14: Freundlinger | BR14: ÖFAG | BS14: Pegel 3 | BT14: Pegel 3 | BU14: Pegel 1 | BV14: Pegel 2 | BW14: Pegel 3 | BX14: FH7/94 | BY14: FH4/94 | BZ14: Freundlinger | CA14: ÖFAG | CB14: Pegel 3 | CC14: Pegel 3 | CD14: Pegel 1 | CE14: Pegel 2 | CF14: Pegel 3 | CG14: FH7/94 | CH14: FH4/94 | CI14: Freundlinger | CJ14: ÖFAG | CK14: Pegel 3 | CL14: Pegel 2 | CM14: Pegel 3 | CN14: FH4/94 | CO14: Freundlinger | CP14: Baumschule Mayer | CQ14: ÖFAG | CR14: Baumschule Mayer | CS14: Pegel 3 | CT14: Pegel 1 | CU14: Pegel 2 | CV14: Pegel 3 | CW14: FH4/94 | CX14: FH7/94 | CY14: Freundlinger | CZ14: ÖFAG | DA14: Baumschule Mayer | DB14: Autobahnmeisterei | DC14: Pegel 3 | DD14: Walchhofer | DE14: Pegel 1 | DF14: Pegel 2 | DG14: Pegel 3 | DH14: Autobahnmeisterei | DI14: FH7 | DJ14: FH4 | DK14: Freundlinger | DL14: ÖFAG | DM14: Baumschule Mayer | DN14: Walchhofer | DO14: AS_RKS_ZP_27 | DP14: AS_RKS_ZP_28 | DQ14: AS_RKS_ZP_29 | DR14: AS_RKS_ZP_30 | DS14: AS_RKS_ZP_23 | DT14: AS_RKS_ZP_22 | DU14: AS_RKS_ZP_24 | DV14: AS_RKS_ZP_25 | DW14: AS_RKS_ZP_26 | DX14: Pegel 3 | DY14: Pegel 3 | DZ14: Pegel 3 | EA14: Pegel 1 | EB14: Pegel 2 | EC14: Pegel 3 | ED14: FH7/94 | EE14: FH4/94 | EF14: Freundlinger | EG14: ÖFAG | EH14: Walchhofer | EI14: Autobahnmeisterei | EJ14: Messnetz GW - Magistrat Haimlgasse 5 | EK14: Messnetz Magistrat, GW - Schönleitenstraße 1 (Herz-Jesu-Missionare) | EL14: Messnetz Magistrat, GW - Klessheimer Allee 57 (Restaurant) | EM14: Messnetz Magistrat, GW - Ignaz-Harrer-Straße 79 (Chr.-Doppler-Klinik Parkpl.) | EN14: Lieferinger Mühlbach im Bereich Josef-Obermair-Weg | EO14: Glan im Bereich der Brücke Stauffeneggstraße | EP14: KB5/01 | EQ14: BrF Nutzwasserbrunnen der Landesfeuerwehrschule, Karolingerstraße 30 | ER14: P. Pfenninger Stiftung - Quelle Fischkalter | ES14: Fischerwirtsbach vor Mündung in den Lieferinger Mühlbach | ET14: FHN2/91 | EU14: FHN3/91 | EV14: Baumschule Mayer | EW14: FH 2/90 | EX14: P 3 | EY14: GW Messnetz Hydro - Maxglan BL 307 | EZ14: GW Messnetz Hydro - Maxglan BL 624 | FA14: Blindprobe A | FB14: P 3 | FC14: PS1 A-R | FD14: PS1 E_R Pumpstufe Ende | FE14: PS1 E_FS1 Pumpstufe Ende | FF14: PS1 E_FS2 Pumpstufe Ende | FG14: PS2 A-R | FH14: PS2 A-FS 1 | FI14: PS2 A-FS 2 | FJ14: Pumpstufe 3 Anfang, Rohwasser vor Filteranlage | FK14: Pumpstufe 2 Ende, Rohwasser vor Filteranl. | FL14: Pumpstufe 2 Ende, Rohwasser nach 1. Filter | FM14: Pumpstufe 2 Ende, Reinwasser nach 2. Filter | FN14: Pumpstufe 3 Anfang, Rohwasser nach 1. Filter | FO14: Pumpstufe 3 Anfang, Reinwasser nach 2. Filter | FP14: Pumpstufe 3 Ende, Rohwasser vor Filteranl. | FQ14: Pumpstufe 3 Ende, Rohwasser nach 1. Filter | FR14: Pumpstufe 3 Ende, Reinwasser nach 2. Filter | FS14: Schöpfprobe KB-B3 | FT14: P1 | FU14: P2 | FV14: P3 | FW14: FH7 | FX14: FH4 | FY14: FH2 | FZ14: Freundlinger | GA14: ÖFAG | GB14: Baumschule Mayer | GC14: Autobahnmeisterei | GD14: Messnetz Magistrat, GW Laufenstr. 55 | GE14: GW Messnetz Hydro - Itzling Bl 616 | GF14: Messnetz Magistrat GW, Messezentrum | GG14: Messnetz Magistrat, GW Lieferinger Badesee I (südlich) | GH14: Messnetz Magistrat, GW Lieferinger Badesee II (nördlich) | GI14: P3 | GJ14: AS KB B1 | GK14: AS KB B3 | GL14: AS KB B4 | GM14: CDK NW-Quelle NW | GN14: NW-Brunnen CDK | GO14: NW-Brunnen Missionshaus Herz-Jesu-Missionare | GP14: Altglan nahe Autobahn (A1) | GQ14: Lieferinger Mühlbach nahe Autobahn (A1) | GR14: FH2 | GS14: NW-Brunnen OBI/Mega Baumax, Brunnen 2 | GT14: Fischerwirtsbach vor Mündung den in Lieferinger Mühlbach | GU14: NW-Brunnen GD Salzburger Wirtschaftshof | GV14: Messnetz Magistrat GW - Klessheimer Allee 67 (Restaurant) | GW14: NW-Brunnen Himmelfreundpointner, Ludwig-Viktor-Gasse 3 | GX14: NW-Brunnen Wäscherei Wacht, Michael-Filz-Gasse 10 | GY14: NW-Brunnen Ehgartner, Norbert-Brüll-Straße 24 | GZ14: FH5 | HA14: P3 | HB14: FH2 | HC14: FH6 | HD14: FH N2 | HE14: FH N1 | HF14: Brunnen Bischofswald | HG14: Messnetz Magistrat GW - Haimlgasse 5 | HH14: NW-Brunnen Gde Wals-Sizenenheim, Mühlwegstr. 22 | HI14: NW-Brunnen Red Bull, Sportanlage Taxham | HJ14: NW-Brunnen SSK, Wals-Siezenheim
B15: pH-Wert | C15: - | AO15: 7,13 | AP15: 7,10 | AQ15: 7,06 | AR15: 7,31 | AS15: 7,24 | AT15: 7,42 | AU15: 7,38 | AV15: 7,44 | AW15: 7,22 | AX15: 7,03 | AY15: 7,00 | AZ15: 7,31 | BA15: 7,23 | BB15: 7,34 | BC15: 7,30 | CZ15: 7,62 | DB15: 7,82 | DD15: 7,36 | DN15: 7,90 | EG15: 7,49 | EI15: 7,45 | FA15: 7,57 | FD15: 7,28 | FE15: 7,43 | FF15: 7,63 | FK15: 7,28 | FL15: 7,51 | FM15: 7,53 | FP15: 7,21 | FQ15: 7,38 | FR15: 7,48 | FS15: 7,35 | GJ15: 7,28 | GK15: 7,34 | GL15: 7,43 | GR15: 7,21 | GS15: 7,25 | GT15: 7,68 | GU15: 7,30 | GV15: 7,41 | GW15: 7,36 | GX15: 7,30 | GY15: 7,37 | GZ15: 7,11 | HA15: 7,17 | HC15: 7,11 | HD15: 7,37 | HE15: 7,41 | HF15: 7,50 | HG15: 7,48 | HH15: 7,56 | HI15: 7,61 | HJ15: 7,70
B16: el. Leitfähigkeit (bei 20°C) | C16: µS/cm | CZ16: 693 | DB16: 675 | DD16: 645 | DN16: 635 | EG16: 726 | EI16: 688 | FA16: 679 | FD16: 725 | FE16: 728 | FF16: 722 | FK16: 725 | FL16: 724 | FM16: 725 | FP16: 721 | FQ16: 724 | FR16: 720 | FS16: 737 | GJ16: 763 | GK16: 717 | GL16: 618 | GR16: 691 | GS16: 707 | GT16: 697 | GU16: 791 | GV16: 629 | GW16: 618 | GX16: 676 | GY16: 630 | GZ16: 793 | HA16: 726 | HC16: 761 | HD16: 733 | HE16: 737 | HF16: 722 | HG16: 730 | HH16: 722 | HI16: 685 | HJ16: 616
B17: el. Leitfähigkeit (bei 25°C) | C17: µS/cm | AW17: 838 | AX17: 841 | AY17: 812 | AZ17: 735 | BA17: 762 | BB17: 740
B18: Säurekapazität (bis pH 4,3) | C18: mmol/l | AW18: 8,37 | AX18: 8,42 | AY18: 8,69 | AZ18: 6,60 | BA18: 7,86 | BB18: 6,85
B19: Gesamt-Härte | C19: °dH | AO19: 25,5 | AP19: 24,9 | AQ19: 23,0 | AR19: 19,6 | AS19: 21,7 | AT19: 20,7 | AU19: 22,5 | AV19: 20,8 | AW19: 25,1 | AX19: 25,6 | AY19: 22,9 | AZ19: 19,3 | BA19: 21,7 | BB19: 20,6 | BC19: 20,2 | CR19: 21,4 | CZ19: 20,9 | DB19: 17,1 | DD19: 20,7 | DN19: 17,8 | EG19: 21,3 | EI19: 17,9 | FA19: 22,7 | FD19: 24,4 | FE19: 24,6 | FF19: 23,4 | FK19: 24,6 | FL19: 25,0 | FM19: 25,0 | FP19: 24,5 | FQ19: 24,5 | FR19: 24,8 | FS19: 25,7 | GJ19: 24,5 | GK19: 25,0 | GL19: 19,1 | GR19: 20,0 | GS19: 25,2 | GT19: 19,6 | GU19: 22,3 | GV19: 19,9 | GW19: 20,3 | GX19: 21,8 | GY19: 20,4 | GZ19: 25,7 | HA19: 23,8 | HC19: 24,9 | HD19: 24,0 | HE19: 22,0 | HF19: 18,7 | HG19: 23,6 | HH19: 19,5 | HI19: 21,8 | HJ19: 13,3
B20: Carbonat-Härte | C20: °dH | AO20: 23,7 | AP20: 22,8 | AQ20: 23,0 | AR20: 17,9 | AS20: 21,7 | AT20: 20,7 | AU20: 21,3 | AV20: 19,4 | AW20: 23,4 | AX20: 23,6 | AY20: 22,9 | AZ20: 18,5 | BA20: 21,7 | BB20: 19,2 | BC20: 20,2 | CR20: 20,9 | CZ20: 18,8 | DB20: 16,3 | DD20: 20,0 | DN20: 17,8 | EG20: 20,0 | EI20: 17,0 | FA20: 20,7 | FD20: 22,0 | FE20: 23,5 | FF20: 23,4 | FK20: 22,4 | FL20: 22,8 | FM20: 22,9 | FP20: 22,8 | FQ20: 22,7 | FR20: 22,8 | FS20: 23,3 | GJ20: 23,1 | GK20: 22,1 | GL20: 19,1 | GR20: 20,0 | GS20: 23,7 | GT20: 18,6 | GU20: 20,1 | GV20: 19,9 | GW20: 19,9 | GX20: 20,4 | GY20: 19,4 | GZ20: 23,9 | HA20: 23,3 | HC20: 22,9 | HD20: 20,7 | HE20: 19,3 | HF20: 16,5 | HG20: 21,8 | HH20: 17,6 | HI20: 18,2 | HJ20: 11,2
B21: Hydrogencarbonat | C21: mg/l | AO21: 517 | AP21: 497 | AQ21: 533 | AR21: 390 | AS21: 473 | AT21: 451 | AU21: 463 | AV21: 422 | AW21: 511 | AX21: 514 | AY21: 530 | AZ21: 403 | BA21: 479 | BB21: 418 | BC21: 454 | CR21: 456 | CZ21: 409 | DB21: 354 | DD21: 437 | DN21: 394 | EG21: 436 | EI21: 370 | FA21: 451 | FD21: 480 | FE21: 511 | FF21: 509 | FK21: 487 | FL21: 497 | FM21: 499 | FP21: 496 | FQ21: 494 | FR21: 497 | FS21: 508 | GJ21: 503 | GK21: 481 | GL21: 446 | GR21: 462 | GS21: 515 | GT21: 404 | GU21: 439 | GV21: 434 | GW21: 433 | GX21: 445 | GY21: 423 | GZ21: 520 | HA21: 508 | HC21: 500 | HD21: 450 | HE21: 420 | HF21: 360 | HG21: 475 | HH21: 382 | HI21: 397 | HJ21: 243
B22: UV-Durchlässigkeit (bei 254 nm) 10cm filtriert | C22: % | AW22: 68,2 | AX22: 61,4 | AY22: 61,7 | AZ22: 80,5 | BA22: 80,2 | BB22: 80,2
B23: Spektraler Absorptionsk. (bei 254 nm) | C23: m-1 | AW23: 1,7 | AX23: 2,1 | AY23: 2,1 | AZ23: 0,94 | BA23: 0,96 | BB23: 0,96
B24: Spektraler Absorptionsk. (bei 436 nm) | C24: m-1 | AW24: < 0,1 | AX24: < 0,1 | AY24: < 0,1 | AZ24: < 0,1 | BA24: < 0,1 | BB24: < 0,1
B25: TOC | C25: mg/l | AO25: 1,0 | AP25: 1,1 | AQ25: 1,5 | AR25: < 1 | AS25: < 1 | AT25: 1,1 | AU25: < 1 | AV25: 1,5
B26: DOC | C26: mg/l | AO26: 1,0 | AP26: 1,1 | AQ26: 1,4 | AR26: < 1 | AS26: < 1 | AT26: 1,1 | AU26: < 1 | AV26: < 1 | AW26: 5,6 | AX26: 6,5 | AY26: 5,1 | AZ26: 3,7 | BA26: 9,7 | BB26: 6,2 | BC26: < 1 | CR26: 2,1 | CZ26: 1,46 | DB26: < 1 | DD26: < 1 | DN26: < 1 | EG26: < 1 | EI26: < 1 | FA26: 1,73 | FD26: 1,60 | FE26: < 1 | FF26: < 1 | FK26: 1,56 | FL26: < 1 | FM26: < 1 | FP26: 1,56 | FQ26: < 1 | FR26: < 1 | FS26: 2,3 | GJ26: 1,63 | GK26: 1,33 | GL26: 1,20 | GR26: 1,48 | GS26: 1,24 | GT26: 1,10 | GU26: 1,23 | GV26: 1,31 | GW26: 2,2 | GX26: 1,16 | GY26: 1,06 | GZ26: 7,5 | HA26: 1,44 | HC26: 2,3 | HD26: < 1 | HE26: < 1 | HF26: < 1 | HG26: 1,54 | HH26: < 1 | HI26: < 1 | HJ26: < 1
B27: Ammonium | C27: mg/l | AO27: < 0,02 | AP27: < 0,02 | AQ27: 1,74 | AR27: < 0,02 | AS27: 0,038 | AT27: 0,070 | AU27: < 0,02 | AV27: < 0,02 | AW27: < 0,02 | AX27: 0,055 | AY27: 4,4 | AZ27: 0,028 | BA27: < 0,02 | BB27: < 0,02 | BC27: 0,58 | CR27: < 0,02 | CZ27: 0,051 | DB27: < 0,02 | DD27: < 0,02 | DN27: < 0,02 | EG27: < 0,02 | EI27: < 0,02 | FA27: < 0,02 | FD27: 0,029 | FE27: 0,038 | FF27: 0,040 | FK27: 0,027 | FL27: 0,029 | FM27: 0,028 | FP27: 0,031 | FQ27: 0,026 | FR27: 0,027 | FS27: 0,091 | GJ27: < 0,02 | GK27: < 0,02 | GL27: 0,23 | GR27: < 0,02 | GS27: < 0,02 | GT27: < 0,02 | GU27: < 0,02 | GV27: < 0,02 | GW27: < 0,02 | GX27: < 0,02 | GY27: < 0,02 | GZ27: 1,27 | HA27: 0,59 | HC27: 0,59 | HD27: < 0,02 | HE27: < 0,02 | HF27: < 0,02 | HG27: < 0,02 | HH27: < 0,02 | HI27: < 0,02 | HJ27: < 0,02
B28: Nitrit | C28: mg/l | AO28: 0,0087 | AP28: 0,0058 | AQ28: 0,0035 | AR28: < 0,003 | AS28: < 0,003 | AT28: < 0,003 | AU28: < 0,003 | AV28: < 0,003 | AW28: 0,0097 | AX28: 0,0184 | AY28: 0,0034 | AZ28: < 0,003 | BA28: < 0,003 | BB28: < 0,003 | BC28: 0,0042 | CR28: < 0,003 | CZ28: < 0,003 | DB28: < 0,003 | DD28: 0,0030 | DN28: < 0,003 | EG28: < 0,003 | EI28: < 0,003 | FA28: 0,0073 | FD28: 0,0049 | FE28: 0,0122 | FF28: 0,0097 | FK28: 0,0088 | FL28: 0,0092 | FM28: 0,0080 | FP28: 0,0125 | FQ28: 0,0110 | FR28: 0,0095 | FS28: 0,130 | GJ28: 0,0075 | GK28: < 0,003 | GL28: 0,0065 | GR28: < 0,003 | GS28: < 0,003 | GT28: 0,0073 | GU28: < 0,003 | GV28: < 0,003 | GW28: 0,0139 | GX28: < 0,003 | GY28: < 0,003 | GZ28: < 0,003 | HA28: < 0,003 | HC28: 0,0037 | HD28: < 0,003 | HE28: < 0,003 | HF28: < 0,003 | HG28: < 0,003 | HH28: < 0,003 | HI28: < 0,003 | HJ28: < 0,003
B29: Nitrat | C29: mg/l | AO29: 7,1 | AP29: 9,5 | AQ29: < 1 | AR29: 24 | AS29: 6,4 | AT29: 12,4 | AU29: 5,1 | AV29: 19,4 | AW29: 9,6 | AX29: 8,6 | AY29: < 1 | AZ29: 19,2 | BA29: 4,0 | BB29: 16,8 | BC29: 4,4 | CR29: 16,4 | CZ29: 7,9 | DB29: 16,2 | DD29: 17,3 | DN29: 16,3 | EG29: 10,8 | EI29: 15,5 | FA29: 25 | FD29: 17,4 | FE29: 12,0 | FF29: 8,0 | FK29: 15,7 | FL29: 12,7 | FM29: 11,9 | FP29: 14,2 | FQ29: 14,3 | FR29: 12,7 | FS29: 9,1 | GJ29: 36 | GK29: 20 | GL29: 2,7 | GR29: 23 | GS29: 1,10 | GT29: 15,7 | GU29: 12,7 | GV29: 13,6 | GW29: 15,1 | GX29: 10,2 | GY29: 15,2 | GZ29: < 1 | HA29: < 1 | HC29: < 1 | HD29: 36 | HE29: 29 | HF29: 26 | HG29: 6,5 | HH29: 26 | HI29: 24 | HJ29: 13,3
B30: ortho-Phosphat | C30: mg/l | AO30: 0,0130 | AP30: < 0,01 | AQ30: < 0,01 | AR30: < 0,01 | AS30: 0,38 | AT30: 0,023 | AU30: 0,026 | AV30: 0,115 | AW30: 0,092 | AX30: 0,047 | AY30: 0,020 | AZ30: 0,0170 | BA30: 0,026 | BB30: 0,0110 | BC30: 0,48 | CR30: 0,089 | CZ30: < 0,01 | DB30: 0,31 | DD30: 0,026 | DN30: 0,030 | EG30: < 0,01 | EI30: 0,29 | FA30: < 0,01 | FD30: < 0,01 | FE30: 0,0130 | FF30: 0,028 | FK30: < 0,01 | FL30: 0,0150 | FM30: 0,0160 | FP30: < 0,01 | FQ30: 0,0150 | FR30: 0,026 | FS30: < 0,01 | GJ30: < 0,01 | GK30: < 0,01 | GL30: 0,0100 | GR30: < 0,01 | GS30: < 0,01 | GT30: 0,043 | GU30: 0,0190 | GV30: 0,040 | GW30: 0,0130 | GX30: 0,131 | GY30: 0,096 | GZ30: 0,024 | HA30: < 0,01 | HC30: < 0,01 | HD30: < 0,01 | HE30: 0,030 | HF30: 0,0110 | HG30: 0,040 | HH30: < 0,01 | HI30: < 0,01 | HJ30: < 0,01
B31: Natrium | C31: mg/l | AO31: 15,1 | AP31: 9,6 | AQ31: 10,0 | AR31: 20 | AS31: 13,5 | AT31: 11,4 | AU31: 17,0 | AV31: 15,5 | AW31: 13,6 | AX31: 10,0 | AY31: 10,2 | AZ31: 21 | BA31: 13,4 | BB31: 16,5 | BC31: 12,3 | CR31: 17,2 | CZ31: 24 | DB31: 32 | DD31: 17,8 | DN31: 17,8 | EG31: 29 | EI31: 34 | FA31: 11,5 | FD31: 10,1 | FE31: 10,4 | FF31: 11,1 | FK31: 10,6 | FL31: 10,7 | FM31: 10,2 | FP31: 10,1 | FQ31: 10,1 | FR31: 10,1 | FS31: 9,6 | GJ31: 9,9 | GK31: 10,6 | GL31: 4,3 | GR31: 16,3 | GS31: 7,7 | GT31: 32 | GU31: 37 | GV31: 10,7 | GW31: 9,9 | GX31: 16,4 | GY31: 13,5 | GZ31: 17,8 | HA31: 10,0 | HC31: 6,8 | HD31: 12,7 | HE31: 24 | HF31: 42 | HG31: 16,8 | HH31: 36 | HI31: 24 | HJ31: 54
B32: Kalium | C32: mg/l | AO32: 3,7 | AP32: 3,4 | AQ32: 17,7 | AR32: 9,7 | AS32: 11,6 | AT32: 22 | AU32: 7,4 | AV32: 9,9 | AW32: 3,3 | AX32: 3,3 | AY32: 17,9 | AZ32: 9,8 | BA32: 11,3 | BB32: 6,8 | BC32: 17,6 | CR32: 8,8 | CZ32: 5,0 | DB32: 4,1 | DD32: 5,0 | DN32: 5,2 | EG32: 5,1 | EI32: 4,1 | FA32: 2,2 | FD32: 1,44 | FE32: 1,42 | FF32: 1,43 | FK32: 1,50 | FL32: 1,49 | FM32: 1,75 | FP32: 1,77 | FQ32: 1,75 | FR32: 1,75 | FS32: 1,41 | GJ32: 2,00 | GK32: 1,35 | GL32: 9,6 | GR32: 7,2 | GS32: 2,6 | GT32: 3,9 | GU32: 3,9 | GV32: 6,8 | GW32: 7,6 | GX32: 5,3 | GY32: 5,5 | GZ32: 3,7 | HA32: 10,2 | HC32: 8,1 | HD32: 1,64 | HE32: 2,9 | HF32: 3,4 | HG32: 2,4 | HH32: 3,6 | HI32: 4,3 | HJ32: 1,92
B33: Magnesium | C33: mg/l | AO33: 33 | AP33: 30 | AQ33: 24 | AR33: 24 | AS33: 27 | AT33: 25 | AU33: 27 | AV33: 25 | AW33: 31 | AX33: 32 | AY33: 25 | AZ33: 23 | BA33: 26 | BB33: 25 | BC33: 24 | CR33: 27 | CZ33: 24 | DB33: 18,7 | DD33: 25 | DN33: 23 | EG33: 25 | EI33: 20,0 | FA33: 27 | FD33: 29 | FE33: 29 | FF33: 31 | FK33: 30 | FL33: 30 | FM33: 31 | FP33: 30 | FQ33: 30 | FR33: 30 | FS33: 30 | GJ33: 32 | GK33: 29 | GL33: 21 | GR33: 25 | GS33: 30 | GT33: 23 | GU33: 27 | GV33: 24 | GW33: 24 | GX33: 25 | GY33: 24 | GZ33: 22 | HA33: 27 | HC33: 26 | HD33: 30 | HE33: 27 | HF33: 26 | HG33: 32 | HH33: 28 | HI33: 27 | HJ33: 17,3
B34: Calcium | C34: mg/l | AO34: 129 | AP34: 128 | AQ34: 125 | AR34: 101 | AS34: 111 | AT34: 108 | AU34: 116 | AV34: 108 | AW34: 127 | AX34: 130 | AY34: 123 | AZ34: 100 | BA34: 113 | BB34: 105 | BC34: 104 | CR34: 108 | CZ34: 111 | DB34: 91 | DD34: 106 | DN34: 89 | EG34: 112 | EI34: 95 | FA34: 117 | FD34: 127 | FE34: 127 | FF34: 116 | FK34: 126 | FL34: 128 | FM34: 128 | FP34: 125 | FQ34: 125 | FR34: 127 | FS34: 134 | GJ34: 121 | GK34: 131 | GL34: 102 | GR34: 103 | GS34: 131 | GT34: 101 | GU34: 114 | GV34: 102 | GW34: 105 | GX34: 114 | GY34: 106 | GZ34: 148 | HA34: 125 | HC34: 135 | HD34: 121 | HE34: 112 | HF34: 91 | HG34: 116 | HH34: 93 | HI34: 112 | HJ34: 67
B35: Bor | C35: mg/l | AO35: 0,029 | AP35: 0,026 | AQ35: 0,028 | AR35: 0,021 | AS35: 0,024 | AT35: 0,025 | AU35: 0,020 | AV35: 0,024 | AW35: 0,024 | AX35: 0,029 | AY35: 0,024 | AZ35: 0,019 | BA35: 0,022 | BB35: 0,021 | BC35: 0,036 | CR35: 0,028 | CZ35: 0,018 | DB35: 0,026 | DD35: < 0,01 | DN35: 0,021 | EG35: 0,043 | EI35: 0,055 | FA35: 0,046 | FD35: 0,044 | FE35: 0,056 | FF35: 0,074 | FK35: 0,041 | FL35: 0,019 | FM35: 0,032 | FP35: 0,044 | FQ35: 0,017 | FR35: 0,026 | FS35: 0,047 | GJ35: 0,024 | GK35: 0,025 | GL35: 0,0095 | GR35: 0,018 | GS35: 0,022 | GT35: 0,022 | GU35: 0,025 | GV35: 0,023 | GW35: 0,029 | GX35: 0,029 | GY35: 0,030 | GZ35: 0,048 | HA35: 0,033 | HC35: 0,027 | HD35: 0,034 | HE35: 0,033 | HF35: 0,038 | HG35: 0,035 | HH35: 0,032 | HI35: 0,043 | HJ35: 0,016
B36: Chlorid | C36: mg/l | AO36: 25 | AP36: 16,5 | AQ36: 12,7 | AR36: 34 | AS36: 18,6 | AT36: 17,3 | AU36: 22 | AV36: 23 | AW36: 19,9 | AX36: 16,9 | AY36: 14,2 | AZ36: 34 | BA36: 19,5 | BB36: 22 | BC36: 15,3 | CR36: 28 | CZ36: 42 | DB36: 54 | DD36: 29 | DN36: 28 | EG36: 38 | EI36: 51 | FA36: 16,9 | FD36: 17,9 | FE36: 17,5 | FF36: 17,3 | FK36: 18,1 | FL36: 17,9 | FM36: 17,9 | FP36: 18,0 | FQ36: 18,0 | FR36: 17,9 | FS36: 18,7 | GJ36: 14,9 | GK36: 17,3 | GL36: 6,1 | GR36: 19,0 | GS36: 12,8 | GT36: 51 | GU36: 65 | GV36: 16,2 | GW36: 13,7 | GX36: 24 | GY36: 18,8 | GZ36: 27 | HA36: 15,6 | HC36: 10,1 | HD36: 25 | HE36: 42 | HF36: 65 | HG36: 25 | HH36: 53 | HI36: 35 | HJ36: 89
B37: Sulfat | C37: mg/l | AO37: 27 | AP37: 24 | AQ37: < 1 | AR37: 11,7 | AS37: 7,9 | AT37: 13,2 | AU37: 28 | AV37: 15,0 | AW37: 26 | AX37: 30 | AY37: 3,6 | AZ37: 10,8 | BA37: 7,4 | BB37: 28 | BC37: 13,7 | CR37: 15,0 | CZ37: 26 | DB37: 27 | DD37: 16,9 | DN37: 17,0 | EG37: 34 | EI37: 28 | FA37: 18,1 | FD37: 25 | FE37: 23 | FF37: 22 | FK37: 25 | FL37: 25 | FM37: 25 | FP37: 26 | FQ37: 26 | FR37: 26 | FS37: 31 | GJ37: 29 | GK37: 23 | GL37: 18,7 | GR37: 12,5 | GS37: 26 | GT37: 17,2 | GU37: 28 | GV37: 11,0 | GW37: 8,7 | GX37: 25 | GY37: 13,8 | GZ37: 35 | HA37: 23 | HC37: 14,8 | HD37: 26 | HE37: 21 | HF37: 21 | HG37: 31 | HH37: 23 | HI37: 21 | HJ37: 8,5
B38: Aluminium | C38: mg/l | CR38: < 0,01 | FA38: < 0,01 | FD38: < 0,01 | FE38: < 0,01 | FF38: < 0,01 | FK38: < 0,01 | FL38: < 0,01 | FM38: < 0,01 | FP38: 0,011 | FQ38: < 0,01 | FR38: < 0,01 | FS38: < 0,01
B39: Arsen | C39: mg/l | CR39: < 0,0005 | FA39: < 0,0005 | FD39: 0,0028 | FE39: 0,0013 | FF39: 0,0011 | FK39: 0,0027 | FL39: 0,00055 | FM39: 0,00054 | FP39: 0,0032 | FQ39: 0,00070 | FR39: 0,00076 | FS39: 0,0053
B40: Blei | C40: mg/l | CR40: < 0,001 | FA40: < 0,001 | FD40: < 0,001 | FE40: < 0,001 | FF40: < 0,001 | FK40: < 0,001 | FL40: < 0,001 | FM40: < 0,001 | FP40: < 0,001 | FQ40: < 0,001 | FR40: < 0,001 | FS40: < 0,001
B41: Cadmium | C41: mg/l | CR41: < 0,0003 | FA41: < 0,0003 | FD41: < 0,0003 | FE41: < 0,0003 | FF41: < 0,0003 | FK41: < 0,0003 | FL41: < 0,0003 | FM41: < 0,0003 | FP41: < 0,0003 | FQ41: < 0,0003 | FR41: < 0,0003 | FS41: < 0,0003
B42: Chrom gesamt | C42: mg/l | CR42: < 0,001 | FA42: < 0,001 | FD42: < 0,001 | FE42: < 0,001 | FF42: < 0,001 | FK42: < 0,001 | FL42: < 0,001 | FM42: < 0,001 | FP42: < 0,001 | FQ42: < 0,001 | FR42: < 0,001 | FS42: < 0,001
B43: Eisen gesamt | C43: mg/l | EG43: 0,042 | EI43: 0,016
B44: Eisen gesamt gelöst | C44: mg/l | AO44: < 0,05 | AP44: < 0,05 | AQ44: 12,2 | AR44: < 0,05 | AS44: < 0,05 | AT44: < 0,05 | AU44: < 0,05 | AV44: < 0,05 | AW44: < 0,05 | AX44: < 0,05 | AY44: 0,133 | AZ44: < 0,05 | BA44: < 0,05 | BB44: < 0,05 | BC44: < 0,05 | CR44: < 0,05 | CZ44: 0,068 | DB44: < 0,05 | DD44: < 0,05 | DN44: < 0,05 | EG44: - | EI44: - | FA44: < 0,05 | FC44: 0,83 | FD44: 1,20 | FE44: 0,126 | FF44: < 0,05 | FG44: 1,15 | FH44: 0,133 | FI44: < 0,05 | FJ44: 1,30 | FK44: 1,17 | FL44: < 0,05 | FM44: < 0,05 | FN44: < 0,05 | FO44: < 0,05 | FP44: 1,33 | FQ44: < 0,05 | FR44: < 0,05 | FS44: 2,1 | GJ44: 0,28 | GK44: 0,095 | GL44: < 0,05 | GR44: < 0,05 | GS44: < 0,05 | GT44: < 0,05 | GU44: < 0,05 | GV44: < 0,05 | GW44: < 0,05 | GX44: < 0,05 | GY44: < 0,05 | GZ44: 0,59 | HA44: 1,18 | HC44: 1,05 | HD44: < 0,05 | HE44: < 0,05 | HF44: < 0,05 | HG44: < 0,05 | HH44: < 0,05 | HI44: < 0,05 | HJ44: < 0,05
B45: Kupfer | C45: mg/l | CR45: 0,0031 | FA45: 0,0015 | FD45: < 0,001 | FE45: < 0,001 | FF45: < 0,001 | FK45: < 0,001 | FL45: < 0,001 | FM45: < 0,001 | FP45: < 0,001 | FQ45: < 0,001 | FR45: 0,0016 | FS45: 0,0018
B46: Mangan gesamt | C46: mg/l | EG46: < 0,01 | EI46: < 0,01
B47: Mangan gesamt gelöst | C47: mg/l | AO47: 0,073 | AP47: < 0,05 | AQ47: 0,22 | AR47: < 0,05 | AS47: < 0,05 | AT47: < 0,05 | AU47: < 0,05 | AV47: < 0,05 | AW47: 0,079 | AX47: < 0,05 | AY47: 0,32 | AZ47: < 0,05 | BA47: < 0,05 | BB47: < 0,05 | BC47: < 0,05 | CR47: < 0,05 | CZ47: < 0,05 | DB47: < 0,05 | DD47: < 0,05 | DN47: < 0,05 | EG47: - | EI47: - | FA47: < 0,05 | FC47: 0,21 | FD47: 0,24 | FE47: 0,26 | FF47: 0,24 | FG47: 0,25 | FH47: 0,26 | FI47: 0,27 | FJ47: 0,26 | FK47: 0,25 | FL47: 0,25 | FM47: 0,25 | FN47: 0,26 | FO47: 0,25 | FP47: 0,27 | FQ47: 0,26 | FR47: 0,27 | FS47: 0,46 | GJ47: 0,069 | GK47: < 0,05 | GL47: < 0,05 | GR47: < 0,05 | GS47: 0,103 | GT47: < 0,05 | GU47: < 0,05 | GV47: < 0,05 | GW47: 0,060 | GX47: < 0,05 | GY47: < 0,05 | GZ47: 0,47 | HA47: 0,52 | HC47: 0,26 | HD47: < 0,05 | HE47: < 0,05 | HF47: < 0,05 | HG47: < 0,05 | HH47: < 0,05 | HI47: 0,051 | HJ47: < 0,05
B48: Nickel | C48: mg/l | CR48: < 0,001 | FA48: 0,0034 | FD48: 0,0016 | FE48: 0,010 | FF48: 0,012 | FK48: 0,0016 | FL48: 0,0065 | FM48: 0,0069 | FP48: 0,0016 | FQ48: 0,0040 | FR48: 0,0062 | FS48: 0,0034
B49: Quecksilber | C49: mg/l | CR49: < 0,0002 | FA49: < 0,0002 | FD49: < 0,0002 | FE49: < 0,0002 | FF49: < 0,0002 | FK49: < 0,0002 | FL49: < 0,0002 | FM49: < 0,0002 | FP49: < 0,0002 | FQ49: < 0,0002 | FR49: < 0,0002 | FS49: < 0,0002
B50: Zink | C50: mg/l | CR50: 0,044 | FA50: 0,17 | FD50: 0,083 | FE50: 0,052 | FF50: 0,0063 | FK50: 0,071 | FL50: 0,041 | FM50: 0,12 | FP50: 0,066 | FQ50: 0,017 | FR50: 0,065 | FS50: 0,92
B51: Gesamt-Kohlenwasserstoffe | C51: mg/l | AO51: < 0,05 | AP51: < 0,05 | AQ51: < 0,05 | AR51: < 0,05 | AS51: < 0,05 | AT51: < 0,05 | AU51: < 0,05 | AV51: < 0,05
B52: KW-Index | C52: mg/l | AO52: < 0,1 | AP52: < 0,1 | AQ52: < 0,1 | AR52: < 0,1 | AS52: < 0,1 | AT52: < 0,1 | AU52: < 0,1 | AV52: < 0,1 | CT52: < 0,1 | CU52: < 0,1 | CV52: < 0,1 | CW52: < 0,1 | CX52: < 0,1 | CY52: < 0,1 | CZ52: < 0,1 | DA52: < 0,1 | DB52: < 0,1 | DD52: < 0,1 | DH52: < 0,1 | DL52: < 0,1 | DN52: < 0,1 | FA52: < 0,1 | FD52: < 0,1 | FE52: < 0,1 | FF52: < 0,1 | FK52: < 0,1 | FL52: < 0,1 | FM52: < 0,1 | FP52: < 0,1 | FQ52: < 0,1 | FR52: < 0,1 | FS52: 0,32
B53: BTEX | C53: µg/l | CT53: < 1 | CU53: < 1 | CV53: < 1 | CW53: < 1 | CX53: < 1 | CY53: < 1 | CZ53: < 1 | DA53: < 1 | DB53: < 1 | DD53: < 1 | DE53: < 1 | DF53: < 1 | DG53: < 1 | DH53: < 1 | DI53: < 1 | DJ53: < 1 | DK53: < 1 | DL53: < 1 | DM53: < 1 | DN53: < 1
B54: Benzol | C54: µg/l | CT54: < 1 | CU54: < 1 | CV54: < 1 | CW54: < 1 | CX54: < 1 | CY54: < 1 | CZ54: < 1 | DA54: < 1 | DB54: < 1 | DD54: < 1 | DE54: < 1 | DF54: < 1 | DG54: < 1 | DH54: < 1 | DI54: < 1 | DJ54: < 1 | DK54: < 1 | DL54: < 1 | DM54: < 1 | DN54: < 1
B55: Toluol | C55: µg/l | CT55: < 1 | CU55: < 1 | CV55: < 1 | CW55: < 1 | CX55: < 1 | CY55: < 1 | CZ55: < 1 | DA55: < 1 | DB55: < 1 | DD55: < 1 | DE55: < 1 | DF55: < 1 | DG55: < 1 | DH55: < 1 | DI55: < 1 | DJ55: < 1 | DK55: < 1 | DL55: < 1 | DM55: < 1 | DN55: < 1
B56: 1,2-Dimethylbenzol | C56: µg/l | CT56: < 1 | CU56: < 1 | CV56: < 1 | CW56: < 1 | CX56: < 1 | CY56: < 1 | CZ56: < 1 | DA56: < 1 | DB56: < 1 | DD56: < 1 | DE56: < 1 | DF56: < 1 | DG56: < 1 | DH56: < 1 | DI56: < 1 | DJ56: < 1 | DK56: < 1 | DL56: < 1 | DM56: < 1 | DN56: < 1
B57: 1,3- und 1,4-Dimethylbenzol | C57: µg/l | CT57: < 1 | CU57: < 1 | CV57: < 1 | CW57: < 1 | CX57: < 1 | CY57: < 1 | CZ57: < 1 | DA57: < 1 | DB57: < 1 | DD57: < 1 | DE57: < 1 | DF57: < 1 | DG57: < 1 | DH57: < 1 | DI57: < 1 | DJ57: < 1 | DK57: < 1 | DL57: < 1 | DM57: < 1 | DN57: < 1
B58: Ethylbenzol | C58: µg/l | CT58: < 1 | CU58: < 1 | CV58: < 1 | CW58: < 1 | CX58: < 1 | CY58: < 1 | CZ58: < 1 | DA58: < 1 | DB58: < 1 | DD58: < 1 | DE58: < 1 | DF58: < 1 | DG58: < 1 | DH58: < 1 | DI58: < 1 | DJ58: < 1 | DK58: < 1 | DL58: < 1 | DM58: < 1 | DN58: < 1
B59: AOF | C59: µg/l | CV59: 2,5 | CY59: 2,2 | DA59: < 1 | DG59: 2,2 | DK59: < 0,1 | DM59: < 1
B60: anionische Tenside | C60: mg/l | AO60: < 0,1 | AP60: < 0,1 | AQ60: < 0,1 | AR60: < 0,1 | AS60: < 0,1 | AT60: < 0,1 | AU60: < 0,1 | AV60: < 0,1
B61: nichtionische Tenside | C61: mg/l | AO61: < 0,1 | AP61: < 0,1 | AQ61: < 0,1 | AR61: < 0,1 | AS61: < 0,1 | AT61: < 0,1 | AU61: < 0,1 | AV61: < 0,1
B62: Perfluorbutansäure (PFBA) | C62: µg/l | D62: < 0,01 | E62: 0,04 | F62: < 0,01 | G62: 0,01 | H62: < 0,01 | I62: < 0,01 | J62: < 0,01 | K62: 0,04 | L62: < 0,01 | M62: 0,01 | N62: < 0,01 | O62: < 0,01 | P62: < 0,01 | Q62: 0,03 | R62: < 0,01 | S62: < 0,01 | T62: < 0,01 | U62: < 0,01 | V62: < 0,01 | W62: < 0,01 | X62: 0,02 | Y62: 0,01 | Z62: < 0,01 | AA62: < 0,01 | AB62: < 0,01 | AC62: 0,01 | AD62: 0,06 | AE62: < 0,01 | AF62: < 0,01 | AG62: 0,02 | AH62: < 0,01 | AI62: < 0,01 | AJ62: 0,07 | AK62: < 0,01 | AL62: 0,01 | AM62: 0,02 | AN62: < 0,01 | AO62: < 0,01 | AP62: 0,03 | AQ62: 0,04 | AR62: < 0,01 | AS62: 0,01 | AT62: 0,02 | AU62: 0,01 | AV62: < 0,01 | AW62: < 0,01 | AX62: < 0,01 | AY62: 0,03 | AZ62: < 0,01 | BA62: 0,01 | BB62: 0,02 | BC62: 0,02 | BD62: < 0,01 | BE62: < 0,01 | BF62: 0,02 | BG62: < 0,01 | BH62: 0,01 | BI62: 0,02 | BJ62: 0,02 | BK62: 0,02 | BL62: < 0,01 | BM62: < 0,01 | BN62: 0,03 | BO62: < 0,01 | BP62: 0,01 | BQ62: 0,01 | BR62: 0,02 | BS62: 0,02 | BT62: 0,01 | BU62: < 0,01 | BV62: 0,02 | BW62: 0,03 | BX62: < 0,01 | BY62: < 0,01 | BZ62: 0,02 | CA62: 0,02 | CB62: 0,04 | CC62: 0,05 | CD62: < 0,01 | CE62: 0,01 | CF62: 0,03 | CG62: < 0,01 | CH62: < 0,01 | CI62: 0,02 | CJ62: 0,02 | CK62: 0,04 | CL62: < 0,01 | CM62: 0,02 | CN62: 0,01 | CO62: 0,02 | CP62: < 0,01 | CQ62: 0,02 | CS62: 0,02 | CT62: < 0,01 | CU62: < 0,01 | CV62: 0,027 | CW62: 0,014 | CX62: < 0,01 | CY62: 0,017 | CZ62: 0,021 | DA62: < 0,01 | DB62: < 0,01 | DC62: 0,029 | DD62: < 0,01 | DE62: < 0,01 | DF62: < 0,01 | DG62: < 0,02 | DH62: < 0,01 | DI62: < 0,01 | DJ62: < 0,01 | DK62: < 0,02 | DL62: < 0,02 | DM62: < 0,01 | DN62: < 0,01 | DO62: 0,039 | DP62: 0,026 | DQ62: 0,033 | DR62: 0,022 | DS62: 0,017 | DT62: 0,012 | DU62: 0,045 | DV62: 0,022 | DW62: 0,028 | DX62: 0,022 | DY62: 0,03 | DZ62: 0,03 | EA62: 0,02 | EB62: 0,02 | EC62: 0,04 | ED62: 0,01 | EE62: < 0,01 | EF62: 0,01 | EG62: 0,02 | EH62: < 0,01 | EI62: < 0,01 | EJ62: < 0,01 | EK62: 0,01 | EL62: 0,01 | EM62: < 0,01 | EN62: < 0,01 | EO62: < 0,01 | EP62: < 0,01 | EQ62: < 0,01 | ER62: < 0,01 | ES62: < 0,01 | ET62: < 0,01 | EU62: < 0,01 | EV62: < 0,01 | EW62: < 0,01 | EX62: 0,05 | EY62: < 0,01 | EZ62: < 0,01 | FA62: < 0,01 | FB62: 0,04 | FC62: < 0,01 | FD62: < 0,01 | FE62: 0,01 | FF62: < 0,01 | FG62: < 0,01 | FH62: < 0,01 | FI62: < 0,01 | FJ62: < 0,01 | FK62: < 0,01 | FL62: < 0,01 | FM62: < 0,01 | FN62: < 0,01 | FO62: < 0,01 | FP62: < 0,01 | FQ62: < 0,01 | FR62: < 0,01 | FS62: < 0,01 | FT62: 0,01 | FU62: < 0,01 | FV62: 0,03 | FW62: < 0,01 | FX62: 0,01 | FY62: < 0,01 | FZ62: 0,02 | GA62: 0,02 | GB62: < 0,01 | GC62: < 0,01 | GD62: < 0,01 | GE62: < 0,01 | GF62: < 0,01 | GG62: < 0,01 | GH62: < 0,02 | GI62: 0,02 | GJ62: 0,01 | GK62: < 0,01 | GL62: 0,01 | GM62: < 0,01 | GN62: < 0,02 | GO62: 0,01 | GP62: < 0,01 | GQ62: < 0,01 | GR62: < 0,01 | GS62: 0,01 | GT62: < 0,01 | GU62: < 0,01 | GV62: 0,01 | GW62: 0,01 | GX62: < 0,01 | GY62: 0,01 | GZ62: < 0,1 | HA62: 0,02 | HB62: < 0,05 | HC62: < 0,05 | HD62: < 0,05 | HE62: < 0,05 | HF62: < 0,1 | HG62: < 0,01 | HH62: 0,01 | HI62: < 0,01 | HJ62: < 0,01
B63: Perfluorbutansulfonsäure (PFBS) | C63: µg/l | D63: < 0,01 | E63: 0,03 | F63: < 0,01 | G63: < 0,01 | H63: < 0,01 | I63: < 0,01 | J63: < 0,01 | K63: 0,03 | L63: < 0,01 | M63: < 0,01 | N63: < 0,01 | O63: < 0,01 | P63: < 0,01 | Q63: 0,06 | R63: < 0,01 | S63: < 0,01 | T63: < 0,01 | U63: < 0,01 | V63: 0,01 | W63: < 0,01 | X63: 0,03 | Y63: 0,02 | Z63: < 0,01 | AA63: < 0,01 | AB63: < 0,01 | AC63: 0,04 | AD63: 0,1 | AE63: < 0,01 | AF63: < 0,01 | AG63: < 0,01 | AH63: < 0,01 | AI63: 0,02 | AJ63: 0,12 | AK63: 0,01 | AL63: 0,02 | AM63: 0,03 | AN63: 0,01 | AO63: < 0,01 | AP63: 0,03 | AQ63: 0,05 | AR63: < 0,01 | AS63: 0,01 | AT63: 0,02 | AU63: 0,01 | AV63: < 0,01 | AW63: < 0,01 | AX63: 0,02 | AY63: 0,05 | AZ63: < 0,01 | BA63: 0,01 | BB63: 0,01 | BC63: 0,02 | BD63: < 0,01 | BE63: < 0,01 | BF63: 0,03 | BG63: < 0,01 | BH63: 0,01 | BI63: 0,02 | BJ63: < 0,01 | BK63: 0,02 | BL63: < 0,01 | BM63: < 0,01 | BN63: 0,04 | BO63: < 0,01 | BP63: 0,01 | BQ63: 0,01 | BR63: < 0,01 | BS63: 0,03 | BT63: 0,01 | BU63: < 0,01 | BV63: 0,04 | BW63: 0,04 | BX63: < 0,01 | BY63: 0,01 | BZ63: 0,01 | CA63: < 0,01 | CB63: 0,06 | CC63: 0,07 | CD63: < 0,01 | CE63: 0,02 | CF63: 0,04 | CG63: < 0,01 | CH63: < 0,01 | CI63: 0,01 | CJ63: < 0,01 | CK63: 0,04 | CL63: < 0,01 | CM63: 0,02 | CN63: 0,01 | CO63: 0,01 | CP63: < 0,01 | CQ63: < 0,01 | CS63: 0,02 | CT63: < 0,01 | CU63: 0,010 | CV63: 0,024 | CW63: 0,010 | CX63: < 0,01 | CY63: 0,011 | CZ63: < 0,01 | DA63: < 0,01 | DB63: < 0,01 | DC63: 0,029 | DD63: 0,014 | DE63: < 0,01 | DF63: < 0,01 | DG63: 0,013 | DH63: < 0,01 | DI63: < 0,01 | DJ63: < 0,01 | DK63: < 0,01 | DL63: < 0,01 | DM63: < 0,01 | DN63: < 0,01 | DO63: 0,011 | DP63: < 0,01 | DQ63: < 0,01 | DR63: < 0,01 | DS63: 0,018 | DT63: < 0,01 | DU63: 0,30 | DV63: 0,011 | DW63: < 0,01 | DX63: 0,031 | DY63: 0,02 | DZ63: 0,04 | EA63: < 0,01 | EB63: 0,05 | EC63: 0,05 | ED63: < 0,01 | EE63: < 0,01 | EF63: 0,01 | EG63: < 0,01 | EH63: 0,01 | EI63: < 0,01 | EJ63: < 0,01 | EK63: 0,02 | EL63: 0,02 | EM63: 0,02 | EN63: < 0,01 | EO63: < 0,01 | EP63: < 0,01 | EQ63: < 0,01 | ER63: 0,01 | ES63: < 0,01 | ET63: < 0,01 | EU63: < 0,01 | EV63: < 0,01 | EW63: 0,02 | EX63: 0,07 | EY63: < 0,01 | EZ63: 0,01 | FA63: < 0,01 | FB63: 0,05 | FC63: < 0,01 | FD63: < 0,01 | FE63: < 0,01 | FF63: < 0,01 | FG63: < 0,01 | FH63: < 0,01 | FI63: < 0,01 | FJ63: < 0,01 | FK63: < 0,01 | FL63: < 0,01 | FM63: < 0,01 | FN63: < 0,01 | FO63: < 0,01 | FP63: < 0,01 | FQ63: < 0,01 | FR63: < 0,01 | FS63: < 0,01 | FT63: < 0,01 | FU63: 0,01 | FV63: 0,04 | FW63: < 0,01 | FX63: 0,01 | FY63: < 0,01 | FZ63: 0,01 | GA63: < 0,01 | GB63: < 0,01 | GC63: < 0,01 | GD63: < 0,01 | GE63: < 0,01 | GF63: < 0,01 | GG63: < 0,01 | GH63: < 0,01 | GI63: 0,02 | GJ63: < 0,01 | GK63: < 0,01 | GL63: < 0,01 | GM63: 0,01 | GN63: 0,01 | GO63: 0,01 | GP63: < 0,01 | GQ63: < 0,01 | GR63: < 0,01 | GS63: < 0,01 | GT63: 0,01 | GU63: < 0,01 | GV63: 0,02 | GW63: 0,01 | GX63: < 0,01 | GY63: 0,02 | GZ63: < 0,01 | HA63: 0,02 | HB63: < 0,01 | HC63: < 0,01 | HD63: < 0,01 | HE63: < 0,05 | HF63: < 0,01 | HG63: < 0,01 | HH63: < 0,01 | HI63: < 0,01 | HJ63: 0,01
B64: Perfluorpentansäure (PFPeA) | C64: µg/l | D64: 0,01 | E64: 0,16 | F64: < 0,01 | G64: 0,02 | H64: < 0,01 | I64: 0,02 | J64: < 0,01 | K64: 0,14 | L64: < 0,01 | M64: 0,02 | N64: < 0,01 | O64: 0,02 | P64: 0,03 | Q64: 0,16 | R64: 0,02 | S64: < 0,01 | T64: < 0,01 | U64: 0,01 | V64: 0,02 | W64: < 0,01 | X64: 0,04 | Y64: 0,05 | Z64: < 0,01 | AA64: < 0,01 | AB64: < 0,01 | AC64: 0,03 | AD64: 0,24 | AE64: < 0,01 | AF64: < 0,01 | AG64: < 0,01 | AH64: 0,02 | AI64: 0,02 | AJ64: 0,30 | AK64: 0,02 | AL64: 0,02 | AM64: 0,05 | AN64: 0,01 | AO64: 0,03 | AP64: 0,11 | AQ64: 0,15 | AR64: 0,02 | AS64: 0,02 | AT64: 0,04 | AU64: 0,05 | AV64: 0,01 | AW64: 0,01 | AX64: 0,03 | AY64: 0,12 | AZ64: 0,02 | BA64: 0,01 | BB64: 0,08 | BC64: 0,03 | BD64: 0,02 | BE64: < 0,01 | BF64: 0,07 | BG64: 0,01 | BH64: 0,02 | BI64: 0,03 | BJ64: 0,07 | BK64: 0,05 | BL64: < 0,01 | BM64: < 0,01 | BN64: 0,09 | BO64: 0,01 | BP64: 0,02 | BQ64: 0,03 | BR64: 0,09 | BS64: 0,09 | BT64: 0,04 | BU64: 0,02 | BV64: 0,06 | BW64: 0,08 | BX64: 0,01 | BY64: 0,02 | BZ64: 0,04 | CA64: 0,08 | CB64: 0,16 | CC64: 0,18 | CD64: 0,02 | CE64: 0,04 | CF64: 0,11 | CG64: < 0,01 | CH64: 0,01 | CI64: 0,05 | CJ64: 0,07 | CK64: 0,14 | CL64: 0,02 | CM64: 0,08 | CN64: 0,02 | CO64: 0,03 | CP64: < 0,01 | CQ64: 0,07 | CS64: 0,07 | CT64: 0,020 | CU64: 0,012 | CV64: 0,067 | CW64: 0,016 | CX64: 0,013 | CY64: 0,027 | CZ64: 0,076 | DA64: 0,011 | DB64: < 0,01 | DC64: 0,088 | DD64: < 0,01 | DE64: < 0,05 | DF64: 0,092 | DG64: 0,059 | DH64: < 0,01 | DI64: < 0,02 | DJ64: < 0,01 | DK64: < 0,05 | DL64: < 0,1 | DM64: 0,012 | DN64: < 0,01 | DO64: 0,062 | DP64: 0,027 | DQ64: 0,046 | DR64: 0,033 | DS64: 0,016 | DT64: 0,023 | DU64: 0,056 | DV64: 0,091 | DW64: 0,073 | DX64: 0,072 | DY64: 0,06 | DZ64: 0,10 | EA64: 0,01 | EB64: 0,05 | EC64: 0,17 | ED64: 0,01 | EE64: 0,01 | EF64: 0,03 | EG64: 0,06 | EH64: 0,01 | EI64: < 0,01 | EJ64: 0,01 | EK64: 0,02 | EL64: 0,02 | EM64: < 0,01 | EN64: < 0,01 | EO64: < 0,01 | EP64: < 0,01 | EQ64: < 0,01 | ER64: 0,01 | ES64: 0,02 | ET64: < 0,01 | EU64: < 0,01 | EV64: 0,01 | EW64: 0,01 | EX64: 0,18 | EY64: < 0,01 | EZ64: 0,01 | FA64: < 0,01 | FB64: 0,14 | FC64: < 0,01 | FD64: < 0,01 | FE64: < 0,01 | FF64: < 0,01 | FG64: < 0,01 | FH64: < 0,01 | FI64: < 0,01 | FJ64: < 0,01 | FK64: < 0,01 | FL64: < 0,01 | FM64: < 0,01 | FN64: < 0,01 | FO64: < 0,01 | FP64: < 0,01 | FQ64: < 0,01 | FR64: < 0,01 | FS64: < 0,01 | FT64: 0,03 | FU64: 0,04 | FV64: 0,10 | FW64: 0,01 | FX64: 0,02 | FY64: 0,02 | FZ64: 0,02 | GA64: 0,06 | GB64: 0,01 | GC64: < 0,01 | GD64: < 0,01 | GE64: < 0,01 | GF64: < 0,01 | GG64: < 0,01 | GH64: < 0,01 | GI64: 0,07 | GJ64: 0,08 | GK64: 0,02 | GL64: 0,03 | GM64: 0,01 | GN64: 0,02 | GO64: 0,02 | GP64: < 0,01 | GQ64: < 0,01 | GR64: 0,01 | GS64: 0,04 | GT64: 0,01 | GU64: 0,03 | GV64: 0,02 | GW64: 0,02 | GX64: 0,02 | GY64: 0,02 | GZ64: < 0,05 | HA64: 0,07 | HB64: < 0,05 | HC64: < 0,05 | HD64: < 0,05 | HE64: < 0,05 | HF64: < 0,1 | HG64: 0,01 | HH64: < 0,01 | HI64: < 0,01 | HJ64: < 0,01
B65: Perfluorpentansulfonsäure (PFPeS) | C65: µg/l | DY65: 0,03 | DZ65: 0,07 | EA65: < 0,01 | EB65: 0,07 | EC65: 0,10 | ED65: < 0,01 | EE65: 0,01 | EF65: 0,02 | EG65: < 0,01 | EH65: 0,01 | EI65: < 0,01 | EJ65: 0,01 | EK65: 0,02 | EL65: 0,02 | EM65: 0,01 | EN65: < 0,01 | EO65: < 0,01 | EP65: < 0,01 | EQ65: < 0,01 | ER65: 0,01 | ES65: < 0,01 | ET65: < 0,01 | EU65: < 0,01 | EV65: < 0,01 | EW65: 0,01 | EX65: 0,16 | EY65: < 0,01 | EZ65: 0,01 | FA65: < 0,01 | FB65: 0,13 | FC65: < 0,01 | FD65: < 0,01 | FE65: < 0,01 | FF65: < 0,01 | FG65: < 0,01 | FH65: < 0,01 | FI65: < 0,01 | FJ65: < 0,01 | FK65: < 0,01 | FL65: < 0,01 | FM65: < 0,01 | FN65: < 0,01 | FO65: < 0,01 | FP65: < 0,01 | FQ65: < 0,01 | FR65: < 0,01 | FS65: < 0,01 | FT65: < 0,01 | FU65: < 0,01 | FV65: 0,09 | FW65: < 0,01 | FX65: 0,02 | FY65: < 0,01 | FZ65: 0,02 | GA65: 0,02 | GB65: 0,01 | GC65: < 0,01 | GD65: < 0,01 | GE65: < 0,01 | GF65: < 0,01 | GG65: < 0,01 | GH65: < 0,01 | GI65: 0,06 | GJ65: < 0,01 | GK65: < 0,01 | GL65: < 0,01 | GM65: 0,02 | GN65: 0,02 | GO65: 0,02 | GP65: < 0,01 | GQ65: < 0,01 | GR65: < 0,01 | GS65: < 0,01 | GT65: 0,02 | GU65: < 0,01 | GV65: 0,03 | GW65: 0,02 | GX65: < 0,01 | GY65: 0,02 | GZ65: < 0,01 | HA65: 0,04 | HB65: < 0,01 | HC65: < 0,01 | HD65: < 0,01 | HE65: < 0,01 | HF65: < 0,01 | HG65: 0,01 | HH65: < 0,01 | HI65: < 0,01 | HJ65: < 0,01
B66: Perfluorhexansäure (PFHxA) | C66: µg/l | D66: 0,02 | E66: 0,29 | F66: < 0,01 | G66: 0,04 | H66: < 0,01 | I66: 0,02 | J66: < 0,01 | K66: 0,25 | L66: < 0,01 | M66: 0,04 | N66: < 0,01 | O66: 0,02 | P66: 0,02 | Q66: 0,13 | R66: < 0,01 | S66: < 0,01 | T66: < 0,01 | U66: 0,01 | V66: 0,03 | W66: < 0,01 | X66: 0,06 | Y66: 0,05 | Z66: 0,01 | AA66: < 0,01 | AB66: < 0,01 | AC66: 0,07 | AD66: 0,36 | AE66: < 0,01 | AF66: < 0,01 | AG66: < 0,01 | AH66: 0,01 | AI66: 0,03 | AJ66: 0,45 | AK66: 0,02 | AL66: 0,04 | AM66: 0,06 | AN66: 0,02 | AO66: 0,02 | AP66: 0,11 | AQ66: 0,26 | AR66: 0,02 | AS66: 0,04 | AT66: 0,06 | AU66: 0,05 | AV66: 0,02 | AW66: < 0,01 | AX66: 0,04 | AY66: 0,23 | AZ66: 0,02 | BA66: 0,03 | BB66: 0,08 | BC66: 0,05 | BD66: < 0,01 | BE66: < 0,01 | BF66: 0,14 | BG66: 0,01 | BH66: 0,04 | BI66: 0,05 | BJ66: 0,06 | BK66: 0,10 | BL66: < 0,01 | BM66: < 0,01 | BN66: 0,19 | BO66: 0,01 | BP66: 0,03 | BQ66: 0,04 | BR66: 0,07 | BS66: 0,17 | BT66: 0,08 | BU66: 0,02 | BV66: 0,10 | BW66: 0,20 | BX66: 0,01 | BY66: 0,03 | BZ66: 0,06 | CA66: 0,06 | CB66: 0,35 | CC66: 0,41 | CD66: 0,02 | CE66: 0,06 | CF66: 0,26 | CG66: 0,01 | CH66: 0,02 | CI66: 0,07 | CJ66: 0,06 | CK66: 0,26 | CL66: 0,02 | CM66: 0,16 | CN66: 0,03 | CO66: 0,04 | CP66: 0,01 | CQ66: 0,06 | CS66: 0,12 | CT66: 0,012 | CU66: 0,019 | CV66: 0,15 | CW66: 0,030 | CX66: 0,014 | CY66: 0,036 | CZ66: 0,070 | DA66: 0,020 | DB66: < 0,01 | DC66: 0,180 | DD66: 0,020 | DE66: 0,015 | DF66: 0,041 | DG66: 0,079 | DH66: < 0,01 | DI66: 0,013 | DJ66: 0,017 | DK66: 0,017 | DL66: 0,059 | DM66: 0,020 | DN66: 0,016 | DO66: 0,099 | DP66: 0,032 | DQ66: 0,038 | DR66: 0,044 | DS66: 0,055 | DT66: 0,040 | DU66: 0,22 | DV66: 0,043 | DW66: 0,045 | DX66: 0,140 | DY66: 0,07 | DZ66: 0,13 | EA66: 0,01 | EB66: 0,10 | EC66: 0,27 | ED66: 0,01 | EE66: 0,02 | EF66: 0,03 | EG66: 0,05 | EH66: 0,02 | EI66: 0,01 | EJ66: 0,02 | EK66: 0,04 | EL66: 0,05 | EM66: 0,03 | EN66: < 0,01 | EO66: < 0,01 | EP66: < 0,01 | EQ66: < 0,01 | ER66: 0,03 | ES66: 0,02 | ET66: < 0,01 | EU66: < 0,01 | EV66: 0,02 | EW66: 0,03 | EX66: 0,37 | EY66: < 0,01 | EZ66: 0,02 | FA66: < 0,01 | FB66: 0,27 | FC66: < 0,01 | FD66: < 0,01 | FE66: < 0,01 | FF66: < 0,01 | FG66: < 0,01 | FH66: < 0,01 | FI66: < 0,01 | FJ66: 0,01 | FK66: 0,01 | FL66: < 0,01 | FM66: < 0,01 | FN66: < 0,01 | FO66: < 0,01 | FP66: 0,02 | FQ66: < 0,01 | FR66: < 0,01 | FS66: < 0,01 | FT66: 0,02 | FU66: 0,03 | FV66: 0,19 | FW66: 0,01 | FX66: 0,03 | FY66: 0,02 | FZ66: 0,03 | GA66: 0,06 | GB66: 0,02 | GC66: < 0,01 | GD66: < 0,01 | GE66: < 0,01 | GF66: < 0,01 | GG66: < 0,01 | GH66: 0,01 | GI66: 0,16 | GJ66: 0,04 | GK66: 0,03 | GL66: 0,03 | GM66: 0,03 | GN66: 0,03 | GO66: 0,04 | GP66: < 0,01 | GQ66: < 0,01 | GR66: 0,01 | GS66: 0,03 | GT66: 0,02 | GU66: 0,02 | GV66: 0,04 | GW66: 0,04 | GX66: 0,01 | GY66: 0,03 | GZ66: < 0,02 | HA66: 0,12 | HB66: < 0,05 | HC66: < 0,05 | HD66: < 0,05 | HE66: < 0,05 | HF66: < 0,1 | HG66: 0,02 | HH66: < 0,01 | HI66: 0,01 | HJ66: < 0,01
B67: Perfluorhexansulfonsäure (PFHxS) | C67: µg/l | D67: 0,07 | E67: 0,7 | F67: < 0,01 | G67: 0,13 | H67: < 0,01 | I67: 0,09 | J67: 0,03 | K67: 0,68 | L67: < 0,01 | M67: 0,13 | N67: < 0,01 | O67: 0,09 | P67: 0,07 | Q67: 0,42 | R67: < 0,01 | S67: < 0,01 | T67: < 0,01 | U67: 0,06 | V67: 0,10 | W67: < 0,01 | X67: 0,20 | Y67: 0,12 | Z67: 0,08 | AA67: < 0,01 | AB67: < 0,01 | AC67: 0,37 | AD67: 0,98 | AE67: < 0,01 | AF67: < 0,01 | AG67: < 0,01 | AH67: 0,02 | AI67: 0,12 | AJ67: 1,40 | AK67: 0,08 | AL67: 0,14 | AM67: 0,19 | AN67: 0,10 | AO67: 0,07 | AP67: 0,28 | AQ67: 0,85 | AR67: 0,08 | AS67: 0,13 | AT67: 0,20 | AU67: 0,11 | AV67: 0,09 | AW67: 0,03 | AX67: 0,13 | AY67: 0,75 | AZ67: 0,07 | BA67: 0,12 | BB67: 0,18 | BC67: 0,17 | BD67: 0,02 | BE67: 0,02 | BF67: 0,43 | BG67: 0,07 | BH67: 0,14 | BI67: 0,16 | BJ67: 0,11 | BK67: 0,28 | BL67: 0,01 | BM67: 0,01 | BN67: 0,57 | BO67: 0,07 | BP67: 0,13 | BQ67: 0,15 | BR67: 0,11 | BS67: 0,47 | BT67: 0,17 | BU67: 0,07 | BV67: 0,32 | BW67: 0,50 | BX67: 0,07 | BY67: 0,11 | BZ67: 0,18 | CA67: 0,09 | CB67: 1,1 | CC67: 1,2 | CD67: 0,08 | CE67: 0,25 | CF67: 0,82 | CG67: 0,06 | CH67: 0,08 | CI67: 0,18 | CJ67: 0,13 | CK67: 0,78 | CL67: 0,08 | CM67: 0,48 | CN67: 0,12 | CO67: 0,14 | CP67: 0,07 | CQ67: 0,11 | CS67: 0,23 | CT67: 0,017 | CU67: 0,024 | CV67: 0,26 | CW67: 0,120 | CX67: 0,080 | CY67: 0,13 | CZ67: 0,095 | DA67: 0,10 | DB67: 0,022 | DC67: 0,310 | DD67: 0,080 | DE67: 0,027 | DF67: 0,081 | DG67: 0,26 | DH67: 0,017 | DI67: 0,074 | DJ67: 0,088 | DK67: 0,087 | DL67: 0,083 | DM67: 0,13 | DN67: 0,078 | DO67: 0,22 | DP67: 0,078 | DQ67: 0,075 | DR67: 0,075 | DS67: 0,14 | DT67: 0,13 | DU67: 0,93 | DV67: 0,054 | DW67: 0,051 | DX67: 0,360 | DY67: 0,27 | DZ67: 0,50 | EA67: 0,09 | EB67: 0,49 | EC67: 0,86 | ED67: 0,06 | EE67: 0,11 | EF67: 0,16 | EG67: 0,10 | EH67: 0,09 | EI67: 0,02 | EJ67: 0,08 | EK67: 0,18 | EL67: 0,21 | EM67: 0,04 | EN67: < 0,01 | EO67: < 0,01 | EP67: < 0,01 | EQ67: < 0,01 | ER67: 0,12 | ES67: 0,05 | ET67: < 0,01 | EU67: < 0,01 | EV67: 0,09 | EW67: 0,12 | EX67: 1,0 | EY67: < 0,01 | EZ67: 0,08 | FA67: 0,01 | FB67: 0,84 | FC67: 0,01 | FD67: 0,02 | FE67: < 0,01 | FF67: < 0,01 | FG67: 0,02 | FH67: < 0,01 | FI67: < 0,01 | FJ67: 0,02 | FK67: 0,03 | FL67: < 0,01 | FM67: < 0,01 | FN67: < 0,01 | FO67: < 0,01 | FP67: 0,04 | FQ67: < 0,01 | FR67: < 0,01 | FS67: 0,02 | FT67: 0,06 | FU67: 0,08 | FV67: 0,80 | FW67: 0,09 | FX67: 0,14 | FY67: 0,04 | FZ67: 0,15 | GA67: 0,15 | GB67: 0,09 | GC67: 0,02 | GD67: < 0,01 | GE67: < 0,01 | GF67: < 0,01 | GG67: 0,03 | GH67: 0,03 | GI67: 0,37 | GJ67: 0,03 | GK67: 0,04 | GL67: 0,05 | GM67: 0,11 | GN67: 0,10 | GO67: 0,13 | GP67: < 0,01 | GQ67: < 0,01 | GR67: 0,04 | GS67: 0,05 | GT67: 0,10 | GU67: 0,05 | GV67: 0,19 | GW67: 0,19 | GX67: 0,04 | GY67: 0,17 | GZ67: < 0,01 | HA67: 0,35 | HB67: 0,03 | HC67: < 0,01 | HD67: < 0,01 | HE67: < 0,01 | HF67: < 0,01 | HG67: 0,06 | HH67: < 0,01 | HI67: 0,04 | HJ67: 0,02
B68: 1H,1H,2H,2H-Perfluorhexansulfonsäure (H4PFHxS) | C68: µg/l | D68: < 0,05 | E68: < 0,05 | F68: < 0,05 | G68: < 0,05 | H68: < 0,05 | I68: < 0,05 | J68: < 0,05 | K68: < 0,05 | L68: < 0,05 | M68: < 0,05 | N68: < 0,05 | O68: < 0,05 | P68: < 0,05 | Q68: < 0,05 | R68: < 0,05 | S68: < 0,05 | T68: < 0,05 | U68: < 0,05 | V68: < 0,05 | W68: < 0,05 | X68: < 0,05 | Y68: < 0,05 | Z68: < 0,05 | AA68: < 0,05 | AB68: < 0,05 | AC68: < 0,05 | AD68: < 0,05 | AE68: < 0,05 | AF68: < 0,05 | AG68: < 0,05 | AH68: < 0,05 | AI68: < 0,05 | AJ68: < 0,05 | AK68: < 0,05 | AL68: < 0,05 | AM68: < 0,05 | AN68: < 0,05 | AO68: < 0,05 | AP68: < 0,05 | AQ68: < 0,05 | AR68: < 0,05 | AS68: < 0,05 | AT68: < 0,05 | AU68: < 0,05 | AV68: < 0,05 | AW68: < 0,05 | AX68: < 0,05 | AY68: < 0,05 | AZ68: < 0,05 | BA68: < 0,05 | BB68: < 0,05 | BC68: < 0,05 | BD68: < 0,01 | BE68: < 0,01 | BF68: < 0,01 | BG68: < 0,01 | BH68: < 0,01 | BI68: < 0,01 | BJ68: < 0,01 | BK68: < 0,01 | BL68: < 0,01 | BM68: < 0,01 | BN68: < 0,01 | BO68: < 0,01 | BP68: < 0,01 | BQ68: < 0,01 | BR68: < 0,01 | BS68: < 0,01 | BT68: < 0,01 | BU68: < 0,01 | BV68: < 0,01 | BW68: < 0,01 | BX68: < 0,01 | BY68: < 0,01 | BZ68: < 0,01 | CA68: < 0,01 | CB68: < 0,01 | CC68: < 0,01 | CD68: < 0,01 | CE68: < 0,01 | CF68: < 0,01 | CG68: < 0,01 | CH68: < 0,01 | CI68: < 0,01 | CJ68: < 0,01 | CK68: < 0,01 | CL68: < 0,01 | CM68: < 0,01 | CN68: < 0,01 | CO68: < 0,01 | CP68: < 0,01 | CQ68: < 0,01 | CS68: < 0,01 | CT68: < 0,01 | CU68: < 0,01 | CV68: < 0,01 | CW68: < 0,01 | CX68: < 0,01 | CY68: < 0,01 | CZ68: < 0,01 | DA68: < 0,01 | DB68: < 0,01 | DC68: < 0,01 | DD68: < 0,01 | DE68: < 0,01 | DF68: < 0,01 | DG68: < 0,01 | DH68: < 0,01 | DI68: < 0,01 | DJ68: < 0,01 | DK68: < 0,01 | DL68: < 0,01 | DM68: < 0,01 | DN68: < 0,01 | DO68: < 0,01 | DP68: < 0,01 | DQ68: < 0,01 | DR68: < 0,01 | DS68: < 0,01 | DT68: < 0,01 | DU68: < 0,01 | DV68: < 0,01 | DW68: < 0,01 | DX68: < 0,01 | DY68: < 0,01 | DZ68: < 0,01
B69: Perfluorheptansäure (PFHpA) | C69: µg/l | D69: < 0,01 | E69: 0,06 | F69: < 0,01 | G69: 0,01 | H69: < 0,01 | I69: 0,01 | J69: < 0,01 | K69: 0,06 | L69: < 0,01 | M69: 0,01 | N69: < 0,01 | O69: 0,01 | P69: < 0,1 | Q69: 0,05 | R69: < 0,01 | S69: < 0,01 | T69: < 0,01 | U69: < 0,01 | V69: < 0,01 | W69: < 0,01 | X69: 0,02 | Y69: 0,02 | Z69: < 0,01 | AA69: < 0,01 | AB69: < 0,01 | AC69: 0,02 | AD69: 0,09 | AE69: < 0,01 | AF69: < 0,01 | AG69: < 0,01 | AH69: < 0,01 | AI69: 0,02 | AJ69: 0,11 | AK69: 0,01 | AL69: 0,01 | AM69: 0,02 | AN69: < 0,01 | AO69: < 0,01 | AP69: 0,04 | AQ69: 0,06 | AR69: < 0,01 | AS69: 0,01 | AT69: 0,02 | AU69: 0,02 | AV69: < 0,01 | AW69: < 0,01 | AX69: 0,02 | AY69: 0,06 | AZ69: < 0,01 | BA69: < 0,01 | BB69: 0,03 | BC69: 0,02 | BD69: < 0,01 | BE69: < 0,01 | BF69: 0,04 | BG69: < 0,01 | BH69: 0,01 | BI69: 0,02 | BJ69: 0,03 | BK69: 0,03 | BL69: < 0,01 | BM69: < 0,01 | BN69: 0,04 | BO69: < 0,01 | BP69: 0,01 | BQ69: 0,02 | BR69: 0,03 | BS69: 0,04 | BT69: 0,02 | BU69: < 0,01 | BV69: 0,03 | BW69: 0,05 | BX69: < 0,01 | BY69: 0,01 | BZ69: 0,02 | CA69: 0,03 | CB69: 0,08 | CC69: 0,09 | CD69: 0,01 | CE69: 0,02 | CF69: 0,06 | CG69: < 0,01 | CH69: < 0,01 | CI69: 0,02 | CJ69: 0,03 | CK69: 0,05 | CL69: < 0,01 | CM69: 0,03 | CN69: 0,01 | CO69: 0,02 | CP69: < 0,01 | CQ69: 0,03 | CS69: 0,03 | CT69: < 0,01 | CU69: < 0,01 | CV69: 0,030 | CW69: < 0,01 | CX69: < 0,01 | CY69: 0,014 | CZ69: 0,027 | DA69: < 0,01 | DB69: < 0,01 | DC69: 0,038 | DD69: < 0,01 | DE69: 0,010 | DF69: 0,021 | DG69: 0,019 | DH69: < 0,01 | DI69: 0,011 | DJ69: < 0,01 | DK69: 0,012 | DL69: 0,024 | DM69: < 0,01 | DN69: < 0,01 | DO69: 0,036 | DP69: 0,016 | DQ69: 0,019 | DR69: 0,028 | DS69: 0,027 | DT69: 0,018 | DU69: 0,083 | DV69: 0,035 | DW69: 0,027 | DX69: 0,028 | DY69: 0,03 | DZ69: 0,05 | EA69: < 0,01 | EB69: 0,04 | EC69: 0,07 | ED69: < 0,01 | EE69: < 0,01 | EF69: 0,02 | EG69: 0,03 | EH69: < 0,01 | EI69: < 0,01 | EJ69: < 0,01 | EK69: 0,01 | EL69: 0,02 | EM69: < 0,01 | EN69: < 0,01 | EO69: < 0,01 | EP69: < 0,01 | EQ69: < 0,01 | ER69: 0,01 | ES69: < 0,01 | ET69: < 0,01 | EU69: < 0,01 | EV69: < 0,01 | EW69: < 0,01 | EX69: 0,09 | EY69: < 0,01 | EZ69: < 0,01 | FA69: < 0,01 | FB69: 0,06 | FC69: < 0,01 | FD69: < 0,01 | FE69: < 0,01 | FF69: < 0,01 | FG69: < 0,01 | FH69: < 0,01 | FI69: < 0,01 | FJ69: < 0,01 | FK69: < 0,01 | FL69: < 0,01 | FM69: < 0,01 | FN69: < 0,01 | FO69: < 0,01 | FP69: < 0,01 | FQ69: < 0,01 | FR69: < 0,01 | FS69: < 0,01 | FT69: 0,01 | FU69: 0,01 | FV69: 0,04 | FW69: < 0,01 | FX69: 0,01 | FY69: < 0,01 | FZ69: 0,01 | GA69: 0,03 | GB69: < 0,01 | GC69: < 0,01 | GD69: < 0,01 | GE69: < 0,01 | GF69: < 0,01 | GG69: < 0,01 | GH69: < 0,01 | GI69: 0,04 | GJ69: < 0,01 | GK69: < 0,01 | GL69: 0,01 | GM69: 0,01 | GN69: 0,01 | GO69: 0,01 | GP69: < 0,01 | GQ69: < 0,01 | GR69: < 0,01 | GS69: 0,02 | GT69: < 0,01 | GU69: 0,01 | GV69: 0,01 | GW69: 0,01 | GX69: < 0,01 | GY69: 0,01 | GZ69: < 0,02 | HA69: 0,03 | HB69: < 0,05 | HC69: < 0,05 | HD69: < 0,05 | HE69: < 0,05 | HF69: < 0,1 | HG69: < 0,01 | HH69: < 0,01 | HI69: < 0,01 | HJ69: < 0,01
B70: Perfluorheptansulfonsäure (PFHpS) | C70: µg/l | CT70: < 0,01 | CU70: < 0,01 | CV70: 0,031 | CW70: 0,014 | CX70: < 0,01 | CY70: 0,015 | CZ70: < 0,01 | DA70: < 0,01 | DB70: < 0,01 | DC70: 0,031 | DD70: < 0,01 | DE70: < 0,01 | DF70: < 0,01 | DG70: 0,029 | DH70: < 0,01 | DI70: < 0,01 | DJ70: < 0,01 | DK70: < 0,01 | DL70: < 0,01 | DM70: 0,014 | DN70: < 0,01 | DO70: 0,10 | DP70: < 0,01 | DQ70: < 0,01 | DR70: < 0,01 | DS70: 0,010 | DT70: 0,016 | DU70: 0,070 | DV70: < 0,01 | DW70: < 0,01 | DX70: 0,035 | DY70: 0,02 | DZ70: 0,04 | EA70: < 0,01 | EB70: 0,04 | EC70: 0,10 | ED70: < 0,01 | EE70: < 0,01 | EF70: 0,01 | EG70: < 0,01 | EH70: < 0,01 | EI70: < 0,01 | EJ70: < 0,01 | EK70: 0,01 | EL70: 0,01 | EM70: < 0,01 | EN70: < 0,01 | EO70: < 0,01 | EP70: < 0,01 | EQ70: < 0,01 | ER70: < 0,01 | ES70: < 0,01 | ET70: < 0,01 | EU70: < 0,01 | EV70: < 0,01 | EW70: < 0,01 | EX70: 0,15 | EY70: < 0,01 | EZ70: < 0,01 | FA70: < 0,01 | FB70: 0,14 | FC70: < 0,01 | FD70: < 0,01 | FE70: < 0,01 | FF70: < 0,01 | FG70: < 0,01 | FH70: < 0,01 | FI70: < 0,01 | FJ70: < 0,01 | FK70: < 0,01 | FL70: < 0,01 | FM70: < 0,01 | FN70: < 0,01 | FO70: < 0,01 | FP70: < 0,01 | FQ70: < 0,01 | FR70: < 0,01 | FS70: < 0,01 | FT70: < 0,01 | FU70: < 0,01 | FV70: 0,12 | FW70: < 0,01 | FX70: 0,01 | FY70: < 0,01 | FZ70: 0,01 | GA70: 0,01 | GB70: < 0,01 | GC70: < 0,01 | GD70: < 0,01 | GE70: < 0,01 | GF70: < 0,01 | GG70: < 0,01 | GH70: < 0,01 | GI70: 0,06 | GJ70: < 0,01 | GK70: < 0,01 | GL70: < 0,01 | GM70: < 0,01 | GN70: < 0,01 | GO70: < 0,01 | GP70: < 0,01 | GQ70: < 0,01 | GR70: < 0,01 | GS70: < 0,01 | GT70: < 0,01 | GU70: < 0,01 | GV70: 0,01 | GW70: 0,01 | GX70: < 0,01 | GY70: 0,01 | GZ70: < 0,01 | HA70: 0,04 | HB70: < 0,01 | HC70: < 0,01 | HD70: < 0,01 | HE70: < 0,01 | HF70: < 0,01 | HG70: < 0,01 | HH70: < 0,01 | HI70: < 0,01 | HJ70: < 0,01
B71: 7H-Dodecafluorheptansäure (HPFHpA) | C71: µg/l | CT71: < 0,01 | CU71: < 0,01 | CV71: < 0,01 | CW71: < 0,01 | CX71: < 0,01 | CY71: < 0,01 | CZ71: < 0,01 | DA71: < 0,01 | DB71: < 0,01 | DC71: < 0,01 | DD71: < 0,01 | DE71: < 0,01 | DF71: < 0,01 | DG71: < 0,01 | DH71: < 0,01 | DI71: < 0,01 | DJ71: < 0,01 | DK71: < 0,01 | DL71: < 0,01 | DM71: < 0,01 | DN71: < 0,01 | DO71: < 0,01 | DP71: < 0,01 | DQ71: < 0,01 | DR71: < 0,01 | DS71: < 0,01 | DT71: < 0,01 | DU71: < 0,01 | DV71: < 0,01 | DW71: < 0,01 | DX71: < 0,01
B72: Perfluoroctansäure (PFOA) | C72: µg/l | D72: 0,02 | E72: 0,11 | F72: < 0,01 | G72: 0,02 | H72: < 0,01 | I72: < 0,01 | J72: < 0,01 | K72: 0,1 | L72: < 0,01 | M72: 0,02 | N72: < 0,01 | O72: < 0,01 | P72: 0,01 | Q72: 0,07 | R72: < 0,01 | S72: < 0,01 | T72: < 0,01 | U72: < 0,01 | V72: 0,02 | W72: < 0,01 | X72: 0,03 | Y72: 0,02 | Z72: < 0,01 | AA72: < 0,01 | AB72: < 0,01 | AC72: 0,06 | AD72: 0,12 | AE72: < 0,01 | AF72: < 0,01 | AG72: < 0,01 | AH72: < 0,01 | AI72: 0,03 | AJ72: 0,19 | AK72: < 0,01 | AL72: 0,02 | AM72: 0,04 | AN72: 0,01 | AO72: 0,01 | AP72: 0,05 | AQ72: 0,13 | AR72: < 0,01 | AS72: 0,02 | AT72: 0,03 | AU72: 0,02 | AV72: 0,01 | AW72: < 0,01 | AX72: 0,03 | AY72: 0,12 | AZ72: < 0,01 | BA72: 0,02 | BB72: 0,03 | BC72: 0,03 | BD72: < 0,01 | BE72: < 0,01 | BF72: 0,07 | BG72: < 0,01 | BH72: 0,02 | BI72: 0,03 | BJ72: 0,02 | BK72: 0,03 | BL72: < 0,01 | BM72: < 0,01 | BN72: 0,09 | BO72: < 0,01 | BP72: 0,02 | BQ72: 0,03 | BR72: 0,02 | BS72: 0,7 | BT72: 0,03 | BU72: 0,01 | BV72: 0,05 | BW72: 0,09 | BX72: < 0,01 | BY72: 0,02 | BZ72: 0,03 | CA72: 0,02 | CB72: 0,17 | CC72: 0,23 | CD72: 0,02 | CE72: 0,06 | CF72: 0,16 | CG72: < 0,01 | CH72: 0,01 | CI72: 0,04 | CJ72: 0,03 | CK72: 0,12 | CL72: 0,01 | CM72: 0,08 | CN72: 0,02 | CO72: 0,03 | CP72: < 0,01 | CQ72: 0,02 | CS72: 0,05 | CT72: < 0,01 | CU72: < 0,01 | CV72: 0,051 | CW72: 0,017 | CX72: < 0,01 | CY72: 0,025 | CZ72: 0,018 | DA72: < 0,01 | DB72: < 0,01 | DC72: 0,057 | DD72: < 0,01 | DE72: < 0,01 | DF72: 0,018 | DG72: 0,042 | DH72: < 0,01 | DI72: < 0,01 | DJ72: 0,015 | DK72: 0,017 | DL72: 0,015 | DM72: 0,013 | DN72: < 0,01 | DO72: 0,048 | DP72: 0,015 | DQ72: < 0,02 | DR72: 0,017 | DS72: 0,039 | DT72: 0,019 | DU72: 0,071 | DV72: < 0,01 | DW72: 0,018 | DX72: 0,050 | DY72: 0,04 | DZ72: 0,08 | EA72: 0,01 | EB72: 0,10 | EC72: 0,13 | ED72: < 0,01 | EE72: 0,02 | EF72: 0,03 | EG72: 0,02 | EH72: 0,01 | EI72: < 0,01 | EJ72: < 0,01 | EK72: 0,02 | EL72: 0,02 | EM72: < 0,01 | EN72: < 0,01 | EO72: < 0,01 | EP72: < 0,01 | EQ72: < 0,01 | ER72: 0,01 | ES72: < 0,01 | ET72: < 0,01 | EU72: < 0,01 | EV72: < 0,01 | EW72: 0,01 | EX72: 0,14 | EY72: < 0,01 | EZ72: 0,01 | FA72: < 0,01 | FB72: 0,13 | FC72: < 0,01 | FD72: < 0,01 | FE72: < 0,01 | FF72: < 0,01 | FG72: < 0,01 | FH72: < 0,01 | FI72: < 0,01 | FJ72: < 0,01 | FK72: < 0,01 | FL72: < 0,01 | FM72: < 0,01 | FN72: < 0,01 | FO72: < 0,01 | FP72: 0,01 | FQ72: < 0,01 | FR72: < 0,01 | FS72: < 0,01 | FT72: 0,01 | FU72: 0,02 | FV72: 0,10 | FW72: < 0,01 | FX72: 0,02 | FY72: < 0,01 | FZ72: 0,02 | GA72: 0,03 | GB72: 0,01 | GC72: < 0,01 | GD72: < 0,01 | GE72: < 0,01 | GF72: < 0,01 | GG72: < 0,01 | GH72: < 0,01 | GI72: 0,08 | GJ72: < 0,01 | GK72: 0,01 | GL72: 0,02 | GM72: 0,02 | GN72: 0,02 | GO72: 0,02 | GP72: < 0,01 | GQ72: < 0,01 | GR72: < 0,01 | GS72: 0,01 | GT72: 0,01 | GU72: < 0,01 | GV72: 0,02 | GW72: 0,02 | GX72: < 0,01 | GY72: 0,02 | GZ72: < 0,02 | HA72: 0,06 | HB72: < 0,05 | HC72: < 0,05 | HD72: < 0,05 | HE72: < 0,05 | HF72: < 0,1 | HG72: < 0,01 | HH72: < 0,01 | HI72: < 0,01 | HJ72: < 0,01
B73: Perfluor-3,7-dimethyloctansäure (PF-3,7-DMOA) | C73: µg/l | CT73: < 0,01 | CU73: < 0,01 | CV73: < 0,01 | CW73: < 0,01 | CX73: < 0,01 | CY73: < 0,01 | CZ73: < 0,01 | DA73: < 0,01 | DB73: < 0,01 | DC73: < 0,01 | DD73: < 0,01 | DE73: < 0,01 | DF73: < 0,01 | DG73: < 0,01 | DH73: < 0,01 | DI73: < 0,01 | DJ73: < 0,01 | DK73: < 0,01 | DL73: < 0,01 | DM73: < 0,01 | DN73: < 0,01 | DO73: < 0,01 | DP73: < 0,01 | DQ73: < 0,01 | DR73: < 0,01 | DS73: < 0,01 | DT73: < 0,01 | DU73: < 0,01 | DV73: < 0,01 | DW73: < 0,01 | DX73: < 0,01
B74: Perfluoroctansulfonsäure (PFOS) | C74: µg/l | D74: 0,45 | E74: 2,9 | F74: < 0,01 | G74: 0,37 | H74: < 0,01 | I74: 0,14 | J74: 0,2 | K74: 2,8 | L74: < 0,01 | M74: 0,4 | N74: < 0,01 | O74: 0,13 | P74: 0,20 | Q74: 1,50 | R74: 0,02 | S74: < 0,01 | T74: < 0,01 | U74: 0,11 | V74: 0,33 | W74: < 0,01 | X74: 0,85 | Y74: 0,48 | Z74: 0,20 | AA74: < 0,01 | AB74: < 0,01 | AC74: 1,4 | AD74: 3,2 | AE74: < 0,01 | AF74: < 0,01 | AG74: < 0,01 | AH74: 0,04 | AI74: 0,54 | AJ74: 1,70 | AK74: 0,14 | AL74: 0,44 | AM74: 1,00 | AN74: 0,24 | AO74: 0,16 | AP74: 1,3 | AQ74: 3,4 | AR74: 0,19 | AS74: 0,54 | AT74: 1,0 | AU74: 0,47 | AV74: 0,30 | AW74: 0,06 | AX74: 0,9 | AY74: 6 | AZ74: 0,14 | BA74: 0,34 | BB74: 0,43 | BC74: 0,83 | BD74: 0,03 | BE74: 0,08 | BF74: 3,3 | BG74: 0,11 | BH74: 0,37 | BI74: 0,97 | BJ74: 0,39 | BK74: 0,05 | BL74: 0,02 | BM74: 0,06 | BN74: 2,9 | BO74: 0,11 | BP74: 0,42 | BQ74: 0,81 | BR74: 0,36 | BS74: 2,4 | BT74: 1,8 | BU74: 0,20 | BV74: 0,85 | BW74: 1,7 | BX74: 0,11 | BY74: 0,37 | BZ74: 0,63 | CA74: 0,47 | CB74: 3,8 | CC74: 8,0 | CD74: 0,29 | CE74: 2,4 | CF74: 11 | CG74: 0,08 | CH74: 0,27 | CI74: 0,67 | CJ74: 0,38 | CK74: 8,9 | CL74: 0,58 | CM74: 6,3 | CN74: 0,31 | CO74: 0,61 | CP74: 0,10 | CQ74: 0,41 | CS74: 3,5 | CT74: 0,069 | CU74: 0,100 | CV74: 2,8 | CW74: 0,38 | CX74: 0,11 | CY74: 0,85 | CZ74: 0,43 | DA74: 0,21 | DB74: 0,034 | DC74: 3,40 | DD74: 0,170 | DE74: 0,058 | DF74: 0,56 | DG74: 3,1 | DH74: < 0,05 | DI74: 0,064 | DJ74: 0,28 | DK74: 0,51 | DL74: 0,30 | DM74: 0,24 | DN74: 0,17 | DO74: 10 | DP74: 1,2 | DQ74: 0,70 | DR74: 0,44 | DS74: 0,91 | DT74: 3,0 | DU74: 2,0 | DV74: 0,21 | DW74: 0,17 | DX74: 1,900 | DY74: 1,2 | DZ74: 2,1 | EA74: 0,15 | EB74: 1,2 | EC74: 3,6 | ED74: 0,08 | EE74: 0,23 | EF74: 0,68 | EG74: 0,36 | EH74: 0,18 | EI74: 0,04 | EJ74: 0,07 | EK74: 0,34 | EL74: 0,50 | EM74: < 0,01 | EN74: 0,01 | EO74: < 0,01 | EP74: < 0,01 | EQ74: 0,01 | ER74: 0,20 | ES74: 0,10 | ET74: 0,10 | EU74: < 0,01 | EV74: 0,18 | EW74: 0,21 | EX74: 5,0 | EY74: 0,06 | EZ74: 0,22 | FA74: 0,30 | FB74: 5,8 | FC74: 0,30 | FD74: 0,20 | FE74: < 0,01 | FF74: < 0,01 | FG74: 0,19 | FH74: < 0,01 | FI74: < 0,01 | FJ74: 0,26 | FK74: 0,28 | FL74: < 0,01 | FM74: < 0,01 | FN74: < 0,01 | FO74: < 0,01 | FP74: 0,29 | FQ74: < 0,01 | FR74: < 0,01 | FS74: 0,14 | FT74: 0,08 | FU74: 0,47 | FV74: 5,3 | FW74: 0,07 | FX74: 0,33 | FY74: 0,08 | FZ74: 0,50 | GA74: 0,41 | GB74: 0,15 | GC74: 0,04 | GD74: < 0,01 | GE74: < 0,01 | GF74: < 0,01 | GG74: 0,04 | GH74: 0,03 | GI74: 3,3 | GJ74: 0,04 | GK74: 0,30 | GL74: 0,29 | GM74: 0,33 | GN74: 0,28 | GO74: 0,35 | GP74: < 0,01 | GQ74: 0,02 | GR74: 0,09 | GS74: 0,27 | GT74: 0,19 | GU74: 0,09 | GV74: 0,42 | GW74: 0,47 | GX74: 0,03 | GY74: 0,31 | GZ74: < 0,01 | HA74: 2,4 | HB74: 0,08 | HC74: < 0,01 | HD74: < 0,01 | HE74: < 0,01 | HF74: < 0,01 | HG74: 0,05 | HH74: 0,01 | HI74: 0,04 | HJ74: 0,02
B75: 1H,1H,2H,2H-Perfluoroctansulfonsäure (H4PFOS) | C75: µg/l | D75: < 0,01 | E75: 0,08 | F75: < 0,01 | G75: < 0,01 | H75: < 0,01 | I75: < 0,01 | J75: < 0,01 | K75: 0,04 | L75: < 0,01 | M75: < 0,01 | N75: < 0,01 | O75: < 0,01 | P75: < 0,01 | Q75: 0,02 | R75: < 0,01 | S75: < 0,01 | T75: < 0,01 | U75: < 0,01 | V75: < 0,01 | W75: < 0,01 | X75: 0,01 | Y75: 0,01 | Z75: < 0,01 | AA75: < 0,01 | AB75: < 0,01 | AC75: < 0,01 | AD75: 0,05 | AE75: < 0,01 | AF75: < 0,01 | AG75: < 0,01 | AH75: < 0,01 | AI75: < 0,01 | AJ75: 0,10 | AK75: < 0,01 | AL75: < 0,01 | AM75: 0,01 | AN75: < 0,01 | AO75: < 0,01 | AP75: 0,03 | AQ75: 0,08 | AR75: < 0,01 | AS75: < 0,01 | AT75: < 0,01 | AU75: < 0,01 | AV75: < 0,01 | AW75: < 0,01 | AX75: < 0,01 | AY75: 0,04 | AZ75: < 0,01 | BA75: < 0,01 | BB75: < 0,01 | BC75: < 0,01 | BD75: < 0,01 | BE75: < 0,01 | BF75: 0,03 | BG75: < 0,01 | BH75: < 0,01 | BI75: 0,01 | BJ75: < 0,01 | BK75: 0,02 | BL75: < 0,01 | BM75: < 0,01 | BN75: 0,04 | BO75: < 0,01 | BP75: < 0,01 | BQ75: 0,01 | BR75: < 0,01 | BS75: 0,03 | BT75: < 0,01 | BU75: < 0,01 | BV75: 0,01 | BW75: 0,03 | BX75: < 0,01 | BY75: < 0,01 | BZ75: < 0,01 | CA75: < 0,01 | CB75: 0,06 | CC75: 0,13 | CD75: < 0,01 | CE75: < 0,01 | CF75: 0,07 | CG75: < 0,01 | CH75: < 0,01 | CI75: 0,01 | CJ75: < 0,01 | CK75: 0,08 | CL75: < 0,01 | CM75: 0,04 | CN75: < 0,01 | CO75: 0,01 | CP75: < 0,01 | CQ75: < 0,01 | CS75: 0,02 | CT75: < 0,01 | CU75: < 0,01 | CV75: 0,021 | CW75: < 0,01 | CX75: < 0,01 | CY75: < 0,01 | CZ75: < 0,01 | DA75: < 0,01 | DB75: < 0,01 | DC75: 0,047 | DD75: < 0,01 | DE75: < 0,01 | DF75: < 0,01 | DG75: 0,046 | DH75: < 0,01 | DI75: < 0,01 | DJ75: < 0,01 | DK75: < 0,01 | DL75: < 0,01 | DM75: < 0,01 | DN75: < 0,01 | DO75: 0,018 | DP75: < 0,01 | DQ75: < 0,01 | DR75: < 0,01 | DS75: < 0,01 | DT75: < 0,01 | DU75: < 0,01 | DV75: < 0,01 | DW75: 0,011 | DX75: 0,028 | DY75: 0,02 | DZ75: 0,05
B76: Perfluoroctansulfonsäureamid (PFOSA) | C76: µg/l | CT76: < 0,01 | CU76: < 0,01 | CV76: < 0,01 | CW76: < 0,01 | CX76: < 0,01 | CY76: < 0,01 | CZ76: < 0,01 | DA76: < 0,01 | DB76: < 0,01 | DC76: < 0,01 | DD76: < 0,01 | DE76: < 0,01 | DF76: < 0,01 | DG76: < 0,01 | DH76: < 0,01 | DI76: < 0,01 | DJ76: < 0,01 | DK76: < 0,01 | DL76: < 0,01 | DM76: < 0,01 | DN76: < 0,01 | DO76: < 0,01 | DP76: < 0,01 | DQ76: < 0,01 | DR76: < 0,01 | DS76: < 0,01 | DT76: < 0,01 | DU76: < 0,01 | DV76: < 0,01 | DW76: < 0,01 | DX76: < 0,01 | DY76: < 0,05 | DZ76: < 0,05
B77: Perfluornonansäure (PFNA) | C77: µg/l | D77: < 0,01 | E77: 0,12 | F77: < 0,01 | G77: 0,09 | H77: < 0,01 | I77: < 0,01 | J77: < 0,01 | K77: 0,11 | L77: < 0,01 | M77: 0,08 | N77: < 0,01 | O77: < 0,01 | P77: < 0,01 | Q77: < 0,01 | R77: < 0,01 | S77: < 0,01 | T77: < 0,01 | U77: < 0,01 | V77: 0,06 | W77: < 0,01 | X77: 0,06 | Y77: < 0,01 | Z77: 0,03 | AA77: < 0,01 | AB77: < 0,01 | AC77: < 0,01 | AD77: 0,04 | AE77: < 0,01 | AF77: < 0,01 | AG77: < 0,01 | AH77: < 0,01 | AI77: < 0,01 | AJ77: 0,08 | AK77: < 0,01 | AL77: 0,09 | AM77: 0,06 | AN77: 0,03 | AO77: < 0,01 | AP77: < 0,01 | AQ77: 0,07 | AR77: < 0,01 | AS77: 0,08 | AT77: 0,05 | AU77: < 0,01 | AV77: 0,04 | AW77: < 0,01 | AX77: < 0,01 | AY77: 0,07 | AZ77: < 0,01 | BA77: 0,07 | BB77: < 0,01 | BC77: 0,04 | BD77: < 0,01 | BE77: < 0,01 | BF77: 0,04 | BG77: < 0,01 | BH77: 0,09 | BI77: 0,04 | BJ77: < 0,01 | BK77: 0,02 | BL77: < 0,01 | BM77: < 0,01 | BN77: 0,05 | BO77: < 0,01 | BP77: 0,08 | BQ77: 0,04 | BR77: < 0,01 | BS77: 0,05 | BT77: 0,01 | BU77: < 0,01 | BV77: < 0,01 | BW77: 0,03 | BX77: < 0,01 | BY77: 0,08 | BZ77: 0,05 | CA77: < 0,01 | CB77: 0,13 | CC77: 0,43 | CD77: < 0,01 | CE77: 0,01 | CF77: 0,39 | CG77: < 0,01 | CH77: 0,08 | CI77: 0,05 | CJ77: < 0,01 | CK77: 0,29 | CL77: < 0,01 | CM77: 0,19 | CN77: 0,08 | CO77: 0,04 | CP77: 0,02 | CQ77: < 0,01 | CS77: 0,06 | CT77: < 0,01 | CU77: < 0,01 | CV77: 0,027 | CW77: 0,110 | CX77: < 0,01 | CY77: 0,038 | CZ77: < 0,01 | DA77: 0,034 | DB77: 0,011 | DC77: 0,056 | DD77: 0,037 | DE77: < 0,01 | DF77: < 0,01 | DG77: 0,027 | DH77: < 0,01 | DI77: < 0,01 | DJ77: 0,043 | DK77: 0,022 | DL77: < 0,01 | DM77: 0,038 | DN77: 0,035 | DO77: 0,13 | DP77: < 0,01 | DQ77: < 0,01 | DR77: 0,029 | DS77: < 0,01 | DT77: 0,019 | DU77: < 0,01 | DV77: < 0,01 | DW77: < 0,01 | DX77: 0,032 | DY77: 0,02 | DZ77: 0,04 | EA77: < 0,01 | EB77: < 0,01 | EC77: 0,11 | ED77: < 0,01 | EE77: 0,07 | EF77: 0,04 | EG77: < 0,01 | EH77: 0,03 | EI77: 0,01 | EJ77: < 0,01 | EK77: 0,05 | EL77: 0,06 | EM77: < 0,01 | EN77: < 0,01 | EO77: < 0,01 | EP77: < 0,01 | EQ77: < 0,01 | ER77: 0,04 | ES77: < 0,01 | ET77: < 0,01 | EU77: < 0,01 | EV77: 0,03 | EW77: 0,03 | EX77: 0,26 | EY77: < 0,01 | EZ77: 0,01 | FA77: < 0,01 | FB77: 0,28 | FC77: < 0,01 | FD77: < 0,01 | FE77: < 0,01 | FF77: < 0,01 | FG77: < 0,01 | FH77: < 0,01 | FI77: < 0,01 | FJ77: < 0,01 | FK77: < 0,01 | FL77: < 0,01 | FM77: < 0,01 | FN77: < 0,01 | FO77: < 0,01 | FP77: 0,01 | FQ77: < 0,01 | FR77: < 0,01 | FS77: < 0,01 | FT77: < 0,01 | FU77: < 0,01 | FV77: 0,20 | FW77: < 0,01 | FX77: 0,10 | FY77: < 0,01 | FZ77: 0,04 | GA77: < 0,01 | GB77: 0,03 | GC77: 0,01 | GD77: < 0,01 | GE77: < 0,01 | GF77: < 0,01 | GG77: 0,01 | GH77: 0,01 | GI77: 0,09 | GJ77: < 0,01 | GK77: < 0,01 | GL77: < 0,01 | GM77: 0,05 | GN77: 0,01 | GO77: 0,04 | GP77: < 0,01 | GQ77: < 0,01 | GR77: < 0,01 | GS77: < 0,01 | GT77: 0,03 | GU77: < 0,01 | GV77: 0,05 | GW77: 0,06 | GX77: < 0,01 | GY77: 0,04 | GZ77: < 0,05 | HA77: 0,06 | HB77: < 0,05 | HC77: < 0,05 | HD77: < 0,05 | HE77: < 0,05 | HF77: < 0,1 | HG77: < 0,01 | HH77: < 0,01 | HI77: < 0,01 | HJ77: < 0,01
B78: Perfluornonansulfonsäure (PFNS) | C78: µg/l | EA78: < 0,01 | EB78: 0,05 | EC78: 0,12 | ED78: < 0,01 | EE78: < 0,01 | EF78: 0,02 | EG78: 0,01 | EH78: < 0,01 | EI78: < 0,01 | EJ78: < 0,05 | EK78: < 0,05 | EL78: < 0,05 | EM78: < 0,05 | EN78: < 0,05 | EO78: < 0,05 | EP78: < 0,05 | EQ78: < 0,05 | ER78: < 0,05 | ES78: < 0,05 | ET78: < 0,05 | EU78: < 0,05 | EV78: < 0,05 | EW78: < 0,05 | EX78: 0,16 | EY78: < 0,05 | EZ78: < 0,05 | FA78: < 0,05 | FB78: 0,05 | FC78: < 0,05 | FD78: < 0,05 | FE78: < 0,05 | FF78: < 0,05 | FG78: < 0,05 | FH78: < 0,05 | FI78: < 0,05 | FJ78: < 0,05 | FK78: < 0,05 | FL78: < 0,05 | FM78: < 0,05 | FN78: < 0,05 | FO78: < 0,05 | FP78: < 0,05 | FQ78: < 0,05 | FR78: < 0,05 | FS78: < 0,05 | FT78: < 0,05 | FU78: < 0,05 | FV78: 0,06 | FW78: < 0,05 | FX78: < 0,05 | FY78: < 0,05 | FZ78: < 0,05 | GA78: < 0,05 | GB78: < 0,05 | GC78: < 0,05 | GD78: < 0,05 | GE78: < 0,05 | GF78: < 0,05 | GG78: < 0,05 | GH78: < 0,05 | GI78: < 0,05 | GJ78: < 0,05 | GK78: < 0,05 | GL78: < 0,05 | GM78: < 0,05 | GN78: < 0,05 | GO78: < 0,05 | GP78: < 0,05 | GQ78: < 0,05 | GR78: < 0,05 | GS78: < 0,05 | GT78: < 0,05 | GU78: < 0,05 | GV78: < 0,05 | GW78: < 0,05 | GX78: < 0,05 | GY78: < 0,05 | GZ78: < 0,05 | HA78: 0,06 | HB78: < 0,05 | HC78: < 0,05 | HD78: < 0,05 | HE78: < 0,05 | HF78: < 0,05 | HG78: < 0,05 | HH78: < 0,05 | HI78: < 0,05 | HJ78: < 0,05
B79: Perfluordecansäure (PFDA) | C79: µg/l | D79: < 0,01 | E79: < 0,01 | F79: < 0,01 | G79: < 0,01 | H79: < 0,01 | I79: < 0,01 | J79: < 0,01 | K79: < 0,01 | L79: < 0,01 | M79: < 0,01 | N79: < 0,01 | O79: < 0,01 | P79: < 0,01 | Q79: < 0,01 | R79: < 0,01 | S79: < 0,01 | T79: < 0,01 | U79: < 0,01 | V79: < 0,01 | W79: < 0,01 | X79: < 0,01 | Y79: < 0,01 | Z79: < 0,01 | AA79: < 0,01 | AB79: < 0,01 | AC79: < 0,01 | AD79: < 0,01 | AE79: < 0,01 | AF79: < 0,01 | AG79: < 0,01 | AH79: < 0,01 | AI79: < 0,01 | AJ79: < 0,01 | AK79: < 0,01 | AL79: < 0,01 | AM79: < 0,01 | AN79: < 0,01 | AO79: < 0,01 | AP79: < 0,01 | AQ79: < 0,01 | AR79: < 0,01 | AS79: < 0,01 | AT79: < 0,01 | AU79: < 0,01 | AV79: < 0,01 | AW79: < 0,01 | AX79: < 0,01 | AY79: < 0,01 | AZ79: < 0,01 | BA79: < 0,01 | BB79: < 0,01 | BC79: < 0,01 | BD79: < 0,01 | BE79: < 0,01 | BF79: < 0,01 | BG79: < 0,01 | BH79: < 0,01 | BI79: < 0,01 | BJ79: < 0,01 | BK79: < 0,01 | BL79: < 0,01 | BM79: < 0,01 | BN79: < 0,01 | BO79: < 0,01 | BP79: < 0,01 | BQ79: < 0,01 | BR79: < 0,01 | BS79: < 0,01 | BT79: < 0,01 | BU79: < 0,01 | BV79: < 0,01 | BW79: < 0,01 | BX79: < 0,01 | BY79: < 0,01 | BZ79: < 0,01 | CA79: < 0,01 | CB79: < 0,01 | CC79: < 0,01 | CD79: < 0,01 | CE79: < 0,01 | CF79: < 0,01 | CG79: < 0,01 | CH79: < 0,01 | CI79: < 0,01 | CJ79: < 0,01 | CK79: < 0,01 | CL79: < 0,01 | CM79: < 0,01 | CN79: < 0,01 | CO79: < 0,01 | CP79: < 0,01 | CQ79: < 0,01 | CS79: < 0,01 | CT79: < 0,01 | CU79: < 0,01 | CV79: < 0,01 | CW79: < 0,01 | CX79: < 0,01 | CY79: < 0,01 | CZ79: < 0,01 | DA79: < 0,01 | DB79: < 0,01 | DC79: < 0,01 | DD79: < 0,01 | DE79: < 0,01 | DF79: < 0,01 | DG79: < 0,01 | DH79: < 0,01 | DI79: < 0,01 | DJ79: < 0,01 | DK79: < 0,01 | DL79: < 0,01 | DM79: < 0,01 | DN79: < 0,01 | DO79: < 0,01 | DP79: < 0,01 | DQ79: < 0,01 | DR79: < 0,01 | DS79: < 0,01 | DT79: < 0,01 | DU79: < 0,01 | DV79: < 0,01 | DW79: 0,029 | DX79: < 0,01 | DY79: < 0,01 | DZ79: < 0,01 | EA79: < 0,01 | EB79: < 0,01 | EC79: < 0,01 | ED79: < 0,01 | EE79: < 0,01 | EF79: < 0,01 | EG79: < 0,01 | EH79: < 0,01 | EI79: < 0,01 | EJ79: < 0,01 | EK79: < 0,01 | EL79: < 0,01 | EM79: < 0,01 | EN79: < 0,01 | EO79: < 0,01 | EP79: < 0,01 | EQ79: < 0,01 | ER79: < 0,01 | ES79: < 0,01 | ET79: < 0,01 | EU79: < 0,01 | EV79: < 0,01 | EW79: < 0,01 | EX79: < 0,01 | EY79: < 0,01 | EZ79: < 0,01 | FA79: < 0,01 | FB79: < 0,01 | FC79: < 0,01 | FD79: < 0,01 | FE79: < 0,01 | FF79: < 0,01 | FG79: < 0,01 | FH79: < 0,01 | FI79: < 0,01 | FJ79: < 0,01 | FK79: < 0,01 | FL79: < 0,01 | FM79: < 0,01 | FN79: < 0,01 | FO79: < 0,01 | FP79: < 0,01 | FQ79: < 0,01 | FR79: < 0,01 | FS79: < 0,01 | FT79: < 0,01 | FU79: < 0,01 | FV79: < 0,01 | FW79: < 0,01 | FX79: < 0,01 | FY79: < 0,01 | FZ79: < 0,01 | GA79: < 0,01 | GB79: < 0,01 | GC79: < 0,01 | GD79: < 0,01 | GE79: < 0,01 | GF79: < 0,01 | GG79: < 0,01 | GH79: < 0,01 | GI79: < 0,01 | GJ79: < 0,01 | GK79: < 0,01 | GL79: < 0,01 | GM79: < 0,01 | GN79: < 0,01 | GO79: < 0,01 | GP79: < 0,01 | GQ79: < 0,01 | GR79: < 0,01 | GS79: < 0,01 | GT79: < 0,01 | GU79: < 0,01 | GV79: < 0,01 | GW79: < 0,01 | GX79: < 0,01 | GY79: < 0,01 | GZ79: < 0,01 | HA79: < 0,01 | HB79: < 0,05 | HC79: < 0,05 | HD79: < 0,05 | HE79: < 0,05 | HF79: < 0,1 | HG79: < 0,01 | HH79: < 0,01 | HI79: < 0,01 | HJ79: < 0,01
B80: Perfluordecansulfonsäure (PFDS) | C80: µg/l | CT80: < 0,01 | CU80: < 0,01 | CV80: < 0,02 | CW80: < 0,01 | CX80: < 0,01 | CY80: < 0,01 | CZ80: < 0,01 | DA80: < 0,01 | DB80: < 0,01 | DC80: < 0,02 | DD80: < 0,01 | DE80: < 0,01 | DF80: < 0,01 | DG80: < 0,01 | DH80: < 0,01 | DI80: < 0,01 | DJ80: < 0,01 | DK80: < 0,01 | DL80: < 0,01 | DM80: < 0,01 | DN80: < 0,01 | DO80: < 0,03 | DP80: < 0,01 | DQ80: < 0,01 | DR80: < 0,01 | DS80: < 0,01 | DT80: < 0,01 | DU80: < 0,01 | DV80: < 0,01 | DW80: < 0,01 | DX80: < 0,02 | EA80: < 0,01 | EB80: < 0,01 | EC80: < 0,05 | ED80: < 0,01 | EE80: < 0,01 | EF80: < 0,01 | EG80: < 0,01 | EH80: < 0,01 | EI80: < 0,01 | EJ80: < 0,01 | EK80: < 0,01 | EL80: < 0,01 | EM80: < 0,01 | EN80: < 0,01 | EO80: < 0,01 | EP80: < 0,01 | EQ80: < 0,01 | ER80: < 0,01 | ES80: < 0,01 | ET80: < 0,01 | EU80: < 0,01 | EV80: < 0,01 | EW80: < 0,01 | EX80: < 0,05 | EY80: < 0,01 | EZ80: < 0,01 | FA80: < 0,01 | FB80: < 0,05 | FC80: < 0,01 | FD80: < 0,01 | FE80: < 0,01 | FF80: < 0,01 | FG80: < 0,01 | FH80: < 0,01 | FI80: < 0,01 | FJ80: < 0,05 | FK80: < 0,05 | FL80: < 0,05 | FM80: < 0,05 | FN80: < 0,05 | FO80: < 0,05 | FP80: < 0,05 | FQ80: < 0,05 | FR80: < 0,05 | FS80: < 0,05 | FT80: < 0,05 | FU80: < 0,05 | FV80: < 0,05 | FW80: < 0,05 | FX80: < 0,05 | FY80: < 0,05 | FZ80: < 0,5 | GA80: < 0,05 | GB80: < 0,05 | GC80: < 0,05 | GD80: < 0,05 | GE80: < 0,05 | GF80: < 0,05 | GG80: < 0,05 | GH80: < 0,05 | GI80: < 0,05 | GJ80: < 0,05 | GK80: < 0,05 | GL80: < 0,05 | GM80: < 0,05 | GN80: < 0,05 | GO80: < 0,05 | GP80: < 0,05 | GQ80: < 0,05 | GR80: < 0,05 | GS80: < 0,05 | GT80: < 0,05 | GU80: < 0,05 | GV80: < 0,05 | GW80: < 0,05 | GX80: < 0,05 | GY80: < 0,05 | GZ80: < 0,05 | HA80: < 0,05 | HB80: < 0,05 | HC80: < 0,05 | HD80: < 0,05 | HE80: < 0,05 | HF80: < 0,05 | HG80: < 0,05 | HH80: < 0,05 | HI80: < 0,05 | HJ80: < 0,05
B81: 1H,1H,2H,2H-Perfluordecansulfonsäure (H4PFDS) | C81: µg/l | D81: < 0,05 | E81: < 0,05 | F81: < 0,05 | G81: < 0,05 | H81: < 0,05 | I81: < 0,05 | J81: < 0,05 | K81: < 0,05 | L81: < 0,05 | M81: < 0,05 | N81: < 0,05 | O81: < 0,05 | P81: < 0,05 | Q81: < 0,05 | R81: < 0,05 | S81: < 0,05 | T81: < 0,05 | U81: < 0,05 | V81: < 0,05 | W81: < 0,05 | X81: < 0,05 | Y81: < 0,05 | Z81: < 0,05 | AA81: < 0,05 | AB81: < 0,05 | AC81: < 0,05 | AD81: < 0,05 | AE81: < 0,05 | AF81: < 0,05 | AG81: < 0,05 | AH81: < 0,05 | AI81: < 0,05 | AJ81: < 0,05 | AK81: < 0,05 | AL81: < 0,05 | AM81: < 0,05 | AN81: < 0,05 | AO81: < 0,05 | AP81: < 0,05 | AQ81: < 0,05 | AR81: < 0,05 | AS81: < 0,05 | AT81: < 0,05 | AU81: < 0,05 | AV81: < 0,05 | AW81: < 0,05 | AX81: < 0,05 | AY81: < 0,05 | AZ81: < 0,05 | BA81: < 0,05 | BB81: < 0,05 | BC81: < 0,05 | BD81: < 0,01 | BE81: < 0,01 | BF81: < 0,01 | BG81: < 0,01 | BH81: < 0,01 | BI81: < 0,01 | BJ81: < 0,01 | BK81: < 0,01 | BL81: < 0,01 | BM81: < 0,01 | BN81: < 0,01 | BO81: < 0,01 | BP81: < 0,01 | BQ81: < 0,01 | BR81: < 0,01 | BS81: < 0,01 | BT81: < 0,01 | BU81: < 0,01 | BV81: < 0,01 | BW81: < 0,01 | BX81: < 0,01 | BY81: < 0,01 | BZ81: < 0,01 | CA81: < 0,01 | CB81: < 0,01 | CC81: < 0,01 | CD81: < 0,01 | CE81: < 0,01 | CF81: < 0,01 | CG81: < 0,01 | CH81: < 0,01 | CI81: < 0,01 | CJ81: < 0,01 | CK81: < 0,01 | CL81: < 0,01 | CM81: < 0,01 | CN81: < 0,01 | CO81: < 0,01 | CP81: < 0,01 | CQ81: < 0,01 | CS81: < 0,01 | CT81: < 0,01 | CU81: < 0,01 | CV81: < 0,01 | CW81: < 0,01 | CX81: < 0,01 | CY81: < 0,01 | CZ81: < 0,01 | DA81: < 0,01 | DB81: < 0,01 | DC81: < 0,01 | DD81: < 0,01 | DE81: < 0,01 | DF81: < 0,01 | DG81: < 0,01 | DH81: < 0,01 | DI81: < 0,01 | DJ81: < 0,01 | DK81: < 0,01 | DL81: < 0,01 | DM81: < 0,01 | DN81: < 0,01 | DO81: < 0,01 | DP81: < 0,01 | DQ81: < 0,01 | DR81: < 0,01 | DS81: < 0,01 | DT81: < 0,01 | DU81: < 0,01 | DV81: < 0,01 | DW81: < 0,01 | DX81: < 0,01 | DY81: < 0,01 | DZ81: < 0,01
B82: Perfluorundecansäure (PFUnA) | C82: µg/l | CT82: < 0,01 | CU82: < 0,01 | CV82: 0,019 | CW82: 0,019 | CX82: < 0,01 | CY82: 0,015 | CZ82: < 0,01 | DA82: < 0,01 | DB82: < 0,01 | DC82: 0,012 | DD82: < 0,01 | DE82: < 0,01 | DF82: < 0,01 | DG82: < 0,01 | DH82: < 0,01 | DI82: < 0,01 | DJ82: < 0,01 | DK82: < 0,01 | DL82: < 0,01 | DM82: < 0,01 | DN82: < 0,01 | DO82: 0,13 | DP82: < 0,01 | DQ82: < 0,01 | DR82: 0,012 | DS82: < 0,01 | DT82: < 0,01 | DU82: < 0,01 | DV82: < 0,01 | DW82: < 0,01 | DX82: < 0,02
B83: Perfluorundecansäure (PFUnDA) | C83: µg/l | EA83: < 0,01 | EB83: < 0,01 | EC83: 0,01 | ED83: 0,01 | EE83: 0,01 | EF83: 0,02 | EG83: < 0,01 | EH83: < 0,01 | EI83: < 0,01 | EJ83: < 0,01 | EK83: < 0,01 | EL83: < 0,01 | EM83: < 0,01 | EN83: < 0,01 | EO83: < 0,01 | EP83: < 0,01 | EQ83: < 0,01 | ER83: < 0,01 | ES83: 0,01 | ET83: 0,01 | EU83: < 0,01 | EV83: 0,01 | EW83: < 0,01 | EX83: 0,01 | EY83: < 0,01 | EZ83: < 0,01 | FA83: < 0,01 | FB83: 0,01 | FC83: < 0,01 | FD83: < 0,01 | FE83: < 0,01 | FF83: < 0,01 | FG83: < 0,01 | FH83: < 0,01 | FI83: < 0,01 | FJ83: 0,02 | FK83: < 0,02 | FL83: < 0,02 | FM83: < 0,02 | FN83: < 0,02 | FO83: < 0,02 | FP83: < 0,02 | FQ83: < 0,02 | FR83: < 0,02 | FS83: < 0,02 | FT83: < 0,02 | FU83: < 0,02 | FV83: < 0,02 | FW83: < 0,02 | FX83: 0,02 | FY83: < 0,02 | FZ83: < 0,02 | GA83: < 0,02 | GB83: < 0,02 | GC83: < 0,02 | GD83: < 0,02 | GE83: < 0,02 | GF83: < 0,02 | GG83: < 0,02 | GH83: < 0,02 | GI83: < 0,02 | GJ83: < 0,02 | GK83: < 0,02 | GL83: < 0,02 | GM83: < 0,02 | GN83: < 0,02 | GO83: < 0,02 | GP83: < 0,02 | GQ83: < 0,02 | GR83: < 0,02 | GS83: < 0,01 | GT83: < 0,02 | GU83: < 0,02 | GV83: < 0,02 | GW83: < 0,02 | GX83: < 0,02 | GY83: < 0,02 | GZ83: < 0,02 | HA83: < 0,02 | HB83: < 0,05 | HC83: < 0,05 | HD83: < 0,05 | HE83: < 0,05 | HF83: < 0,1 | HG83: < 0,02 | HH83: < 0,02 | HI83: < 0,02 | HJ83: < 0,02
B84: Perfluorundecansulfonsäure (PFUnDS) | C84: µg/l | EA84: < 0,05 | EB84: < 0,05 | EC84: < 0,05 | ED84: < 0,05 | EE84: < 0,05 | EF84: < 0,05 | EG84: < 0,05 | EH84: < 0,05 | EI84: < 0,05 | EJ84: < 0,05 | EK84: < 0,05 | EL84: < 0,05 | EM84: < 0,05 | EN84: < 0,05 | EO84: < 0,05 | EP84: < 0,05 | EQ84: < 0,05 | ER84: < 0,05 | ES84: < 0,05 | ET84: < 0,05 | EU84: < 0,05 | EV84: < 0,05 | EW84: < 0,05 | EX84: < 0,05 | EY84: < 0,05 | EZ84: < 0,05 | FA84: < 0,05 | FB84: < 0,05 | FC84: < 0,05 | FD84: < 0,05 | FE84: < 0,05 | FF84: < 0,05 | FG84: < 0,05 | FH84: < 0,05 | FI84: < 0,05 | FJ84: < 0,05 | FK84: < 0,05 | FL84: < 0,05 | FM84: < 0,05 | FN84: < 0,05 | FO84: < 0,05 | FP84: < 0,05 | FQ84: < 0,05 | FR84: < 0,05 | FS84: < 0,05 | FT84: < 0,05 | FU84: < 0,05 | FV84: < 0,05 | FW84: < 0,05 | FX84: < 0,05 | FY84: < 0,05 | FZ84: < 0,5 | GA84: < 0,05 | GB84: < 0,05 | GC84: < 0,05 | GD84: < 0,05 | GE84: < 0,05 | GF84: < 0,05 | GG84: < 0,05 | GH84: < 0,05 | GI84: < 0,05 | GJ84: < 0,05 | GK84: < 0,05 | GL84: < 0,05 | GM84: < 0,05 | GN84: < 0,05 | GO84: < 0,05 | GP84: < 0,05 | GQ84: < 0,05 | GR84: < 0,05 | GS84: < 0,02 | GT84: < 0,05 | GU84: < 0,05 | GV84: < 0,05 | GW84: < 0,05 | GX84: < 0,05 | GY84: < 0,05 | GZ84: < 0,05 | HA84: < 0,05 | HB84: < 0,05 | HC84: < 0,05 | HD84: < 0,05 | HE84: < 0,05 | HF84: < 0,05 | HG84: < 0,05 | HH84: < 0,05 | HI84: < 0,05 | HJ84: < 0,05
B85: Perfluordodecansäure (PFDoDA) | C85: µg/l | EA85: < 0,01 | EB85: < 0,01 | EC85: < 0,01 | ED85: < 0,01 | EE85: < 0,01 | EF85: < 0,01 | EG85: < 0,01 | EH85: < 0,01 | EI85: < 0,01 | EJ85: < 0,01 | EK85: < 0,01 | EL85: < 0,01 | EM85: < 0,01 | EN85: < 0,01 | EO85: < 0,01 | EP85: < 0,01 | EQ85: < 0,01 | ER85: < 0,01 | ES85: < 0,01 | ET85: < 0,01 | EU85: < 0,01 | EV85: < 0,01 | EW85: < 0,01 | EX85: < 0,01 | EY85: < 0,01 | EZ85: < 0,01 | FA85: < 0,01 | FB85: < 0,01 | FC85: < 0,01 | FD85: < 0,01 | FE85: < 0,01 | FF85: < 0,01 | FG85: < 0,01 | FH85: < 0,01 | FI85: < 0,01 | FJ85: < 0,01 | FK85: < 0,01 | FL85: < 0,01 | FM85: < 0,01 | FN85: < 0,01 | FO85: < 0,01 | FP85: < 0,01 | FQ85: < 0,01 | FR85: < 0,01 | FS85: < 0,01 | FT85: < 0,01 | FU85: < 0,01 | FV85: < 0,01 | FW85: < 0,01 | FX85: < 0,01 | FY85: < 0,01 | FZ85: < 0,01 | GA85: < 0,01 | GB85: < 0,01 | GC85: < 0,01 | GD85: < 0,01 | GE85: < 0,01 | GF85: < 0,01 | GG85: < 0,01 | GH85: < 0,01 | GI85: < 0,01 | GJ85: < 0,02 | GK85: < 0,02 | GL85: < 0,01 | GM85: < 0,01 | GN85: < 0,01 | GO85: < 0,01 | GP85: < 0,01 | GQ85: < 0,01 | GR85: < 0,01 | GS85: < 0,01 | GT85: < 0,01 | GU85: < 0,01 | GV85: < 0,01 | GW85: < 0,01 | GX85: < 0,01 | GY85: < 0,05 | GZ85: < 0,02 | HA85: < 0,02 | HB85: < 0,05 | HC85: < 0,05 | HD85: < 0,05 | HE85: < 0,05 | HF85: < 0,1 | HG85: < 0,01 | HH85: < 0,01 | HI85: < 0,01 | HJ85: < 0,01
B86: Perfluordodecansäure (PFDoA) | C86: µg/l | CT86: < 0,01 | CU86: < 0,01 | CV86: < 0,01 | CW86: < 0,01 | CX86: < 0,01 | CY86: < 0,01 | CZ86: < 0,01 | DA86: < 0,01 | DB86: < 0,01 | DC86: < 0,01 | DD86: < 0,01 | DE86: < 0,01 | DF86: < 0,01 | DG86: < 0,01 | DH86: < 0,01 | DI86: < 0,01 | DJ86: < 0,01 | DK86: < 0,01 | DL86: < 0,01 | DM86: < 0,01 | DN86: < 0,01 | DO86: < 0,01 | DP86: < 0,01 | DQ86: < 0,01 | DR86: < 0,01 | DS86: < 0,01 | DT86: < 0,01 | DU86: < 0,01 | DV86: < 0,01 | DW86: < 0,01 | DX86: < 0,01
B87: Perfluordodecansulfonsäure (PFDoDS) | C87: µg/l | EA87: < 0,05 | EB87: < 0,05 | EC87: < 0,05 | ED87: < 0,05 | EE87: < 0,05 | EF87: < 0,05 | EG87: < 0,05 | EH87: < 0,05 | EI87: < 0,05 | EJ87: < 0,05 | EK87: < 0,05 | EL87: < 0,05 | EM87: < 0,05 | EN87: < 0,05 | EO87: < 0,05 | EP87: < 0,05 | EQ87: < 0,05 | ER87: < 0,05 | ES87: < 0,05 | ET87: < 0,05 | EU87: < 0,05 | EV87: < 0,05 | EW87: < 0,05 | EX87: < 0,05 | EY87: < 0,05 | EZ87: < 0,05 | FA87: < 0,05 | FB87: < 0,05 | FC87: < 0,05 | FD87: < 0,05 | FE87: < 0,05 | FF87: < 0,05 | FG87: < 0,05 | FH87: < 0,05 | FI87: < 0,05 | FJ87: < 0,05 | FK87: < 0,05 | FL87: < 0,05 | FM87: < 0,05 | FN87: < 0,05 | FO87: < 0,05 | FP87: < 0,05 | FQ87: < 0,05 | FR87: < 0,05 | FS87: < 0,05 | FT87: < 0,05 | FU87: < 0,05 | FV87: < 0,05 | FW87: < 0,05 | FX87: < 0,05 | FY87: < 0,05 | FZ87: < 0,5 | GA87: < 0,05 | GB87: < 0,05 | GC87: < 0,05 | GD87: < 0,05 | GE87: < 0,05 | GF87: < 0,05 | GG87: < 0,05 | GH87: < 0,05 | GI87: < 0,05 | GJ87: < 0,05 | GK87: < 0,05 | GL87: < 0,05 | GM87: < 0,05 | GN87: < 0,05 | GO87: < 0,05 | GP87: < 0,05 | GQ87: < 0,05 | GR87: < 0,05 | GS87: < 0,05 | GT87: < 0,05 | GU87: < 0,05 | GV87: < 0,05 | GW87: < 0,05 | GX87: < 0,05 | GY87: < 0,05 | GZ87: < 0,05 | HA87: < 0,05 | HB87: < 0,05 | HC87: < 0,05 | HD87: < 0,05 | HE87: < 0,05 | HF87: < 0,05 | HG87: < 0,05 | HH87: < 0,05 | HI87: < 0,05 | HJ87: < 0,05
B88: Perfluortridecansäure (PFTrDA) | C88: µg/l | EA88: < 0,05 | EB88: < 0,05 | EC88: < 0,05 | ED88: < 0,05 | EE88: < 0,05 | EF88: < 0,05 | EG88: < 0,05 | EH88: < 0,05 | EI88: < 0,05 | EJ88: < 0,05 | EK88: < 0,05 | EL88: < 0,05 | EM88: < 0,05 | EN88: < 0,05 | EO88: < 0,05 | EP88: < 0,05 | EQ88: < 0,05 | ER88: < 0,05 | ES88: < 0,05 | ET88: < 0,05 | EU88: < 0,05 | EV88: < 0,05 | EW88: < 0,05 | EX88: < 0,05 | EY88: < 0,05 | EZ88: < 0,05 | FA88: < 0,05 | FB88: < 0,05 | FC88: < 0,05 | FD88: < 0,05 | FE88: < 0,05 | FF88: < 0,05 | FG88: < 0,05 | FH88: < 0,05 | FI88: < 0,05 | FJ88: < 0,05 | FK88: < 0,05 | FL88: < 0,05 | FM88: < 0,05 | FN88: < 0,05 | FO88: < 0,05 | FP88: < 0,05 | FQ88: < 0,05 | FR88: < 0,05 | FS88: < 0,05 | FT88: < 0,05 | FU88: < 0,05 | FV88: < 0,05 | FW88: < 0,05 | FX88: < 0,05 | FY88: < 0,05 | FZ88: < 0,5 | GA88: < 0,05 | GB88: < 0,05 | GC88: < 0,05 | GD88: < 0,05 | GE88: < 0,05 | GF88: < 0,05 | GG88: < 0,05 | GH88: < 0,05 | GI88: < 0,05 | GJ88: < 0,05 | GK88: < 0,05 | GL88: < 0,05 | GM88: < 0,05 | GN88: < 0,05 | GO88: < 0,05 | GP88: < 0,05 | GQ88: < 0,05 | GR88: < 0,05 | GS88: < 0,05 | GT88: < 0,05 | GU88: < 0,05 | GV88: < 0,05 | GW88: < 0,05 | GX88: < 0,05 | GY88: < 0,05 | GZ88: < 0,05 | HA88: < 0,05 | HB88: < 0,05 | HC88: < 0,05 | HD88: < 0,05 | HE88: < 0,05 | HF88: < 0,1 | HG88: < 0,05 | HH88: < 0,05 | HI88: < 0,05 | HJ88: < 0,05
B89: Perfluortridecansulfonsäure (PFTrDS) | C89: µg/l | EA89: < 0,05 | EB89: < 0,05 | EC89: < 0,05 | ED89: < 0,05 | EE89: < 0,05 | EF89: < 0,05 | EG89: < 0,05 | EH89: < 0,05 | EI89: < 0,05 | EJ89: < 0,05 | EK89: < 0,05 | EL89: < 0,05 | EM89: < 0,05 | EN89: < 0,05 | EO89: < 0,05 | EP89: < 0,05 | EQ89: < 0,05 | ER89: < 0,05 | ES89: < 0,05 | ET89: < 0,05 | EU89: < 0,05 | EV89: < 0,05 | EW89: < 0,05 | EX89: < 0,05 | EY89: < 0,05 | EZ89: < 0,05 | FA89: < 0,05 | FB89: < 0,05 | FC89: < 0,05 | FD89: < 0,05 | FE89: < 0,05 | FF89: < 0,05 | FG89: < 0,05 | FH89: < 0,05 | FI89: < 0,05 | FJ89: < 0,05 | FK89: < 0,05 | FL89: < 0,05 | FM89: < 0,05 | FN89: < 0,05 | FO89: < 0,05 | FP89: < 0,05 | FQ89: < 0,05 | FR89: < 0,05 | FS89: < 0,5 | FT89: < 0,05 | FU89: < 0,05 | FV89: < 0,05 | FW89: < 0,05 | FX89: < 0,05 | FY89: < 0,05 | FZ89: < 0,5 | GA89: < 0,05 | GB89: < 0,05 | GC89: < 0,05 | GD89: < 0,05 | GE89: < 0,05 | GF89: < 0,05 | GG89: < 0,05 | GH89: < 0,05 | GI89: < 0,05 | GJ89: < 0,05 | GK89: < 0,05 | GL89: < 0,05 | GM89: < 0,05 | GN89: < 0,05 | GO89: < 0,05 | GP89: < 0,05 | GQ89: < 0,05 | GR89: < 0,05 | GS89: < 0,05 | GT89: < 0,05 | GU89: < 0,05 | GV89: < 0,05 | GW89: < 0,05 | GX89: < 0,05 | GY89: < 0,05 | GZ89: < 0,05 | HA89: < 0,05 | HB89: < 0,05 | HC89: < 0,05 | HD89: < 0,05 | HE89: < 0,05 | HF89: < 0,05 | HG89: < 0,05 | HH89: < 0,05 | HI89: < 0,05 | HJ89: < 0,05
B90: GenX | C90: µg/l | CT90: < 0,01 | CU90: < 0,01 | CV90: < 0,01 | CW90: < 0,01 | CX90: < 0,01 | CY90: < 0,01 | CZ90: < 0,01 | DA90: < 0,01 | DB90: < 0,01 | DC90: < 0,01 | DD90: < 0,01 | DE90: < 0,05 | DF90: < 0,05 | DG90: < 0,06 | DH90: < 0,06 | DI90: < 0,01 | DJ90: < 0,01 | DK90: < 0,1 | DL90: < 0,05 | DM90: < 0,01 | DN90: < 0,01
B91: Capstone A (DPOSA) | C91: µg/l | AO91: < 0,05 | AP91: < 0,05 | AQ91: < 0,05 | AR91: < 0,05 | AS91: < 0,05 | AT91: < 0,05 | AU91: < 0,05 | AV91: < 0,05 | CT91: 0,015 | CU91: < 0,01 | CV91: < 0,01 | CW91: < 0,01 | CX91: < 0,01 | CY91: < 0,01 | CZ91: < 0,01 | DA91: < 0,01 | DB91: < 0,01 | DC91: < 0,01 | DD91: < 0,01 | DE91: 0,011 | DF91: < 0,01 | DG91: < 0,01 | DH91: < 0,01 | DI91: < 0,01 | DJ91: < 0,01 | DK91: < 0,01 | DL91: < 0,01 | DM91: < 0,01 | DN91: < 0,01
B92: Capstone B (CDPOS) | C92: µg/l | AO92: 0,46 | AP92: 0,4 | AQ92: 1,9 | AR92: < 0,05 | AS92: < 0,05 | AT92: < 0,05 | AU92: < 0,05 | AV92: < 0,05 | CT92: 0,24 | CU92: 0,140 | CV92: 0,76 | CW92: < 0,05 | CX92: < 0,05 | CY92: < 0,05 | CZ92: < 0,05 | DA92: < 0,05 | DB92: < 0,05 | DC92: 0,570 | DD92: < 0,05 | DE92: 0,390 | DF92: 0,350 | DG92: < 1 | DH92: < 0,05 | DI92: < 0,05 | DJ92: < 0,05 | DK92: < 0,05 | DL92: < 0,05 | DM92: < 0,05 | DN92: < 0,05
B93: 2H,2H-Perfluordecansäure (H2PFDA) | C93: µg/l | CT93: < 0,01 | CU93: < 0,01 | CV93: < 0,01 | CW93: < 0,01 | CX93: < 0,01 | CY93: < 0,01 | CZ93: < 0,01 | DA93: < 0,01 | DB93: < 0,01
B94: Perfluorbutansäure (PFBA) nach Oxidation | C94: µg/l | CV94: 0,17 | CY94: 0,069 | DA94: 0,032 | DG94: 0,15 | DK94: 0,049 | DM94: 0,030
B95: Perfluorbutansulfonsäure (PFBS) nach Oxidation | C95: µg/l | CV95: 0,034 | CY95: 0,011 | DA95: < 0,01 | DG95: 0,031 | DK95: < 0,01 | DM95: < 0,01
B96: Perfluorpentansäure (PFPeA) nach Oxidation | C96: µg/l | CV96: 0,25 | CY96: 0,086 | DA96: 0,026 | DG96: 0,23 | DK96: 0,060 | DM96: 0,026
B97: Perfluorhexansäure (PFHxA) nach Oxidation | C97: µg/l | CV97: 0,88 | CY97: 0,39 | DA97: 0,12 | DG97: 0,84 | DK97: 0,20 | DM97: 0,10
B98: Perfluorhexansulfonsäure (PFHxS) nach Oxidation | C98: µg/l | CV98: 0,34 | CY98: 0,13 | DA98: 0,091 | DG98: 0,33 | DK98: 0,10 | DM98: 0,098
B99: 1H,1H,2H,2H-PFhexansulfonsre.(H4PFHxS) nach Ox. | C99: µg/l | CV99: < 0,01 | CY99: < 0,01 | DA99: < 0,01 | DG99: < 0,01 | DK99: < 0,01 | DM99: < 0,01
B100: Perfluorheptansäure (PFHpA) nach Oxidation | C100: µg/l | CV100: 0,047 | CY100: 0,016 | DA100: < 0,01 | DG100: 0,086 | DK100: 0,019 | DM100: < 0,01
B101: Perfluorheptansulfonsäure (PFHpS) nach Oxidation | C101: µg/l | CV101: 0,036 | CY101: 0,017 | DA101: < 0,01 | DG101: 0,032 | DK101: < 0,01 | DM101: < 0,03
B102: 7H-Dodecafluorheptansäure (HPFHpA) nach Oxidation | C102: µg/l | CV102: < 0,01 | CY102: < 0,01 | DA102: < 0,01 | DG102: < 0,01 | DK102: < 0,01 | DM102: < 0,01
B103: Perfluoroctansäure (PFOA) nach Oxidation | C103: µg/l | CV103: 0,11 | CY103: 0,029 | DA103: 0,012 | DG103: 0,086 | DK103: 0,027 | DM103: 0,014
B104: PF-3,7-dimethyloctansre.(PF-3,7-DMOA) nach Oxidation | C104: µg/l | CV104: < 0,01 | CY104: < 0,01 | DA104: < 0,01 | DG104: < 0,01 | DK104: 0,79 | DM104: < 0,01
B105: Perfluoroctansulfonsäure (PFOS) nach Oxidation | C105: µg/l | CV105: 3,1 | CY105: 0,82 | DA105: 0,21 | DG105: 3,0 | DK105: < 0,01 | DM105: 0,29
B106: 1H,1H,2H,2H-PFoctansulfonsre.(H4PFOS) nach Ox. | C106: µg/l | CV106: < 0,01 | CY106: < 0,01 | DA106: < 0,01 | DG106: < 0,01 | DK106: < 0,01 | DM106: < 0,01
B107: Perfluoroctansulfonsäureamid (PFOSA) nach Oxidation | C107: µg/l | CV107: < 0,01 | CY107: < 0,01 | DA107: < 0,01 | DG107: < 0,01 | DK107: < 0,01 | DM107: < 0,01
B108: Perfluornonansäure (PFNA) nach Oxidation | C108: µg/l | CV108: 0,028 | CY108: 0,050 | DA108: 0,037 | DG108: 0,038 | DK108: 0,039 | DM108: 0,040
B109: Perfluordecansäure (PFDA) nach Oxidation | C109: µg/l | CV109: < 0,01 | CY109: < 0,01 | DA109: < 0,01 | DG109: < 0,01 | DK109: < 0,01 | DM109: < 0,01
B110: Perfluordecansulfonsäure (PFDS) nach Oxidation | C110: µg/l | CV110: < 0,02 | CY110: < 0,01 | DA110: < 0,01 | DG110: < 0,01 | DK110: < 0,01 | DM110: < 0,01
B111: 1H,1H,2H,2H-PFdecansulfonsre.(H4PFDS) nach Ox. | C111: µg/l | CV111: < 0,01 | CY111: < 0,01 | DA111: < 0,01 | DG111: < 0,01 | DK111: < 0,01 | DM111: < 0,01
B112: Perfluorundecansäure (PFUnA) nach Oxidation | C112: µg/l | CV112: 0,016 | CY112: 0,011 | DA112: < 0,01 | DG112: < 0,02 | DK112: < 0,01 | DM112: < 0,01
B113: Perfluordodecansäure (PFDoA) nach Oxidation | C113: µg/l | CV113: < 0,01 | CY113: < 0,01 | DA113: < 0,01 | DG113: < 0,01 | DK113: < 0,01 | DM113: < 0,01

Sheet Messtellen Diagramme
A4: Parameter | B4: MW | C4: =_xlfn._xlws.FILTER(C35:SH35,C35:SH35<>"") -> 00563/19 | D4: 02322/19 | E4: 06111/19 | F4: 10446/19 | G4: 00424/20 | H4: 02134/20 | I4: 05762/20 | J4: 09289/20 | K4: 00362/21 | L4: 02428/21 | M4: 04150/21 | N4: 09099/21 | O4: 12148/21
A5: Perfluorbutansäure (PFBA) | B5: =AVERAGEA(_xlfn._xlws.FILTER((C5:SH5),C5:SH5<>"")) -> 0.01669230769 | C5: =_xlfn.IFS(ISERROR(VALUE(_xlfn._xlws.FILTER(C36:SH57,A5:A26=A5:A26,"-")))=TRUE,_xlfn._xlws.FILTER(C36:SH57,A5:A26=A5:A26,"-"), _xlfn._xlws.FILTER(C36:SH57,A5:A26=A5:A26,"-")="","", ISERROR(VALUE(_xlfn._xlws.FILTER(C36:SH57,A5:A26=A5:A26,"-")))=FALSE,VALUE(_xlfn._xlws.FILTER(C36:SH57,A5:A26=A5:A26,"-"))) -> 0.02 | D5: 0.02 | E5: 0.02 | F5: 0.02 | G5: 0.02 | H5: 0.01 | I5: 0.02 | J5: 0.02 | K5: 0.02 | L5: 0.017 | M5: < 0,02 | N5: 0.01 | O5: 0.02
A6: Perfluorbutansulfonsäure (PFBS) | B6: =AVERAGEA(_xlfn._xlws.FILTER((C6:SH6),C6:SH6<>"")) -> 0.01469230769 | C6: 0.03 | D6: 0.03 | E6: 0.02 | F6: 0.02 | G6: 0.02 | H6: 0.01 | I6: 0.01 | J6: 0.01 | K6: 0.01 | L6: 0.011 | M6: < 0,01 | N6: 0.01 | O6: 0.01
A7: Perfluordecansäure (PFDA) | B7: =AVERAGEA(_xlfn._xlws.FILTER((C7:SH7),C7:SH7<>"")) -> 0 | C7: < 0,01 | D7: < 0,01 | E7: < 0,01 | F7: < 0,01 | G7: < 0,01 | H7: < 0,01 | I7: < 0,01 | J7: < 0,01 | K7: < 0,01 | L7: < 0,01 | M7: < 0,01 | N7: < 0,01 | O7: < 0,01
A8: Perfluordecansulfonsäure (PFDS) | B8: =AVERAGEA(_xlfn._xlws.FILTER((C8:SH8),C8:SH8<>"")) -> 0 | L8: < 0,01 | M8: < 0,01 | N8: < 0,01 | O8: < 0,5
A9: Perfluordodecansäure (PFDoA) | B9: =AVERAGEA(_xlfn._xlws.FILTER((C9:SH9),C9:SH9<>"")) -> 0 | L9: < 0,01 | M9: < 0,01
A10: Perfluordodecansäure (PFDoDA) | B10: =AVERAGEA(_xlfn._xlws.FILTER((C10:SH10),C10:SH10<>"")) -> 0 | N10: < 0,01 | O10: < 0,01
A11: Perfluordodecansulfonsäure (PFDoDS) | B11: =AVERAGEA(_xlfn._xlws.FILTER((C11:SH11),C11:SH11<>"")) -> 0 | N11: < 0,05 | O11: < 0,5
A12: Perfluorheptansäure (PFHpA) | B12: =AVERAGEA(_xlfn._xlws.FILTER((C12:SH12),C12:SH12<>"")) -> 0.01815384615 | C12: 0.02 | D12: 0.02 | E12: 0.02 | F12: 0.02 | G12: 0.02 | H12: 0.02 | I12: 0.02 | J12: 0.02 | K12: 0.02 | L12: 0.014 | M12: 0.012 | N12: 0.02 | O12: 0.01
A13: Perfluorheptansulfonsäure (PFHpS) | B13: =AVERAGEA(_xlfn._xlws.FILTER((C13:SH13),C13:SH13<>"")) -> 0.00875 | L13: 0.015 | M13: < 0,01 | N13: 0.01 | O13: 0.01
A14: Perfluorhexansäure (PFHxA) | B14: =AVERAGEA(_xlfn._xlws.FILTER((C14:SH14),C14:SH14<>"")) -> 0.04638461538 | C14: 0.06 | D14: 0.06 | E14: 0.06 | F14: 0.05 | G14: 0.05 | H14: 0.04 | I14: 0.06 | J14: 0.07 | K14: 0.04 | L14: 0.036 | M14: 0.017 | N14: 0.03 | O14: 0.03
A15: Perfluorhexansulfonsäure (PFHxS) | B15: =AVERAGEA(_xlfn._xlws.FILTER((C15:SH15),C15:SH15<>"")) -> 0.1613076923 | C15: 0.2 | D15: 0.19 | E15: 0.2 | F15: 0.17 | G15: 0.16 | H15: 0.15 | I15: 0.18 | J15: 0.18 | K15: 0.14 | L15: 0.13 | M15: 0.087 | N15: 0.16 | O15: 0.15
A16: Perfluornonansäure (PFNA) | B16: =AVERAGEA(_xlfn._xlws.FILTER((C16:SH16),C16:SH16<>"")) -> 0.04384615385 | C16: 0.06 | D16: 0.06 | E16: 0.05 | F16: 0.04 | G16: 0.04 | H16: 0.04 | I16: 0.05 | J16: 0.05 | K16: 0.04 | L16: 0.038 | M16: 0.022 | N16: 0.04 | O16: 0.04
A17: Perfluornonansulfonsäure (PFNS) | B17: =AVERAGEA(_xlfn._xlws.FILTER((C17:SH17),C17:SH17<>"")) -> 0.01 | N17: 0.02 | O17: < 0,05
A18: Perfluoroctansäure (PFOA) | B18: =AVERAGEA(_xlfn._xlws.FILTER((C18:SH18),C18:SH18<>"")) -> 0.02938461538 | C18: 0.03 | D18: 0.04 | E18: 0.03 | F18: 0.03 | G18: 0.03 | H18: 0.03 | I18: 0.03 | J18: 0.04 | K18: 0.03 | L18: 0.025 | M18: 0.017 | N18: 0.03 | O18: 0.02
A19: Perfluoroctansulfonsäure (PFOS) | B19: =AVERAGEA(_xlfn._xlws.FILTER((C19:SH19),C19:SH19<>"")) -> 0.7623076923 | C19: 0.85 | D19: 1 | E19: 1 | F19: 0.83 | G19: 0.97 | H19: 0.81 | I19: 0.63 | J19: 0.67 | K19: 0.61 | L19: 0.85 | M19: 0.51 | N19: 0.68 | O19: 0.5
A20: Perfluorpentansäure (PFPeA) | B20: =AVERAGEA(_xlfn._xlws.FILTER((C20:SH20),C20:SH20<>"")) -> 0.03207692308 | C20: 0.04 | D20: 0.05 | E20: 0.04 | F20: 0.03 | G20: 0.03 | H20: 0.03 | I20: 0.04 | J20: 0.05 | K20: 0.03 | L20: 0.027 | M20: < 0,05 | N20: 0.03 | O20: 0.02
A21: Perfluorpentansulfonsäure (PFPeS) | B21: =AVERAGEA(_xlfn._xlws.FILTER((C21:SH21),C21:SH21<>"")) -> 0.02 | N21: 0.02 | O21: 0.02
A22: Perfluortridecansäure (PFTrDA) | B22: =AVERAGEA(_xlfn._xlws.FILTER((C22:SH22),C22:SH22<>"")) -> 0 | N22: < 0,05 | O22: < 0,5
A23: Perfluortridecansulfonsäure (PFTrDS) | B23: =AVERAGEA(_xlfn._xlws.FILTER((C23:SH23),C23:SH23<>"")) -> 0 | N23: < 0,05 | O23: < 0,5
A24: Perfluorundecansäure (PFUnA) | B24: =AVERAGEA(_xlfn._xlws.FILTER((C24:SH24),C24:SH24<>"")) -> 0.0075 | L24: 0.015 | M24: < 0,01
A25: Perfluorundecansäure (PFUnDA) | B25: =AVERAGEA(_xlfn._xlws.FILTER((C25:SH25),C25:SH25<>"")) -> 0.01 | N25: 0.02 | O25: < 0,02
A26: Perfluorundecansulfonsäure (PFUnDS) | B26: =AVERAGEA(_xlfn._xlws.FILTER((C26:SH26),C26:SH26<>"")) -> 0 | N26: < 0,05 | O26: < 0,5
A27: Summe PFAS20 | C27: =IF(C34>=SumPFAS_StartDat,SUM(C5:C26),"") ->  | N27: 1.08 | O27: 0.83 | BO27: =IF(BO34>=SumPFAS_StartDat,SUM(BO5:BO26),"") ->  | EA27: =IF(EA34>=SumPFAS_StartDat,SUM(EA5:EA26),"") ->  | GM27: =IF(GM34>=SumPFAS_StartDat,SUM(GM5:GM26),"") ->  | IY27: =IF(IY34>=SumPFAS_StartDat,SUM(IY5:IY26),"") ->  | LK27: =IF(LK34>=SumPFAS_StartDat,SUM(LK5:LK26),"") ->  | NW27: =IF(NW34>=SumPFAS_StartDat,SUM(NW5:NW26),"") ->  | QI27: =IF(QI34>=SumPFAS_StartDat,SUM(QI5:QI26),"") -> 
A28: MW PFOS | C28: =IF(C34<>"",AVERAGEA(_xlfn._xlws.FILTER(($C$19:$SH$19),$C$19:$SH$19<>"")),"") -> 0.7623076923 | D28: =IF(D34<>"",AVERAGEA(_xlfn._xlws.FILTER(($C$19:$SH$19),$C$19:$SH$19<>"")),"") -> 0.7623076923 | E28: =IF(E34<>"",AVERAGEA(_xlfn._xlws.FILTER(($C$19:$SH$19),$C$19:$SH$19<>"")),"") -> 0.7623076923 | F28: =IF(F34<>"",AVERAGEA(_xlfn._xlws.FILTER(($C$19:$SH$19),$C$19:$SH$19<>"")),"") -> 0.7623076923 | G28: =IF(G34<>"",AVERAGEA(_xlfn._xlws.FILTER(($C$19:$SH$19),$C$19:$SH$19<>"")),"") -> 0.7623076923 | H28: =IF(H34<>"",AVERAGEA(_xlfn._xlws.FILTER(($C$19:$SH$19),$C$19:$SH$19<>"")),"") -> 0.7623076923 | I28: =IF(I34<>"",AVERAGEA(_xlfn._xlws.FILTER(($C$19:$SH$19),$C$19:$SH$19<>"")),"") -> 0.7623076923 | J28: =IF(J34<>"",AVERAGEA(_xlfn._xlws.FILTER(($C$19:$SH$19),$C$19:$SH$19<>"")),"") -> 0.7623076923 | K28: =IF(K34<>"",AVERAGEA(_xlfn._xlws.FILTER(($C$19:$SH$19),$C$19:$SH$19<>"")),"") -> 0.7623076923 | L28: =IF(L34<>"",AVERAGEA(_xlfn._xlws.FILTER(($C$19:$SH$19),$C$19:$SH$19<>"")),"") -> 0.7623076923 | M28: =IF(M34<>"",AVERAGEA(_xlfn._xlws.FILTER(($C$19:$SH$19),$C$19:$SH$19<>"")),"") -> 0.7623076923 | N28: =IF(N34<>"",AVERAGEA(_xlfn._xlws.FILTER(($C$19:$SH$19),$C$19:$SH$19<>"")),"") -> 0.7623076923 | O28: =IF(O34<>"",AVERAGEA(_xlfn._xlws.FILTER(($C$19:$SH$19),$C$19:$SH$19<>"")),"") -> 0.7623076923 | P28: =IF(P34<>"",AVERAGEA(_xlfn._xlws.FILTER(($C$19:$SH$19),$C$19:$SH$19<>"")),"") ->  | Q28: =IF(Q34<>"",AVERAGEA(_xlfn._xlws.FILTER(($C$19:$SH$19),$C$19:$SH$19<>"")),"") ->  | R28: =IF(R34<>"",AVERAGEA(_xlfn._xlws.FILTER(($C$19:$SH$19),$C$19:$SH$19<>"")),"") ->  | S28: =IF(S34<>"",AVERAGEA(_xlfn._xlws.FILTER(($C$19:$SH$19),$C$19:$SH$19<>"")),"") ->  | T28: =IF(T34<>"",AVERAGEA(_xlfn._xlws.FILTER(($C$19:$SH$19),$C$19:$SH$19<>"")),"") ->  | U28: =IF(U34<>"",AVERAGEA(_xlfn._xlws.FILTER(($C$19:$SH$19),$C$19:$SH$19<>"")),"") ->  | V28: =IF(V34<>"",AVERAGEA(_xlfn._xlws.FILTER(($C$19:$SH$19),$C$19:$SH$19<>"")),"") ->  | W28: =IF(W34<>"",AVERAGEA(_xlfn._xlws.FILTER(($C$19:$SH$19),$C$19:$SH$19<>"")),"") ->  | X28: =IF(X34<>"",AVERAGEA(_xlfn._xlws.FILTER(($C$19:$SH$19),$C$19:$SH$19<>"")),"") ->  | Y28: =IF(Y34<>"",AVERAGEA(_xlfn._xlws.FILTER(($C$19:$SH$19),$C$19:$SH$19<>"")),"") ->  | Z28: =IF(Z34<>"",AVERAGEA(_xlfn._xlws.FILTER(($C$19:$SH$19),$C$19:$SH$19<>"")),"") ->  | AA28: =IF(AA34<>"",AVERAGEA(_xlfn._xlws.FILTER(($C$19:$SH$19),$C$19:$SH$19<>"")),"") ->  | AB28: =IF(AB34<>"",AVERAGEA(_xlfn._xlws.FILTER(($C$19:$SH$19),$C$19:$SH$19<>"")),"") ->  | AC28: =IF(AC34<>"",AVERAGEA(_xlfn._xlws.FILTER(($C$19:$SH$19),$C$19:$SH$19<>"")),"") ->  | AD28: =IF(AD34<>"",AVERAGEA(_xlfn._xlws.FILTER(($C$19:$SH$19),$C$19:$SH$19<>"")),"") ->  | AE28: =IF(AE34<>"",AVERAGEA(_xlfn._xlws.FILTER(($C$19:$SH$19),$C$19:$SH$19<>"")),"") ->  | AF28: =IF(AF34<>"",AVERAGEA(_xlfn._xlws.FILTER(($C$19:$SH$19),$C$19:$SH$19<>"")),"") ->  | AG28: =IF(AG34<>"",AVERAGEA(_xlfn._xlws.FILTER(($C$19:$SH$19),$C$19:$SH$19<>"")),"") ->  | AH28: =IF(AH34<>"",AVERAGEA(_xlfn._xlws.FILTER(($C$19:$SH$19),$C$19:$SH$19<>"")),"") ->  | AI28: =IF(AI34<>"",AVERAGEA(_xlfn._xlws.FILTER(($C$19:$SH$19),$C$19:$SH$19<>"")),"") ->  | AJ28: =IF(AJ34<>"",AVERAGEA(_xlfn._xlws.FILTER(($C$19:$SH$19),$C$19:$SH$19<>"")),"") ->  | AK28: =IF(AK34<>"",AVERAGEA(_xlfn._xlws.FILTER(($C$19:$SH$19),$C$19:$SH$19<>"")),"") ->  | AL28: =IF(AL34<>"",AVERAGEA(_xlfn._xlws.FILTER(($C$19:$SH$19),$C$19:$SH$19<>"")),"") ->  | AM28: =IF(AM34<>"",AVERAGEA(_xlfn._xlws.FILTER(($C$19:$SH$19),$C$19:$SH$19<>"")),"") ->  | AN28: =IF(AN34<>"",AVERAGEA(_xlfn._xlws.FILTER(($C$19:$SH$19),$C$19:$SH$19<>"")),"") ->  | AO28: =IF(AO34<>"",AVERAGEA(_xlfn._xlws.FILTER(($C$19:$SH$19),$C$19:$SH$19<>"")),"") ->  | AP28: =IF(AP34<>"",AVERAGEA(_xlfn._xlws.FILTER(($C$19:$SH$19),$C$19:$SH$19<>"")),"") ->  | AQ28: =IF(AQ34<>"",AVERAGEA(_xlfn._xlws.FILTER(($C$19:$SH$19),$C$19:$SH$19<>"")),"") ->  | AR28: =IF(AR34<>"",AVERAGEA(_xlfn._xlws.FILTER(($C$19:$SH$19),$C$19:$SH$19<>"")),"") ->  | AS28: =IF(AS34<>"",AVERAGEA(_xlfn._xlws.FILTER(($C$19:$SH$19),$C$19:$SH$19<>"")),"") ->  | AT28: =IF(AT34<>"",AVERAGEA(_xlfn._xlws.FILTER(($C$19:$SH$19),$C$19:$SH$19<>"")),"") ->  | AU28: =IF(AU34<>"",AVERAGEA(_xlfn._xlws.FILTER(($C$19:$SH$19),$C$19:$SH$19<>"")),"") ->  | AV28: =IF(AV34<>"",AVERAGEA(_xlfn._xlws.FILTER(($C$19:$SH$19),$C$19:$SH$19<>"")),"") ->  | AW28: =IF(AW34<>"",AVERAGEA(_xlfn._xlws.FILTER(($C$19:$SH$19),$C$19:$SH$19<>"")),"") ->  | AX28: =IF(AX34<>"",AVERAGEA(_xlfn._xlws.FILTER(($C$19:$SH$19),$C$19:$SH$19<>"")),"") ->  | AY28: =IF(AY34<>"",AVERAGEA(_xlfn._xlws.FILTER(($C$19:$SH$19),$C$19:$SH$19<>"")),"") ->  | AZ28: =IF(AZ34<>"",AVERAGEA(_xlfn._xlws.FILTER(($C$19:$SH$19),$C$19:$SH$19<>"")),"") ->  | BA28: =IF(BA34<>"",AVERAGEA(_xlfn._xlws.FILTER(($C$19:$SH$19),$C$19:$SH$19<>"")),"") ->  | BB28: =IF(BB34<>"",AVERAGEA(_xlfn._xlws.FILTER(($C$19:$SH$19),$C$19:$SH$19<>"")),"") ->  | BC28: =IF(BC34<>"",AVERAGEA(_xlfn._xlws.FILTER(($C$19:$SH$19),$C$19:$SH$19<>"")),"") ->  | BD28: =IF(BD34<>"",AVERAGEA(_xlfn._xlws.FILTER(($C$19:$SH$19),$C$19:$SH$19<>"")),"") ->  | BE28: =IF(BE34<>"",AVERAGEA(_xlfn._xlws.FILTER(($C$19:$SH$19),$C$19:$SH$19<>"")),"") ->  | BF28: =IF(BF34<>"",AVERAGEA(_xlfn._xlws.FILTER(($C$19:$SH$19),$C$19:$SH$19<>"")),"") ->  | BG28: =IF(BG34<>"",AVERAGEA(_xlfn._xlws.FILTER(($C$19:$SH$19),$C$19:$SH$19<>"")),"") ->  | BH28: =IF(BH34<>"",AVERAGEA(_xlfn._xlws.FILTER(($C$19:$SH$19),$C$19:$SH$19<>"")),"") ->  | BI28: =IF(BI34<>"",AVERAGEA(_xlfn._xlws.FILTER(($C$19:$SH$19),$C$19:$SH$19<>"")),"") ->  | BJ28: =IF(BJ34<>"",AVERAGEA(_xlfn._xlws.FILTER(($C$19:$SH$19),$C$19:$SH$19<>"")),"") ->  | BK28: =IF(BK34<>"",AVERAGEA(_xlfn._xlws.FILTER(($C$19:$SH$19),$C$19:$SH$19<>"")),"") ->  | BL28: =IF(BL34<>"",AVERAGEA(_xlfn._xlws.FILTER(($C$19:$SH$19),$C$19:$SH$19<>"")),"") ->  | BM28: =IF(BM34<>"",AVERAGEA(_xlfn._xlws.FILTER(($C$19:$SH$19),$C$19:$SH$19<>"")),"") ->  | BN28: =IF(BN34<>"",AVERAGEA(_xlfn._xlws.FILTER(($C$19:$SH$19),$C$19:$SH$19<>"")),"") ->  | BO28: =IF(BO34<>"",AVERAGEA(_xlfn._xlws.FILTER(($C$19:$SH$19),$C$19:$SH$19<>"")),"") ->  | BP28: =IF(BP34<>"",AVERAGEA(_xlfn._xlws.FILTER(($C$19:$SH$19),$C$19:$SH$19<>"")),"") ->  | BQ28: =IF(BQ34<>"",AVERAGEA(_xlfn._xlws.FILTER(($C$19:$SH$19),$C$19:$SH$19<>"")),"") ->  | BR28: =IF(BR34<>"",AVERAGEA(_xlfn._xlws.FILTER(($C$19:$SH$19),$C$19:$SH$19<>"")),"") ->  | BS28: =IF(BS34<>"",AVERAGEA(_xlfn._xlws.FILTER(($C$19:$SH$19),$C$19:$SH$19<>"")),"") ->  | BT28: =IF(BT34<>"",AVERAGEA(_xlfn._xlws.FILTER(($C$19:$SH$19),$C$19:$SH$19<>"")),"") ->  | BU28: =IF(BU34<>"",AVERAGEA(_xlfn._xlws.FILTER(($C$19:$SH$19),$C$19:$SH$19<>"")),"") ->  | BV28: =IF(BV34<>"",AVERAGEA(_xlfn._xlws.FILTER(($C$19:$SH$19),$C$19:$SH$19<>"")),"") ->  | BW28: =IF(BW34<>"",AVERAGEA(_xlfn._xlws.FILTER(($C$19:$SH$19),$C$19:$SH$19<>"")),"") ->  | BX28: =IF(BX34<>"",AVERAGEA(_xlfn._xlws.FILTER(($C$19:$SH$19),$C$19:$SH$19<>"")),"") ->  | BY28: =IF(BY34<>"",AVERAGEA(_xlfn._xlws.FILTER(($C$19:$SH$19),$C$19:$SH$19<>"")),"") ->  | BZ28: =IF(BZ34<>"",AVERAGEA(_xlfn._xlws.FILTER(($C$19:$SH$19),$C$19:$SH$19<>"")),"") ->  | CA28: =IF(CA34<>"",AVERAGEA(_xlfn._xlws.FILTER(($C$19:$SH$19),$C$19:$SH$19<>"")),"") ->  | CB28: =IF(CB34<>"",AVERAGEA(_xlfn._xlws.FILTER(($C$19:$SH$19),$C$19:$SH$19<>"")),"") ->  | CC28: =IF(CC34<>"",AVERAGEA(_xlfn._xlws.FILTER(($C$19:$SH$19),$C$19:$SH$19<>"")),"") ->  | CD28: =IF(CD34<>"",AVERAGEA(_xlfn._xlws.FILTER(($C$19:$SH$19),$C$19:$SH$19<>"")),"") ->  | CE28: =IF(CE34<>"",AVERAGEA(_xlfn._xlws.FILTER(($C$19:$SH$19),$C$19:$SH$19<>"")),"") ->  | CF28: =IF(CF34<>"",AVERAGEA(_xlfn._xlws.FILTER(($C$19:$SH$19),$C$19:$SH$19<>"")),"") ->  | CG28: =IF(CG34<>"",AVERAGEA(_xlfn._xlws.FILTER(($C$19:$SH$19),$C$19:$SH$19<>"")),"") ->  | CH28: =IF(CH34<>"",AVERAGEA(_xlfn._xlws.FILTER(($C$19:$SH$19),$C$19:$SH$19<>"")),"") ->  | CI28: =IF(CI34<>"",AVERAGEA(_xlfn._xlws.FILTER(($C$19:$SH$19),$C$19:$SH$19<>"")),"") ->  | CJ28: =IF(CJ34<>"",AVERAGEA(_xlfn._xlws.FILTER(($C$19:$SH$19),$C$19:$SH$19<>"")),"") ->  | CK28: =IF(CK34<>"",AVERAGEA(_xlfn._xlws.FILTER(($C$19:$SH$19),$C$19:$SH$19<>"")),"") ->  | CL28: =IF(CL34<>"",AVERAGEA(_xlfn._xlws.FILTER(($C$19:$SH$19),$C$19:$SH$19<>"")),"") ->  | CM28: =IF(CM34<>"",AVERAGEA(_xlfn._xlws.FILTER(($C$19:$SH$19),$C$19:$SH$19<>"")),"") ->  | CN28: =IF(CN34<>"",AVERAGEA(_xlfn._xlws.FILTER(($C$19:$SH$19),$C$19:$SH$19<>"")),"") ->  | CO28: =IF(CO34<>"",AVERAGEA(_xlfn._xlws.FILTER(($C$19:$SH$19),$C$19:$SH$19<>"")),"") ->  | CP28: =IF(CP34<>"",AVERAGEA(_xlfn._xlws.FILTER(($C$19:$SH$19),$C$19:$SH$19<>"")),"") ->  | CQ28: =IF(CQ34<>"",AVERAGEA(_xlfn._xlws.FILTER(($C$19:$SH$19),$C$19:$SH$19<>"")),"") ->  | CR28: =IF(CR34<>"",AVERAGEA(_xlfn._xlws.FILTER(($C$19:$SH$19),$C$19:$SH$19<>"")),"") ->  | CS28: =IF(CS34<>"",AVERAGEA(_xlfn._xlws.FILTER(($C$19:$SH$19),$C$19:$SH$19<>"")),"") ->  | CT28: =IF(CT34<>"",AVERAGEA(_xlfn._xlws.FILTER(($C$19:$SH$19),$C$19:$SH$19<>"")),"") ->  | CU28: =IF(CU34<>"",AVERAGEA(_xlfn._xlws.FILTER(($C$19:$SH$19),$C$19:$SH$19<>"")),"") ->  | CV28: =IF(CV34<>"",AVERAGEA(_xlfn._xlws.FILTER(($C$19:$SH$19),$C$19:$SH$19<>"")),"") ->  | CW28: =IF(CW34<>"",AVERAGEA(_xlfn._xlws.FILTER(($C$19:$SH$19),$C$19:$SH$19<>"")),"") ->  | CX28: =IF(CX34<>"",AVERAGEA(_xlfn._xlws.FILTER(($C$19:$SH$19),$C$19:$SH$19<>"")),"") ->  | CY28: =IF(CY34<>"",AVERAGEA(_xlfn._xlws.FILTER(($C$19:$SH$19),$C$19:$SH$19<>"")),"") ->  | CZ28: =IF(CZ34<>"",AVERAGEA(_xlfn._xlws.FILTER(($C$19:$SH$19),$C$19:$SH$19<>"")),"") ->  | DA28: =IF(DA34<>"",AVERAGEA(_xlfn._xlws.FILTER(($C$19:$SH$19),$C$19:$SH$19<>"")),"") ->  | DB28: =IF(DB34<>"",AVERAGEA(_xlfn._xlws.FILTER(($C$19:$SH$19),$C$19:$SH$19<>"")),"") ->  | DC28: =IF(DC34<>"",AVERAGEA(_xlfn._xlws.FILTER(($C$19:$SH$19),$C$19:$SH$19<>"")),"") ->  | DD28: =IF(DD34<>"",AVERAGEA(_xlfn._xlws.FILTER(($C$19:$SH$19),$C$19:$SH$19<>"")),"") ->  | DE28: =IF(DE34<>"",AVERAGEA(_xlfn._xlws.FILTER(($C$19:$SH$19),$C$19:$SH$19<>"")),"") ->  | DF28: =IF(DF34<>"",AVERAGEA(_xlfn._xlws.FILTER(($C$19:$SH$19),$C$19:$SH$19<>"")),"") ->  | DG28: =IF(DG34<>"",AVERAGEA(_xlfn._xlws.FILTER(($C$19:$SH$19),$C$19:$SH$19<>"")),"") ->  | DH28: =IF(DH34<>"",AVERAGEA(_xlfn._xlws.FILTER(($C$19:$SH$19),$C$19:$SH$19<>"")),"") ->  | DI28: =IF(DI34<>"",AVERAGEA(_xlfn._xlws.FILTER(($C$19:$SH$19),$C$19:$SH$19<>"")),"") ->  | DJ28: =IF(DJ34<>"",AVERAGEA(_xlfn._xlws.FILTER(($C$19:$SH$19),$C$19:$SH$19<>"")),"") ->  | DK28: =IF(DK34<>"",AVERAGEA(_xlfn._xlws.FILTER(($C$19:$SH$19),$C$19:$SH$19<>"")),"") ->  | DL28: =IF(DL34<>"",AVERAGEA(_xlfn._xlws.FILTER(($C$19:$SH$19),$C$19:$SH$19<>"")),"") ->  | DM28: =IF(DM34<>"",AVERAGEA(_xlfn._xlws.FILTER(($C$19:$SH$19),$C$19:$SH$19<>"")),"") ->  | DN28: =IF(DN34<>"",AVERAGEA(_xlfn._xlws.FILTER(($C$19:$SH$19),$C$19:$SH$19<>"")),"") ->  | DO28: =IF(DO34<>"",AVERAGEA(_xlfn._xlws.FILTER(($C$19:$SH$19),$C$19:$SH$19<>"")),"") ->  | DP28: =IF(DP34<>"",AVERAGEA(_xlfn._xlws.FILTER(($C$19:$SH$19),$C$19:$SH$19<>"")),"") ->  | DQ28: =IF(DQ34<>"",AVERAGEA(_xlfn._xlws.FILTER(($C$19:$SH$19),$C$19:$SH$19<>"")),"") ->  | DR28: =IF(DR34<>"",AVERAGEA(_xlfn._xlws.FILTER(($C$19:$SH$19),$C$19:$SH$19<>"")),"") ->  | DS28: =IF(DS34<>"",AVERAGEA(_xlfn._xlws.FILTER(($C$19:$SH$19),$C$19:$SH$19<>"")),"") ->  | DT28: =IF(DT34<>"",AVERAGEA(_xlfn._xlws.FILTER(($C$19:$SH$19),$C$19:$SH$19<>"")),"") ->  | DU28: =IF(DU34<>"",AVERAGEA(_xlfn._xlws.FILTER(($C$19:$SH$19),$C$19:$SH$19<>"")),"") ->  | DV28: =IF(DV34<>"",AVERAGEA(_xlfn._xlws.FILTER(($C$19:$SH$19),$C$19:$SH$19<>"")),"") ->  | DW28: =IF(DW34<>"",AVERAGEA(_xlfn._xlws.FILTER(($C$19:$SH$19),$C$19:$SH$19<>"")),"") ->  | DX28: =IF(DX34<>"",AVERAGEA(_xlfn._xlws.FILTER(($C$19:$SH$19),$C$19:$SH$19<>"")),"") ->  | DY28: =IF(DY34<>"",AVERAGEA(_xlfn._xlws.FILTER(($C$19:$SH$19),$C$19:$SH$19<>"")),"") ->  | DZ28: =IF(DZ34<>"",AVERAGEA(_xlfn._xlws.FILTER(($C$19:$SH$19),$C$19:$SH$19<>"")),"") ->  | EA28: =IF(EA34<>"",AVERAGEA(_xlfn._xlws.FILTER(($C$19:$SH$19),$C$19:$SH$19<>"")),"") ->  | EB28: =IF(EB34<>"",AVERAGEA(_xlfn._xlws.FILTER(($C$19:$SH$19),$C$19:$SH$19<>"")),"") ->  | EC28: =IF(EC34<>"",AVERAGEA(_xlfn._xlws.FILTER(($C$19:$SH$19),$C$19:$SH$19<>"")),"") ->  | ED28: =IF(ED34<>"",AVERAGEA(_xlfn._xlws.FILTER(($C$19:$SH$19),$C$19:$SH$19<>"")),"") ->  | EE28: =IF(EE34<>"",AVERAGEA(_xlfn._xlws.FILTER(($C$19:$SH$19),$C$19:$SH$19<>"")),"") ->  | EF28: =IF(EF34<>"",AVERAGEA(_xlfn._xlws.FILTER(($C$19:$SH$19),$C$19:$SH$19<>"")),"") ->  | EG28: =IF(EG34<>"",AVERAGEA(_xlfn._xlws.FILTER(($C$19:$SH$19),$C$19:$SH$19<>"")),"") ->  | EH28: =IF(EH34<>"",AVERAGEA(_xlfn._xlws.FILTER(($C$19:$SH$19),$C$19:$SH$19<>"")),"") ->  | EI28: =IF(EI34<>"",AVERAGEA(_xlfn._xlws.FILTER(($C$19:$SH$19),$C$19:$SH$19<>"")),"") ->  | EJ28: =IF(EJ34<>"",AVERAGEA(_xlfn._xlws.FILTER(($C$19:$SH$19),$C$19:$SH$19<>"")),"") ->  | EK28: =IF(EK34<>"",AVERAGEA(_xlfn._xlws.FILTER(($C$19:$SH$19),$C$19:$SH$19<>"")),"") ->  | EL28: =IF(EL34<>"",AVERAGEA(_xlfn._xlws.FILTER(($C$19:$SH$19),$C$19:$SH$19<>"")),"") ->  | EM28: =IF(EM34<>"",AVERAGEA(_xlfn._xlws.FILTER(($C$19:$SH$19),$C$19:$SH$19<>"")),"") ->  | EN28: =IF(EN34<>"",AVERAGEA(_xlfn._xlws.FILTER(($C$19:$SH$19),$C$19:$SH$19<>"")),"") ->  | EO28: =IF(EO34<>"",AVERAGEA(_xlfn._xlws.FILTER(($C$19:$SH$19),$C$19:$SH$19<>"")),"") ->  | EP28: =IF(EP34<>"",AVERAGEA(_xlfn._xlws.FILTER(($C$19:$SH$19),$C$19:$SH$19<>"")),"") ->  | EQ28: =IF(EQ34<>"",AVERAGEA(_xlfn._xlws.FILTER(($C$19:$SH$19),$C$19:$SH$19<>"")),"") ->  | ER28: =IF(ER34<>"",AVERAGEA(_xlfn._xlws.FILTER(($C$19:$SH$19),$C$19:$SH$19<>"")),"") ->  | ES28: =IF(ES34<>"",AVERAGEA(_xlfn._xlws.FILTER(($C$19:$SH$19),$C$19:$SH$19<>"")),"") ->  | ET28: =IF(ET34<>"",AVERAGEA(_xlfn._xlws.FILTER(($C$19:$SH$19),$C$19:$SH$19<>"")),"") ->  | EU28: =IF(EU34<>"",AVERAGEA(_xlfn._xlws.FILTER(($C$19:$SH$19),$C$19:$SH$19<>"")),"") ->  | EV28: =IF(EV34<>"",AVERAGEA(_xlfn._xlws.FILTER(($C$19:$SH$19),$C$19:$SH$19<>"")),"") ->  | EW28: =IF(EW34<>"",AVERAGEA(_xlfn._xlws.FILTER(($C$19:$SH$19),$C$19:$SH$19<>"")),"") ->  | EX28: =IF(EX34<>"",AVERAGEA(_xlfn._xlws.FILTER(($C$19:$SH$19),$C$19:$SH$19<>"")),"") ->  | EY28: =IF(EY34<>"",AVERAGEA(_xlfn._xlws.FILTER(($C$19:$SH$19),$C$19:$SH$19<>"")),"") ->  | EZ28: =IF(EZ34<>"",AVERAGEA(_xlfn._xlws.FILTER(($C$19:$SH$19),$C$19:$SH$19<>"")),"") ->  | FA28: =IF(FA34<>"",AVERAGEA(_xlfn._xlws.FILTER(($C$19:$SH$19),$C$19:$SH$19<>"")),"") ->  | FB28: =IF(FB34<>"",AVERAGEA(_xlfn._xlws.FILTER(($C$19:$SH$19),$C$19:$SH$19<>"")),"") ->  | FC28: =IF(FC34<>"",AVERAGEA(_xlfn._xlws.FILTER(($C$19:$SH$19),$C$19:$SH$19<>"")),"") ->  | FD28: =IF(FD34<>"",AVERAGEA(_xlfn._xlws.FILTER(($C$19:$SH$19),$C$19:$SH$19<>"")),"") ->  | FE28: =IF(FE34<>"",AVERAGEA(_xlfn._xlws.FILTER(($C$19:$SH$19),$C$19:$SH$19<>"")),"") ->  | FF28: =IF(FF34<>"",AVERAGEA(_xlfn._xlws.FILTER(($C$19:$SH$19),$C$19:$SH$19<>"")),"") ->  | FG28: =IF(FG34<>"",AVERAGEA(_xlfn._xlws.FILTER(($C$19:$SH$19),$C$19:$SH$19<>"")),"") ->  | FH28: =IF(FH34<>"",AVERAGEA(_xlfn._xlws.FILTER(($C$19:$SH$19),$C$19:$SH$19<>"")),"") ->  | FI28: =IF(FI34<>"",AVERAGEA(_xlfn._xlws.FILTER(($C$19:$SH$19),$C$19:$SH$19<>"")),"") ->  | FJ28: =IF(FJ34<>"",AVERAGEA(_xlfn._xlws.FILTER(($C$19:$SH$19),$C$19:$SH$19<>"")),"") ->  | FK28: =IF(FK34<>"",AVERAGEA(_xlfn._xlws.FILTER(($C$19:$SH$19),$C$19:$SH$19<>"")),"") ->  | FL28: =IF(FL34<>"",AVERAGEA(_xlfn._xlws.FILTER(($C$19:$SH$19),$C$19:$SH$19<>"")),"") ->  | FM28: =IF(FM34<>"",AVERAGEA(_xlfn._xlws.FILTER(($C$19:$SH$19),$C$19:$SH$19<>"")),"") ->  | FN28: =IF(FN34<>"",AVERAGEA(_xlfn._xlws.FILTER(($C$19:$SH$19),$C$19:$SH$19<>"")),"") ->  | FO28: =IF(FO34<>"",AVERAGEA(_xlfn._xlws.FILTER(($C$19:$SH$19),$C$19:$SH$19<>"")),"") ->  | FP28: =IF(FP34<>"",AVERAGEA(_xlfn._xlws.FILTER(($C$19:$SH$19),$C$19:$SH$19<>"")),"") ->  | FQ28: =IF(FQ34<>"",AVERAGEA(_xlfn._xlws.FILTER(($C$19:$SH$19),$C$19:$SH$19<>"")),"") ->  | FR28: =IF(FR34<>"",AVERAGEA(_xlfn._xlws.FILTER(($C$19:$SH$19),$C$19:$SH$19<>"")),"") ->  | FS28: =IF(FS34<>"",AVERAGEA(_xlfn._xlws.FILTER(($C$19:$SH$19),$C$19:$SH$19<>"")),"") ->  | FT28: =IF(FT34<>"",AVERAGEA(_xlfn._xlws.FILTER(($C$19:$SH$19),$C$19:$SH$19<>"")),"") ->  | FU28: =IF(FU34<>"",AVERAGEA(_xlfn._xlws.FILTER(($C$19:$SH$19),$C$19:$SH$19<>"")),"") ->  | FV28: =IF(FV34<>"",AVERAGEA(_xlfn._xlws.FILTER(($C$19:$SH$19),$C$19:$SH$19<>"")),"") ->  | FW28: =IF(FW34<>"",AVERAGEA(_xlfn._xlws.FILTER(($C$19:$SH$19),$C$19:$SH$19<>"")),"") ->  | FX28: =IF(FX34<>"",AVERAGEA(_xlfn._xlws.FILTER(($C$19:$SH$19),$C$19:$SH$19<>"")),"") ->  | FY28: =IF(FY34<>"",AVERAGEA(_xlfn._xlws.FILTER(($C$19:$SH$19),$C$19:$SH$19<>"")),"") ->  | FZ28: =IF(FZ34<>"",AVERAGEA(_xlfn._xlws.FILTER(($C$19:$SH$19),$C$19:$SH$19<>"")),"") ->  | GA28: =IF(GA34<>"",AVERAGEA(_xlfn._xlws.FILTER(($C$19:$SH$19),$C$19:$SH$19<>"")),"") ->  | GB28: =IF(GB34<>"",AVERAGEA(_xlfn._xlws.FILTER(($C$19:$SH$19),$C$19:$SH$19<>"")),"") ->  | GC28: =IF(GC34<>"",AVERAGEA(_xlfn._xlws.FILTER(($C$19:$SH$19),$C$19:$SH$19<>"")),"") ->  | GD28: =IF(GD34<>"",AVERAGEA(_xlfn._xlws.FILTER(($C$19:$SH$19),$C$19:$SH$19<>"")),"") ->  | GE28: =IF(GE34<>"",AVERAGEA(_xlfn._xlws.FILTER(($C$19:$SH$19),$C$19:$SH$19<>"")),"") ->  | GF28: =IF(GF34<>"",AVERAGEA(_xlfn._xlws.FILTER(($C$19:$SH$19),$C$19:$SH$19<>"")),"") ->  | GG28: =IF(GG34<>"",AVERAGEA(_xlfn._xlws.FILTER(($C$19:$SH$19),$C$19:$SH$19<>"")),"") ->  | GH28: =IF(GH34<>"",AVERAGEA(_xlfn._xlws.FILTER(($C$19:$SH$19),$C$19:$SH$19<>"")),"") ->  | GI28: =IF(GI34<>"",AVERAGEA(_xlfn._xlws.FILTER(($C$19:$SH$19),$C$19:$SH$19<>"")),"") ->  | GJ28: =IF(GJ34<>"",AVERAGEA(_xlfn._xlws.FILTER(($C$19:$SH$19),$C$19:$SH$19<>"")),"") ->  | GK28: =IF(GK34<>"",AVERAGEA(_xlfn._xlws.FILTER(($C$19:$SH$19),$C$19:$SH$19<>"")),"") ->  | GL28: =IF(GL34<>"",AVERAGEA(_xlfn._xlws.FILTER(($C$19:$SH$19),$C$19:$SH$19<>"")),"") ->  | GM28: =IF(GM34<>"",AVERAGEA(_xlfn._xlws.FILTER(($C$19:$SH$19),$C$19:$SH$19<>"")),"") ->  | GN28: =IF(GN34<>"",AVERAGEA(_xlfn._xlws.FILTER(($C$19:$SH$19),$C$19:$SH$19<>"")),"") ->  | GO28: =IF(GO34<>"",AVERAGEA(_xlfn._xlws.FILTER(($C$19:$SH$19),$C$19:$SH$19<>"")),"") ->  | GP28: =IF(GP34<>"",AVERAGEA(_xlfn._xlws.FILTER(($C$19:$SH$19),$C$19:$SH$19<>"")),"") ->  | GQ28: =IF(GQ34<>"",AVERAGEA(_xlfn._xlws.FILTER(($C$19:$SH$19),$C$19:$SH$19<>"")),"") ->  | GR28: =IF(GR34<>"",AVERAGEA(_xlfn._xlws.FILTER(($C$19:$SH$19),$C$19:$SH$19<>"")),"") ->  | GS28: =IF(GS34<>"",AVERAGEA(_xlfn._xlws.FILTER(($C$19:$SH$19),$C$19:$SH$19<>"")),"") ->  | GT28: =IF(GT34<>"",AVERAGEA(_xlfn._xlws.FILTER(($C$19:$SH$19),$C$19:$SH$19<>"")),"") ->  | GU28: =IF(GU34<>"",AVERAGEA(_xlfn._xlws.FILTER(($C$19:$SH$19),$C$19:$SH$19<>"")),"") ->  | GV28: =IF(GV34<>"",AVERAGEA(_xlfn._xlws.FILTER(($C$19:$SH$19),$C$19:$SH$19<>"")),"") ->  | GW28: =IF(GW34<>"",AVERAGEA(_xlfn._xlws.FILTER(($C$19:$SH$19),$C$19:$SH$19<>"")),"") ->  | GX28: =IF(GX34<>"",AVERAGEA(_xlfn._xlws.FILTER(($C$19:$SH$19),$C$19:$SH$19<>"")),"") ->  | GY28: =IF(GY34<>"",AVERAGEA(_xlfn._xlws.FILTER(($C$19:$SH$19),$C$19:$SH$19<>"")),"") ->  | GZ28: =IF(GZ34<>"",AVERAGEA(_xlfn._xlws.FILTER(($C$19:$SH$19),$C$19:$SH$19<>"")),"") ->  | HA28: =IF(HA34<>"",AVERAGEA(_xlfn._xlws.FILTER(($C$19:$SH$19),$C$19:$SH$19<>"")),"") ->  | HB28: =IF(HB34<>"",AVERAGEA(_xlfn._xlws.FILTER(($C$19:$SH$19),$C$19:$SH$19<>"")),"") ->  | HC28: =IF(HC34<>"",AVERAGEA(_xlfn._xlws.FILTER(($C$19:$SH$19),$C$19:$SH$19<>"")),"") ->  | HD28: =IF(HD34<>"",AVERAGEA(_xlfn._xlws.FILTER(($C$19:$SH$19),$C$19:$SH$19<>"")),"") ->  | HE28: =IF(HE34<>"",AVERAGEA(_xlfn._xlws.FILTER(($C$19:$SH$19),$C$19:$SH$19<>"")),"") ->  | HF28: =IF(HF34<>"",AVERAGEA(_xlfn._xlws.FILTER(($C$19:$SH$19),$C$19:$SH$19<>"")),"") ->  | HG28: =IF(HG34<>"",AVERAGEA(_xlfn._xlws.FILTER(($C$19:$SH$19),$C$19:$SH$19<>"")),"") ->  | HH28: =IF(HH34<>"",AVERAGEA(_xlfn._xlws.FILTER(($C$19:$SH$19),$C$19:$SH$19<>"")),"") ->  | HI28: =IF(HI34<>"",AVERAGEA(_xlfn._xlws.FILTER(($C$19:$SH$19),$C$19:$SH$19<>"")),"") ->  | HJ28: =IF(HJ34<>"",AVERAGEA(_xlfn._xlws.FILTER(($C$19:$SH$19),$C$19:$SH$19<>"")),"") ->  | HK28: =IF(HK34<>"",AVERAGEA(_xlfn._xlws.FILTER(($C$19:$SH$19),$C$19:$SH$19<>"")),"") ->  | HL28: =IF(HL34<>"",AVERAGEA(_xlfn._xlws.FILTER(($C$19:$SH$19),$C$19:$SH$19<>"")),"") ->  | HM28: =IF(HM34<>"",AVERAGEA(_xlfn._xlws.FILTER(($C$19:$SH$19),$C$19:$SH$19<>"")),"") ->  | HN28: =IF(HN34<>"",AVERAGEA(_xlfn._xlws.FILTER(($C$19:$SH$19),$C$19:$SH$19<>"")),"") ->  | HO28: =IF(HO34<>"",AVERAGEA(_xlfn._xlws.FILTER(($C$19:$SH$19),$C$19:$SH$19<>"")),"") ->  | HP28: =IF(HP34<>"",AVERAGEA(_xlfn._xlws.FILTER(($C$19:$SH$19),$C$19:$SH$19<>"")),"") ->  | HQ28: =IF(HQ34<>"",AVERAGEA(_xlfn._xlws.FILTER(($C$19:$SH$19),$C$19:$SH$19<>"")),"") ->  | HR28: =IF(HR34<>"",AVERAGEA(_xlfn._xlws.FILTER(($C$19:$SH$19),$C$19:$SH$19<>"")),"") ->  | HS28: =IF(HS34<>"",AVERAGEA(_xlfn._xlws.FILTER(($C$19:$SH$19),$C$19:$SH$19<>"")),"") ->  | HT28: =IF(HT34<>"",AVERAGEA(_xlfn._xlws.FILTER(($C$19:$SH$19),$C$19:$SH$19<>"")),"") ->  | HU28: =IF(HU34<>"",AVERAGEA(_xlfn._xlws.FILTER(($C$19:$SH$19),$C$19:$SH$19<>"")),"") ->  | HV28: =IF(HV34<>"",AVERAGEA(_xlfn._xlws.FILTER(($C$19:$SH$19),$C$19:$SH$19<>"")),"") ->  | HW28: =IF(HW34<>"",AVERAGEA(_xlfn._xlws.FILTER(($C$19:$SH$19),$C$19:$SH$19<>"")),"") ->  | HX28: =IF(HX34<>"",AVERAGEA(_xlfn._xlws.FILTER(($C$19:$SH$19),$C$19:$SH$19<>"")),"") ->  | HY28: =IF(HY34<>"",AVERAGEA(_xlfn._xlws.FILTER(($C$19:$SH$19),$C$19:$SH$19<>"")),"") ->  | HZ28: =IF(HZ34<>"",AVERAGEA(_xlfn._xlws.FILTER(($C$19:$SH$19),$C$19:$SH$19<>"")),"") ->  | IA28: =IF(IA34<>"",AVERAGEA(_xlfn._xlws.FILTER(($C$19:$SH$19),$C$19:$SH$19<>"")),"") ->  | IB28: =IF(IB34<>"",AVERAGEA(_xlfn._xlws.FILTER(($C$19:$SH$19),$C$19:$SH$19<>"")),"") ->  | IC28: =IF(IC34<>"",AVERAGEA(_xlfn._xlws.FILTER(($C$19:$SH$19),$C$19:$SH$19<>"")),"") ->  | ID28: =IF(ID34<>"",AVERAGEA(_xlfn._xlws.FILTER(($C$19:$SH$19),$C$19:$SH$19<>"")),"") ->  | IE28: =IF(IE34<>"",AVERAGEA(_xlfn._xlws.FILTER(($C$19:$SH$19),$C$19:$SH$19<>"")),"") ->  | IF28: =IF(IF34<>"",AVERAGEA(_xlfn._xlws.FILTER(($C$19:$SH$19),$C$19:$SH$19<>"")),"") ->  | IG28: =IF(IG34<>"",AVERAGEA(_xlfn._xlws.FILTER(($C$19:$SH$19),$C$19:$SH$19<>"")),"") ->  | IH28: =IF(IH34<>"",AVERAGEA(_xlfn._xlws.FILTER(($C$19:$SH$19),$C$19:$SH$19<>"")),"") ->  | II28: =IF(II34<>"",AVERAGEA(_xlfn._xlws.FILTER(($C$19:$SH$19),$C$19:$SH$19<>"")),"") ->  | IJ28: =IF(IJ34<>"",AVERAGEA(_xlfn._xlws.FILTER(($C$19:$SH$19),$C$19:$SH$19<>"")),"") ->  | IK28: =IF(IK34<>"",AVERAGEA(_xlfn._xlws.FILTER(($C$19:$SH$19),$C$19:$SH$19<>"")),"") ->  | IL28: =IF(IL34<>"",AVERAGEA(_xlfn._xlws.FILTER(($C$19:$SH$19),$C$19:$SH$19<>"")),"") ->  | IM28: =IF(IM34<>"",AVERAGEA(_xlfn._xlws.FILTER(($C$19:$SH$19),$C$19:$SH$19<>"")),"") ->  | IN28: =IF(IN34<>"",AVERAGEA(_xlfn._xlws.FILTER(($C$19:$SH$19),$C$19:$SH$19<>"")),"") ->  | IO28: =IF(IO34<>"",AVERAGEA(_xlfn._xlws.FILTER(($C$19:$SH$19),$C$19:$SH$19<>"")),"") ->  | IP28: =IF(IP34<>"",AVERAGEA(_xlfn._xlws.FILTER(($C$19:$SH$19),$C$19:$SH$19<>"")),"") ->  | IQ28: =IF(IQ34<>"",AVERAGEA(_xlfn._xlws.FILTER(($C$19:$SH$19),$C$19:$SH$19<>"")),"") ->  | IR28: =IF(IR34<>"",AVERAGEA(_xlfn._xlws.FILTER(($C$19:$SH$19),$C$19:$SH$19<>"")),"") ->  | IS28: =IF(IS34<>"",AVERAGEA(_xlfn._xlws.FILTER(($C$19:$SH$19),$C$19:$SH$19<>"")),"") ->  | IT28: =IF(IT34<>"",AVERAGEA(_xlfn._xlws.FILTER(($C$19:$SH$19),$C$19:$SH$19<>"")),"") ->  | IU28: =IF(IU34<>"",AVERAGEA(_xlfn._xlws.FILTER(($C$19:$SH$19),$C$19:$SH$19<>"")),"") ->  | IV28: =IF(IV34<>"",AVERAGEA(_xlfn._xlws.FILTER(($C$19:$SH$19),$C$19:$SH$19<>"")),"") ->  | IW28: =IF(IW34<>"",AVERAGEA(_xlfn._xlws.FILTER(($C$19:$SH$19),$C$19:$SH$19<>"")),"") ->  | IX28: =IF(IX34<>"",AVERAGEA(_xlfn._xlws.FILTER(($C$19:$SH$19),$C$19:$SH$19<>"")),"") ->  | IY28: =IF(IY34<>"",AVERAGEA(_xlfn._xlws.FILTER(($C$19:$SH$19),$C$19:$SH$19<>"")),"") ->  | IZ28: =IF(IZ34<>"",AVERAGEA(_xlfn._xlws.FILTER(($C$19:$SH$19),$C$19:$SH$19<>"")),"") ->  | JA28: =IF(JA34<>"",AVERAGEA(_xlfn._xlws.FILTER(($C$19:$SH$19),$C$19:$SH$19<>"")),"") ->  | JB28: =IF(JB34<>"",AVERAGEA(_xlfn._xlws.FILTER(($C$19:$SH$19),$C$19:$SH$19<>"")),"") ->  | JC28: =IF(JC34<>"",AVERAGEA(_xlfn._xlws.FILTER(($C$19:$SH$19),$C$19:$SH$19<>"")),"") ->  | JD28: =IF(JD34<>"",AVERAGEA(_xlfn._xlws.FILTER(($C$19:$SH$19),$C$19:$SH$19<>"")),"") ->  | JE28: =IF(JE34<>"",AVERAGEA(_xlfn._xlws.FILTER(($C$19:$SH$19),$C$19:$SH$19<>"")),"") ->  | JF28: =IF(JF34<>"",AVERAGEA(_xlfn._xlws.FILTER(($C$19:$SH$19),$C$19:$SH$19<>"")),"") ->  | JG28: =IF(JG34<>"",AVERAGEA(_xlfn._xlws.FILTER(($C$19:$SH$19),$C$19:$SH$19<>"")),"") ->  | JH28: =IF(JH34<>"",AVERAGEA(_xlfn._xlws.FILTER(($C$19:$SH$19),$C$19:$SH$19<>"")),"") ->  | JI28: =IF(JI34<>"",AVERAGEA(_xlfn._xlws.FILTER(($C$19:$SH$19),$C$19:$SH$19<>"")),"") ->  | JJ28: =IF(JJ34<>"",AVERAGEA(_xlfn._xlws.FILTER(($C$19:$SH$19),$C$19:$SH$19<>"")),"") ->  | JK28: =IF(JK34<>"",AVERAGEA(_xlfn._xlws.FILTER(($C$19:$SH$19),$C$19:$SH$19<>"")),"") ->  | JL28: =IF(JL34<>"",AVERAGEA(_xlfn._xlws.FILTER(($C$19:$SH$19),$C$19:$SH$19<>"")),"") ->  | JM28: =IF(JM34<>"",AVERAGEA(_xlfn._xlws.FILTER(($C$19:$SH$19),$C$19:$SH$19<>"")),"") ->  | JN28: =IF(JN34<>"",AVERAGEA(_xlfn._xlws.FILTER(($C$19:$SH$19),$C$19:$SH$19<>"")),"") ->  | JO28: =IF(JO34<>"",AVERAGEA(_xlfn._xlws.FILTER(($C$19:$SH$19),$C$19:$SH$19<>"")),"") ->  | JP28: =IF(JP34<>"",AVERAGEA(_xlfn._xlws.FILTER(($C$19:$SH$19),$C$19:$SH$19<>"")),"") ->  | JQ28: =IF(JQ34<>"",AVERAGEA(_xlfn._xlws.FILTER(($C$19:$SH$19),$C$19:$SH$19<>"")),"") ->  | JR28: =IF(JR34<>"",AVERAGEA(_xlfn._xlws.FILTER(($C$19:$SH$19),$C$19:$SH$19<>"")),"") ->  | JS28: =IF(JS34<>"",AVERAGEA(_xlfn._xlws.FILTER(($C$19:$SH$19),$C$19:$SH$19<>"")),"") ->  | JT28: =IF(JT34<>"",AVERAGEA(_xlfn._xlws.FILTER(($C$19:$SH$19),$C$19:$SH$19<>"")),"") ->  | JU28: =IF(JU34<>"",AVERAGEA(_xlfn._xlws.FILTER(($C$19:$SH$19),$C$19:$SH$19<>"")),"") ->  | JV28: =IF(JV34<>"",AVERAGEA(_xlfn._xlws.FILTER(($C$19:$SH$19),$C$19:$SH$19<>"")),"") ->  | JW28: =IF(JW34<>"",AVERAGEA(_xlfn._xlws.FILTER(($C$19:$SH$19),$C$19:$SH$19<>"")),"") ->  | JX28: =IF(JX34<>"",AVERAGEA(_xlfn._xlws.FILTER(($C$19:$SH$19),$C$19:$SH$19<>"")),"") ->  | JY28: =IF(JY34<>"",AVERAGEA(_xlfn._xlws.FILTER(($C$19:$SH$19),$C$19:$SH$19<>"")),"") ->  | JZ28: =IF(JZ34<>"",AVERAGEA(_xlfn._xlws.FILTER(($C$19:$SH$19),$C$19:$SH$19<>"")),"") ->  | KA28: =IF(KA34<>"",AVERAGEA(_xlfn._xlws.FILTER(($C$19:$SH$19),$C$19:$SH$19<>"")),"") ->  | KB28: =IF(KB34<>"",AVERAGEA(_xlfn._xlws.FILTER(($C$19:$SH$19),$C$19:$SH$19<>"")),"") ->  | KC28: =IF(KC34<>"",AVERAGEA(_xlfn._xlws.FILTER(($C$19:$SH$19),$C$19:$SH$19<>"")),"") ->  | KD28: =IF(KD34<>"",AVERAGEA(_xlfn._xlws.FILTER(($C$19:$SH$19),$C$19:$SH$19<>"")),"") ->  | KE28: =IF(KE34<>"",AVERAGEA(_xlfn._xlws.FILTER(($C$19:$SH$19),$C$19:$SH$19<>"")),"") ->  | KF28: =IF(KF34<>"",AVERAGEA(_xlfn._xlws.FILTER(($C$19:$SH$19),$C$19:$SH$19<>"")),"") ->  | KG28: =IF(KG34<>"",AVERAGEA(_xlfn._xlws.FILTER(($C$19:$SH$19),$C$19:$SH$19<>"")),"") ->  | KH28: =IF(KH34<>"",AVERAGEA(_xlfn._xlws.FILTER(($C$19:$SH$19),$C$19:$SH$19<>"")),"") ->  | KI28: =IF(KI34<>"",AVERAGEA(_xlfn._xlws.FILTER(($C$19:$SH$19),$C$19:$SH$19<>"")),"") ->  | KJ28: =IF(KJ34<>"",AVERAGEA(_xlfn._xlws.FILTER(($C$19:$SH$19),$C$19:$SH$19<>"")),"") ->  | KK28: =IF(KK34<>"",AVERAGEA(_xlfn._xlws.FILTER(($C$19:$SH$19),$C$19:$SH$19<>"")),"") ->  | KL28: =IF(KL34<>"",AVERAGEA(_xlfn._xlws.FILTER(($C$19:$SH$19),$C$19:$SH$19<>"")),"") ->  | KM28: =IF(KM34<>"",AVERAGEA(_xlfn._xlws.FILTER(($C$19:$SH$19),$C$19:$SH$19<>"")),"") ->  | KN28: =IF(KN34<>"",AVERAGEA(_xlfn._xlws.FILTER(($C$19:$SH$19),$C$19:$SH$19<>"")),"") ->  | KO28: =IF(KO34<>"",AVERAGEA(_xlfn._xlws.FILTER(($C$19:$SH$19),$C$19:$SH$19<>"")),"") ->  | KP28: =IF(KP34<>"",AVERAGEA(_xlfn._xlws.FILTER(($C$19:$SH$19),$C$19:$SH$19<>"")),"") ->  | KQ28: =IF(KQ34<>"",AVERAGEA(_xlfn._xlws.FILTER(($C$19:$SH$19),$C$19:$SH$19<>"")),"") ->  | KR28: =IF(KR34<>"",AVERAGEA(_xlfn._xlws.FILTER(($C$19:$SH$19),$C$19:$SH$19<>"")),"") ->  | KS28: =IF(KS34<>"",AVERAGEA(_xlfn._xlws.FILTER(($C$19:$SH$19),$C$19:$SH$19<>"")),"") ->  | KT28: =IF(KT34<>"",AVERAGEA(_xlfn._xlws.FILTER(($C$19:$SH$19),$C$19:$SH$19<>"")),"") ->  | KU28: =IF(KU34<>"",AVERAGEA(_xlfn._xlws.FILTER(($C$19:$SH$19),$C$19:$SH$19<>"")),"") ->  | KV28: =IF(KV34<>"",AVERAGEA(_xlfn._xlws.FILTER(($C$19:$SH$19),$C$19:$SH$19<>"")),"") ->  | KW28: =IF(KW34<>"",AVERAGEA(_xlfn._xlws.FILTER(($C$19:$SH$19),$C$19:$SH$19<>"")),"") ->  | KX28: =IF(KX34<>"",AVERAGEA(_xlfn._xlws.FILTER(($C$19:$SH$19),$C$19:$SH$19<>"")),"") ->  | KY28: =IF(KY34<>"",AVERAGEA(_xlfn._xlws.FILTER(($C$19:$SH$19),$C$19:$SH$19<>"")),"") ->  | KZ28: =IF(KZ34<>"",AVERAGEA(_xlfn._xlws.FILTER(($C$19:$SH$19),$C$19:$SH$19<>"")),"") ->  | LA28: =IF(LA34<>"",AVERAGEA(_xlfn._xlws.FILTER(($C$19:$SH$19),$C$19:$SH$19<>"")),"") ->  | LB28: =IF(LB34<>"",AVERAGEA(_xlfn._xlws.FILTER(($C$19:$SH$19),$C$19:$SH$19<>"")),"") ->  | LC28: =IF(LC34<>"",AVERAGEA(_xlfn._xlws.FILTER(($C$19:$SH$19),$C$19:$SH$19<>"")),"") ->  | LD28: =IF(LD34<>"",AVERAGEA(_xlfn._xlws.FILTER(($C$19:$SH$19),$C$19:$SH$19<>"")),"") ->  | LE28: =IF(LE34<>"",AVERAGEA(_xlfn._xlws.FILTER(($C$19:$SH$19),$C$19:$SH$19<>"")),"") ->  | LF28: =IF(LF34<>"",AVERAGEA(_xlfn._xlws.FILTER(($C$19:$SH$19),$C$19:$SH$19<>"")),"") ->  | LG28: =IF(LG34<>"",AVERAGEA(_xlfn._xlws.FILTER(($C$19:$SH$19),$C$19:$SH$19<>"")),"") ->  | LH28: =IF(LH34<>"",AVERAGEA(_xlfn._xlws.FILTER(($C$19:$SH$19),$C$19:$SH$19<>"")),"") ->  | LI28: =IF(LI34<>"",AVERAGEA(_xlfn._xlws.FILTER(($C$19:$SH$19),$C$19:$SH$19<>"")),"") ->  | LJ28: =IF(LJ34<>"",AVERAGEA(_xlfn._xlws.FILTER(($C$19:$SH$19),$C$19:$SH$19<>"")),"") ->  | LK28: =IF(LK34<>"",AVERAGEA(_xlfn._xlws.FILTER(($C$19:$SH$19),$C$19:$SH$19<>"")),"") ->  | LL28: =IF(LL34<>"",AVERAGEA(_xlfn._xlws.FILTER(($C$19:$SH$19),$C$19:$SH$19<>"")),"") ->  | LM28: =IF(LM34<>"",AVERAGEA(_xlfn._xlws.FILTER(($C$19:$SH$19),$C$19:$SH$19<>"")),"") ->  | LN28: =IF(LN34<>"",AVERAGEA(_xlfn._xlws.FILTER(($C$19:$SH$19),$C$19:$SH$19<>"")),"") ->  | LO28: =IF(LO34<>"",AVERAGEA(_xlfn._xlws.FILTER(($C$19:$SH$19),$C$19:$SH$19<>"")),"") ->  | LP28: =IF(LP34<>"",AVERAGEA(_xlfn._xlws.FILTER(($C$19:$SH$19),$C$19:$SH$19<>"")),"") ->  | LQ28: =IF(LQ34<>"",AVERAGEA(_xlfn._xlws.FILTER(($C$19:$SH$19),$C$19:$SH$19<>"")),"") ->  | LR28: =IF(LR34<>"",AVERAGEA(_xlfn._xlws.FILTER(($C$19:$SH$19),$C$19:$SH$19<>"")),"") ->  | LS28: =IF(LS34<>"",AVERAGEA(_xlfn._xlws.FILTER(($C$19:$SH$19),$C$19:$SH$19<>"")),"") ->  | LT28: =IF(LT34<>"",AVERAGEA(_xlfn._xlws.FILTER(($C$19:$SH$19),$C$19:$SH$19<>"")),"") ->  | LU28: =IF(LU34<>"",AVERAGEA(_xlfn._xlws.FILTER(($C$19:$SH$19),$C$19:$SH$19<>"")),"") ->  | LV28: =IF(LV34<>"",AVERAGEA(_xlfn._xlws.FILTER(($C$19:$SH$19),$C$19:$SH$19<>"")),"") ->  | LW28: =IF(LW34<>"",AVERAGEA(_xlfn._xlws.FILTER(($C$19:$SH$19),$C$19:$SH$19<>"")),"") ->  | LX28: =IF(LX34<>"",AVERAGEA(_xlfn._xlws.FILTER(($C$19:$SH$19),$C$19:$SH$19<>"")),"") ->  | LY28: =IF(LY34<>"",AVERAGEA(_xlfn._xlws.FILTER(($C$19:$SH$19),$C$19:$SH$19<>"")),"") ->  | LZ28: =IF(LZ34<>"",AVERAGEA(_xlfn._xlws.FILTER(($C$19:$SH$19),$C$19:$SH$19<>"")),"") ->  | MA28: =IF(MA34<>"",AVERAGEA(_xlfn._xlws.FILTER(($C$19:$SH$19),$C$19:$SH$19<>"")),"") ->  | MB28: =IF(MB34<>"",AVERAGEA(_xlfn._xlws.FILTER(($C$19:$SH$19),$C$19:$SH$19<>"")),"") ->  | MC28: =IF(MC34<>"",AVERAGEA(_xlfn._xlws.FILTER(($C$19:$SH$19),$C$19:$SH$19<>"")),"") ->  | MD28: =IF(MD34<>"",AVERAGEA(_xlfn._xlws.FILTER(($C$19:$SH$19),$C$19:$SH$19<>"")),"") ->  | ME28: =IF(ME34<>"",AVERAGEA(_xlfn._xlws.FILTER(($C$19:$SH$19),$C$19:$SH$19<>"")),"") ->  | MF28: =IF(MF34<>"",AVERAGEA(_xlfn._xlws.FILTER(($C$19:$SH$19),$C$19:$SH$19<>"")),"") ->  | MG28: =IF(MG34<>"",AVERAGEA(_xlfn._xlws.FILTER(($C$19:$SH$19),$C$19:$SH$19<>"")),"") ->  | MH28: =IF(MH34<>"",AVERAGEA(_xlfn._xlws.FILTER(($C$19:$SH$19),$C$19:$SH$19<>"")),"") ->  | MI28: =IF(MI34<>"",AVERAGEA(_xlfn._xlws.FILTER(($C$19:$SH$19),$C$19:$SH$19<>"")),"") ->  | MJ28: =IF(MJ34<>"",AVERAGEA(_xlfn._xlws.FILTER(($C$19:$SH$19),$C$19:$SH$19<>"")),"") ->  | MK28: =IF(MK34<>"",AVERAGEA(_xlfn._xlws.FILTER(($C$19:$SH$19),$C$19:$SH$19<>"")),"") ->  | ML28: =IF(ML34<>"",AVERAGEA(_xlfn._xlws.FILTER(($C$19:$SH$19),$C$19:$SH$19<>"")),"") ->  | MM28: =IF(MM34<>"",AVERAGEA(_xlfn._xlws.FILTER(($C$19:$SH$19),$C$19:$SH$19<>"")),"") ->  | MN28: =IF(MN34<>"",AVERAGEA(_xlfn._xlws.FILTER(($C$19:$SH$19),$C$19:$SH$19<>"")),"") ->  | MO28: =IF(MO34<>"",AVERAGEA(_xlfn._xlws.FILTER(($C$19:$SH$19),$C$19:$SH$19<>"")),"") ->  | MP28: =IF(MP34<>"",AVERAGEA(_xlfn._xlws.FILTER(($C$19:$SH$19),$C$19:$SH$19<>"")),"") ->  | MQ28: =IF(MQ34<>"",AVERAGEA(_xlfn._xlws.FILTER(($C$19:$SH$19),$C$19:$SH$19<>"")),"") ->  | MR28: =IF(MR34<>"",AVERAGEA(_xlfn._xlws.FILTER(($C$19:$SH$19),$C$19:$SH$19<>"")),"") ->  | MS28: =IF(MS34<>"",AVERAGEA(_xlfn._xlws.FILTER(($C$19:$SH$19),$C$19:$SH$19<>"")),"") ->  | MT28: =IF(MT34<>"",AVERAGEA(_xlfn._xlws.FILTER(($C$19:$SH$19),$C$19:$SH$19<>"")),"") ->  | MU28: =IF(MU34<>"",AVERAGEA(_xlfn._xlws.FILTER(($C$19:$SH$19),$C$19:$SH$19<>"")),"") ->  | MV28: =IF(MV34<>"",AVERAGEA(_xlfn._xlws.FILTER(($C$19:$SH$19),$C$19:$SH$19<>"")),"") ->  | MW28: =IF(MW34<>"",AVERAGEA(_xlfn._xlws.FILTER(($C$19:$SH$19),$C$19:$SH$19<>"")),"") ->  | MX28: =IF(MX34<>"",AVERAGEA(_xlfn._xlws.FILTER(($C$19:$SH$19),$C$19:$SH$19<>"")),"") ->  | MY28: =IF(MY34<>"",AVERAGEA(_xlfn._xlws.FILTER(($C$19:$SH$19),$C$19:$SH$19<>"")),"") ->  | MZ28: =IF(MZ34<>"",AVERAGEA(_xlfn._xlws.FILTER(($C$19:$SH$19),$C$19:$SH$19<>"")),"") ->  | NA28: =IF(NA34<>"",AVERAGEA(_xlfn._xlws.FILTER(($C$19:$SH$19),$C$19:$SH$19<>"")),"") ->  | NB28: =IF(NB34<>"",AVERAGEA(_xlfn._xlws.FILTER(($C$19:$SH$19),$C$19:$SH$19<>"")),"") ->  | NC28: =IF(NC34<>"",AVERAGEA(_xlfn._xlws.FILTER(($C$19:$SH$19),$C$19:$SH$19<>"")),"") ->  | ND28: =IF(ND34<>"",AVERAGEA(_xlfn._xlws.FILTER(($C$19:$SH$19),$C$19:$SH$19<>"")),"") ->  | NE28: =IF(NE34<>"",AVERAGEA(_xlfn._xlws.FILTER(($C$19:$SH$19),$C$19:$SH$19<>"")),"") ->  | NF28: =IF(NF34<>"",AVERAGEA(_xlfn._xlws.FILTER(($C$19:$SH$19),$C$19:$SH$19<>"")),"") ->  | NG28: =IF(NG34<>"",AVERAGEA(_xlfn._xlws.FILTER(($C$19:$SH$19),$C$19:$SH$19<>"")),"") ->  | NH28: =IF(NH34<>"",AVERAGEA(_xlfn._xlws.FILTER(($C$19:$SH$19),$C$19:$SH$19<>"")),"") ->  | NI28: =IF(NI34<>"",AVERAGEA(_xlfn._xlws.FILTER(($C$19:$SH$19),$C$19:$SH$19<>"")),"") ->  | NJ28: =IF(NJ34<>"",AVERAGEA(_xlfn._xlws.FILTER(($C$19:$SH$19),$C$19:$SH$19<>"")),"") ->  | NK28: =IF(NK34<>"",AVERAGEA(_xlfn._xlws.FILTER(($C$19:$SH$19),$C$19:$SH$19<>"")),"") ->  | NL28: =IF(NL34<>"",AVERAGEA(_xlfn._xlws.FILTER(($C$19:$SH$19),$C$19:$SH$19<>"")),"") ->  | NM28: =IF(NM34<>"",AVERAGEA(_xlfn._xlws.FILTER(($C$19:$SH$19),$C$19:$SH$19<>"")),"") ->  | NN28: =IF(NN34<>"",AVERAGEA(_xlfn._xlws.FILTER(($C$19:$SH$19),$C$19:$SH$19<>"")),"") ->  | NO28: =IF(NO34<>"",AVERAGEA(_xlfn._xlws.FILTER(($C$19:$SH$19),$C$19:$SH$19<>"")),"") ->  | NP28: =IF(NP34<>"",AVERAGEA(_xlfn._xlws.FILTER(($C$19:$SH$19),$C$19:$SH$19<>"")),"") ->  | NQ28: =IF(NQ34<>"",AVERAGEA(_xlfn._xlws.FILTER(($C$19:$SH$19),$C$19:$SH$19<>"")),"") ->  | NR28: =IF(NR34<>"",AVERAGEA(_xlfn._xlws.FILTER(($C$19:$SH$19),$C$19:$SH$19<>"")),"") ->  | NS28: =IF(NS34<>"",AVERAGEA(_xlfn._xlws.FILTER(($C$19:$SH$19),$C$19:$SH$19<>"")),"") ->  | NT28: =IF(NT34<>"",AVERAGEA(_xlfn._xlws.FILTER(($C$19:$SH$19),$C$19:$SH$19<>"")),"") ->  | NU28: =IF(NU34<>"",AVERAGEA(_xlfn._xlws.FILTER(($C$19:$SH$19),$C$19:$SH$19<>"")),"") ->  | NV28: =IF(NV34<>"",AVERAGEA(_xlfn._xlws.FILTER(($C$19:$SH$19),$C$19:$SH$19<>"")),"") ->  | NW28: =IF(NW34<>"",AVERAGEA(_xlfn._xlws.FILTER(($C$19:$SH$19),$C$19:$SH$19<>"")),"") ->  | NX28: =IF(NX34<>"",AVERAGEA(_xlfn._xlws.FILTER(($C$19:$SH$19),$C$19:$SH$19<>"")),"") ->  | NY28: =IF(NY34<>"",AVERAGEA(_xlfn._xlws.FILTER(($C$19:$SH$19),$C$19:$SH$19<>"")),"") ->  | NZ28: =IF(NZ34<>"",AVERAGEA(_xlfn._xlws.FILTER(($C$19:$SH$19),$C$19:$SH$19<>"")),"") ->  | OA28: =IF(OA34<>"",AVERAGEA(_xlfn._xlws.FILTER(($C$19:$SH$19),$C$19:$SH$19<>"")),"") ->  | OB28: =IF(OB34<>"",AVERAGEA(_xlfn._xlws.FILTER(($C$19:$SH$19),$C$19:$SH$19<>"")),"") ->  | OC28: =IF(OC34<>"",AVERAGEA(_xlfn._xlws.FILTER(($C$19:$SH$19),$C$19:$SH$19<>"")),"") ->  | OD28: =IF(OD34<>"",AVERAGEA(_xlfn._xlws.FILTER(($C$19:$SH$19),$C$19:$SH$19<>"")),"") ->  | OE28: =IF(OE34<>"",AVERAGEA(_xlfn._xlws.FILTER(($C$19:$SH$19),$C$19:$SH$19<>"")),"") ->  | OF28: =IF(OF34<>"",AVERAGEA(_xlfn._xlws.FILTER(($C$19:$SH$19),$C$19:$SH$19<>"")),"") ->  | OG28: =IF(OG34<>"",AVERAGEA(_xlfn._xlws.FILTER(($C$19:$SH$19),$C$19:$SH$19<>"")),"") ->  | OH28: =IF(OH34<>"",AVERAGEA(_xlfn._xlws.FILTER(($C$19:$SH$19),$C$19:$SH$19<>"")),"") ->  | OI28: =IF(OI34<>"",AVERAGEA(_xlfn._xlws.FILTER(($C$19:$SH$19),$C$19:$SH$19<>"")),"") ->  | OJ28: =IF(OJ34<>"",AVERAGEA(_xlfn._xlws.FILTER(($C$19:$SH$19),$C$19:$SH$19<>"")),"") ->  | OK28: =IF(OK34<>"",AVERAGEA(_xlfn._xlws.FILTER(($C$19:$SH$19),$C$19:$SH$19<>"")),"") ->  | OL28: =IF(OL34<>"",AVERAGEA(_xlfn._xlws.FILTER(($C$19:$SH$19),$C$19:$SH$19<>"")),"") ->  | OM28: =IF(OM34<>"",AVERAGEA(_xlfn._xlws.FILTER(($C$19:$SH$19),$C$19:$SH$19<>"")),"") ->  | ON28: =IF(ON34<>"",AVERAGEA(_xlfn._xlws.FILTER(($C$19:$SH$19),$C$19:$SH$19<>"")),"") ->  | OO28: =IF(OO34<>"",AVERAGEA(_xlfn._xlws.FILTER(($C$19:$SH$19),$C$19:$SH$19<>"")),"") ->  | OP28: =IF(OP34<>"",AVERAGEA(_xlfn._xlws.FILTER(($C$19:$SH$19),$C$19:$SH$19<>"")),"") ->  | OQ28: =IF(OQ34<>"",AVERAGEA(_xlfn._xlws.FILTER(($C$19:$SH$19),$C$19:$SH$19<>"")),"") ->  | OR28: =IF(OR34<>"",AVERAGEA(_xlfn._xlws.FILTER(($C$19:$SH$19),$C$19:$SH$19<>"")),"") ->  | OS28: =IF(OS34<>"",AVERAGEA(_xlfn._xlws.FILTER(($C$19:$SH$19),$C$19:$SH$19<>"")),"") ->  | OT28: =IF(OT34<>"",AVERAGEA(_xlfn._xlws.FILTER(($C$19:$SH$19),$C$19:$SH$19<>"")),"") ->  | OU28: =IF(OU34<>"",AVERAGEA(_xlfn._xlws.FILTER(($C$19:$SH$19),$C$19:$SH$19<>"")),"") ->  | OV28: =IF(OV34<>"",AVERAGEA(_xlfn._xlws.FILTER(($C$19:$SH$19),$C$19:$SH$19<>"")),"") ->  | OW28: =IF(OW34<>"",AVERAGEA(_xlfn._xlws.FILTER(($C$19:$SH$19),$C$19:$SH$19<>"")),"") ->  | OX28: =IF(OX34<>"",AVERAGEA(_xlfn._xlws.FILTER(($C$19:$SH$19),$C$19:$SH$19<>"")),"") ->  | OY28: =IF(OY34<>"",AVERAGEA(_xlfn._xlws.FILTER(($C$19:$SH$19),$C$19:$SH$19<>"")),"") ->  | OZ28: =IF(OZ34<>"",AVERAGEA(_xlfn._xlws.FILTER(($C$19:$SH$19),$C$19:$SH$19<>"")),"") ->  | PA28: =IF(PA34<>"",AVERAGEA(_xlfn._xlws.FILTER(($C$19:$SH$19),$C$19:$SH$19<>"")),"") ->  | PB28: =IF(PB34<>"",AVERAGEA(_xlfn._xlws.FILTER(($C$19:$SH$19),$C$19:$SH$19<>"")),"") ->  | PC28: =IF(PC34<>"",AVERAGEA(_xlfn._xlws.FILTER(($C$19:$SH$19),$C$19:$SH$19<>"")),"") ->  | PD28: =IF(PD34<>"",AVERAGEA(_xlfn._xlws.FILTER(($C$19:$SH$19),$C$19:$SH$19<>"")),"") ->  | PE28: =IF(PE34<>"",AVERAGEA(_xlfn._xlws.FILTER(($C$19:$SH$19),$C$19:$SH$19<>"")),"") ->  | PF28: =IF(PF34<>"",AVERAGEA(_xlfn._xlws.FILTER(($C$19:$SH$19),$C$19:$SH$19<>"")),"") ->  | PG28: =IF(PG34<>"",AVERAGEA(_xlfn._xlws.FILTER(($C$19:$SH$19),$C$19:$SH$19<>"")),"") ->  | PH28: =IF(PH34<>"",AVERAGEA(_xlfn._xlws.FILTER(($C$19:$SH$19),$C$19:$SH$19<>"")),"") ->  | PI28: =IF(PI34<>"",AVERAGEA(_xlfn._xlws.FILTER(($C$19:$SH$19),$C$19:$SH$19<>"")),"") ->  | PJ28: =IF(PJ34<>"",AVERAGEA(_xlfn._xlws.FILTER(($C$19:$SH$19),$C$19:$SH$19<>"")),"") ->  | PK28: =IF(PK34<>"",AVERAGEA(_xlfn._xlws.FILTER(($C$19:$SH$19),$C$19:$SH$19<>"")),"") ->  | PL28: =IF(PL34<>"",AVERAGEA(_xlfn._xlws.FILTER(($C$19:$SH$19),$C$19:$SH$19<>"")),"") ->  | PM28: =IF(PM34<>"",AVERAGEA(_xlfn._xlws.FILTER(($C$19:$SH$19),$C$19:$SH$19<>"")),"") ->  | PN28: =IF(PN34<>"",AVERAGEA(_xlfn._xlws.FILTER(($C$19:$SH$19),$C$19:$SH$19<>"")),"") ->  | PO28: =IF(PO34<>"",AVERAGEA(_xlfn._xlws.FILTER(($C$19:$SH$19),$C$19:$SH$19<>"")),"") ->  | PP28: =IF(PP34<>"",AVERAGEA(_xlfn._xlws.FILTER(($C$19:$SH$19),$C$19:$SH$19<>"")),"") ->  | PQ28: =IF(PQ34<>"",AVERAGEA(_xlfn._xlws.FILTER(($C$19:$SH$19),$C$19:$SH$19<>"")),"") ->  | PR28: =IF(PR34<>"",AVERAGEA(_xlfn._xlws.FILTER(($C$19:$SH$19),$C$19:$SH$19<>"")),"") ->  | PS28: =IF(PS34<>"",AVERAGEA(_xlfn._xlws.FILTER(($C$19:$SH$19),$C$19:$SH$19<>"")),"") ->  | PT28: =IF(PT34<>"",AVERAGEA(_xlfn._xlws.FILTER(($C$19:$SH$19),$C$19:$SH$19<>"")),"") ->  | PU28: =IF(PU34<>"",AVERAGEA(_xlfn._xlws.FILTER(($C$19:$SH$19),$C$19:$SH$19<>"")),"") ->  | PV28: =IF(PV34<>"",AVERAGEA(_xlfn._xlws.FILTER(($C$19:$SH$19),$C$19:$SH$19<>"")),"") ->  | PW28: =IF(PW34<>"",AVERAGEA(_xlfn._xlws.FILTER(($C$19:$SH$19),$C$19:$SH$19<>"")),"") ->  | PX28: =IF(PX34<>"",AVERAGEA(_xlfn._xlws.FILTER(($C$19:$SH$19),$C$19:$SH$19<>"")),"") ->  | PY28: =IF(PY34<>"",AVERAGEA(_xlfn._xlws.FILTER(($C$19:$SH$19),$C$19:$SH$19<>"")),"") ->  | PZ28: =IF(PZ34<>"",AVERAGEA(_xlfn._xlws.FILTER(($C$19:$SH$19),$C$19:$SH$19<>"")),"") ->  | QA28: =IF(QA34<>"",AVERAGEA(_xlfn._xlws.FILTER(($C$19:$SH$19),$C$19:$SH$19<>"")),"") ->  | QB28: =IF(QB34<>"",AVERAGEA(_xlfn._xlws.FILTER(($C$19:$SH$19),$C$19:$SH$19<>"")),"") ->  | QC28: =IF(QC34<>"",AVERAGEA(_xlfn._xlws.FILTER(($C$19:$SH$19),$C$19:$SH$19<>"")),"") ->  | QD28: =IF(QD34<>"",AVERAGEA(_xlfn._xlws.FILTER(($C$19:$SH$19),$C$19:$SH$19<>"")),"") ->  | QE28: =IF(QE34<>"",AVERAGEA(_xlfn._xlws.FILTER(($C$19:$SH$19),$C$19:$SH$19<>"")),"") ->  | QF28: =IF(QF34<>"",AVERAGEA(_xlfn._xlws.FILTER(($C$19:$SH$19),$C$19:$SH$19<>"")),"") ->  | QG28: =IF(QG34<>"",AVERAGEA(_xlfn._xlws.FILTER(($C$19:$SH$19),$C$19:$SH$19<>"")),"") ->  | QH28: =IF(QH34<>"",AVERAGEA(_xlfn._xlws.FILTER(($C$19:$SH$19),$C$19:$SH$19<>"")),"") ->  | QI28: =IF(QI34<>"",AVERAGEA(_xlfn._xlws.FILTER(($C$19:$SH$19),$C$19:$SH$19<>"")),"") ->  | QJ28: =IF(QJ34<>"",AVERAGEA(_xlfn._xlws.FILTER(($C$19:$SH$19),$C$19:$SH$19<>"")),"") ->  | QK28: =IF(QK34<>"",AVERAGEA(_xlfn._xlws.FILTER(($C$19:$SH$19),$C$19:$SH$19<>"")),"") ->  | QL28: =IF(QL34<>"",AVERAGEA(_xlfn._xlws.FILTER(($C$19:$SH$19),$C$19:$SH$19<>"")),"") ->  | QM28: =IF(QM34<>"",AVERAGEA(_xlfn._xlws.FILTER(($C$19:$SH$19),$C$19:$SH$19<>"")),"") ->  | QN28: =IF(QN34<>"",AVERAGEA(_xlfn._xlws.FILTER(($C$19:$SH$19),$C$19:$SH$19<>"")),"") ->  | QO28: =IF(QO34<>"",AVERAGEA(_xlfn._xlws.FILTER(($C$19:$SH$19),$C$19:$SH$19<>"")),"") ->  | QP28: =IF(QP34<>"",AVERAGEA(_xlfn._xlws.FILTER(($C$19:$SH$19),$C$19:$SH$19<>"")),"") ->  | QQ28: =IF(QQ34<>"",AVERAGEA(_xlfn._xlws.FILTER(($C$19:$SH$19),$C$19:$SH$19<>"")),"") ->  | QR28: =IF(QR34<>"",AVERAGEA(_xlfn._xlws.FILTER(($C$19:$SH$19),$C$19:$SH$19<>"")),"") ->  | QS28: =IF(QS34<>"",AVERAGEA(_xlfn._xlws.FILTER(($C$19:$SH$19),$C$19:$SH$19<>"")),"") ->  | QT28: =IF(QT34<>"",AVERAGEA(_xlfn._xlws.FILTER(($C$19:$SH$19),$C$19:$SH$19<>"")),"") ->  | QU28: =IF(QU34<>"",AVERAGEA(_xlfn._xlws.FILTER(($C$19:$SH$19),$C$19:$SH$19<>"")),"") ->  | QV28: =IF(QV34<>"",AVERAGEA(_xlfn._xlws.FILTER(($C$19:$SH$19),$C$19:$SH$19<>"")),"") ->  | QW28: =IF(QW34<>"",AVERAGEA(_xlfn._xlws.FILTER(($C$19:$SH$19),$C$19:$SH$19<>"")),"") ->  | QX28: =IF(QX34<>"",AVERAGEA(_xlfn._xlws.FILTER(($C$19:$SH$19),$C$19:$SH$19<>"")),"") ->  | QY28: =IF(QY34<>"",AVERAGEA(_xlfn._xlws.FILTER(($C$19:$SH$19),$C$19:$SH$19<>"")),"") ->  | QZ28: =IF(QZ34<>"",AVERAGEA(_xlfn._xlws.FILTER(($C$19:$SH$19),$C$19:$SH$19<>"")),"") ->  | RA28: =IF(RA34<>"",AVERAGEA(_xlfn._xlws.FILTER(($C$19:$SH$19),$C$19:$SH$19<>"")),"") ->  | RB28: =IF(RB34<>"",AVERAGEA(_xlfn._xlws.FILTER(($C$19:$SH$19),$C$19:$SH$19<>"")),"") ->  | RC28: =IF(RC34<>"",AVERAGEA(_xlfn._xlws.FILTER(($C$19:$SH$19),$C$19:$SH$19<>"")),"") ->  | RD28: =IF(RD34<>"",AVERAGEA(_xlfn._xlws.FILTER(($C$19:$SH$19),$C$19:$SH$19<>"")),"") ->  | RE28: =IF(RE34<>"",AVERAGEA(_xlfn._xlws.FILTER(($C$19:$SH$19),$C$19:$SH$19<>"")),"") ->  | RF28: =IF(RF34<>"",AVERAGEA(_xlfn._xlws.FILTER(($C$19:$SH$19),$C$19:$SH$19<>"")),"") ->  | RG28: =IF(RG34<>"",AVERAGEA(_xlfn._xlws.FILTER(($C$19:$SH$19),$C$19:$SH$19<>"")),"") ->  | RH28: =IF(RH34<>"",AVERAGEA(_xlfn._xlws.FILTER(($C$19:$SH$19),$C$19:$SH$19<>"")),"") ->  | RI28: =IF(RI34<>"",AVERAGEA(_xlfn._xlws.FILTER(($C$19:$SH$19),$C$19:$SH$19<>"")),"") ->  | RJ28: =IF(RJ34<>"",AVERAGEA(_xlfn._xlws.FILTER(($C$19:$SH$19),$C$19:$SH$19<>"")),"") ->  | RK28: =IF(RK34<>"",AVERAGEA(_xlfn._xlws.FILTER(($C$19:$SH$19),$C$19:$SH$19<>"")),"") ->  | RL28: =IF(RL34<>"",AVERAGEA(_xlfn._xlws.FILTER(($C$19:$SH$19),$C$19:$SH$19<>"")),"") ->  | RM28: =IF(RM34<>"",AVERAGEA(_xlfn._xlws.FILTER(($C$19:$SH$19),$C$19:$SH$19<>"")),"") ->  | RN28: =IF(RN34<>"",AVERAGEA(_xlfn._xlws.FILTER(($C$19:$SH$19),$C$19:$SH$19<>"")),"") ->  | RO28: =IF(RO34<>"",AVERAGEA(_xlfn._xlws.FILTER(($C$19:$SH$19),$C$19:$SH$19<>"")),"") ->  | RP28: =IF(RP34<>"",AVERAGEA(_xlfn._xlws.FILTER(($C$19:$SH$19),$C$19:$SH$19<>"")),"") ->  | RQ28: =IF(RQ34<>"",AVERAGEA(_xlfn._xlws.FILTER(($C$19:$SH$19),$C$19:$SH$19<>"")),"") ->  | RR28: =IF(RR34<>"",AVERAGEA(_xlfn._xlws.FILTER(($C$19:$SH$19),$C$19:$SH$19<>"")),"") ->  | RS28: =IF(RS34<>"",AVERAGEA(_xlfn._xlws.FILTER(($C$19:$SH$19),$C$19:$SH$19<>"")),"") ->  | RT28: =IF(RT34<>"",AVERAGEA(_xlfn._xlws.FILTER(($C$19:$SH$19),$C$19:$SH$19<>"")),"") ->  | RU28: =IF(RU34<>"",AVERAGEA(_xlfn._xlws.FILTER(($C$19:$SH$19),$C$19:$SH$19<>"")),"") ->  | RV28: =IF(RV34<>"",AVERAGEA(_xlfn._xlws.FILTER(($C$19:$SH$19),$C$19:$SH$19<>"")),"") ->  | RW28: =IF(RW34<>"",AVERAGEA(_xlfn._xlws.FILTER(($C$19:$SH$19),$C$19:$SH$19<>"")),"") ->  | RX28: =IF(RX34<>"",AVERAGEA(_xlfn._xlws.FILTER(($C$19:$SH$19),$C$19:$SH$19<>"")),"") ->  | RY28: =IF(RY34<>"",AVERAGEA(_xlfn._xlws.FILTER(($C$19:$SH$19),$C$19:$SH$19<>"")),"") ->  | RZ28: =IF(RZ34<>"",AVERAGEA(_xlfn._xlws.FILTER(($C$19:$SH$19),$C$19:$SH$19<>"")),"") ->  | SA28: =IF(SA34<>"",AVERAGEA(_xlfn._xlws.FILTER(($C$19:$SH$19),$C$19:$SH$19<>"")),"") ->  | SB28: =IF(SB34<>"",AVERAGEA(_xlfn._xlws.FILTER(($C$19:$SH$19),$C$19:$SH$19<>"")),"") ->  | SC28: =IF(SC34<>"",AVERAGEA(_xlfn._xlws.FILTER(($C$19:$SH$19),$C$19:$SH$19<>"")),"") ->  | SD28: =IF(SD34<>"",AVERAGEA(_xlfn._xlws.FILTER(($C$19:$SH$19),$C$19:$SH$19<>"")),"") ->  | SE28: =IF(SE34<>"",AVERAGEA(_xlfn._xlws.FILTER(($C$19:$SH$19),$C$19:$SH$19<>"")),"") ->  | SF28: =IF(SF34<>"",AVERAGEA(_xlfn._xlws.FILTER(($C$19:$SH$19),$C$19:$SH$19<>"")),"") ->  | SG28: =IF(SG34<>"",AVERAGEA(_xlfn._xlws.FILTER(($C$19:$SH$19),$C$19:$SH$19<>"")),"") ->  | SH28: =IF(SH34<>"",AVERAGEA(_xlfn._xlws.FILTER(($C$19:$SH$19),$C$19:$SH$19<>"")),"") -> 
A29: PFAS ab Datum: | B29: 2021-09-29
A31: Messstelle | B31: Freundlinger
A33: ErgPFAS20 | C33: PN_Datum | D33: Protokollnr
C34: 2019-02-06 | D34: 2019-04-15 | E34: 2019-08-07 | F34: 2019-12-18 | G34: 2020-01-27 | H34: 2020-04-29 | I34: 2020-07-30 | J34: 2020-11-03 | K34: 2021-01-26 | L34: 2021-04-15 | M34: 2021-05-27 | N34: 2021-09-29 | O34: 2021-12-16
A35: Titel | B35: Einheit | C35: 00563/19 | D35: 02322/19 | E35: 06111/19 | F35: 10446/19 | G35: 00424/20 | H35: 02134/20 | I35: 05762/20 | J35: 09289/20 | K35: 00362/21 | L35: 02428/21 | M35: 04150/21 | N35: 09099/21 | O35: 12148/21
A36: Perfluorbutansäure (PFBA) | B36: µg/l | C36: 0,02 | D36: 0,02 | E36: 0,02 | F36: 0,02 | G36: 0,02 | H36: 0,01 | I36: 0,02 | J36: 0,02 | K36: 0,02 | L36: 0,017 | M36: < 0,02 | N36: 0,01 | O36: 0,02
A37: Perfluorbutansulfonsäure (PFBS) | B37: µg/l | C37: 0,03 | D37: 0,03 | E37: 0,02 | F37: 0,02 | G37: 0,02 | H37: 0,01 | I37: 0,01 | J37: 0,01 | K37: 0,01 | L37: 0,011 | M37: < 0,01 | N37: 0,01 | O37: 0,01
A38: Perfluordecansäure (PFDA) | B38: µg/l | C38: < 0,01 | D38: < 0,01 | E38: < 0,01 | F38: < 0,01 | G38: < 0,01 | H38: < 0,01 | I38: < 0,01 | J38: < 0,01 | K38: < 0,01 | L38: < 0,01 | M38: < 0,01 | N38: < 0,01 | O38: < 0,01
A39: Perfluordecansulfonsäure (PFDS) | B39: µg/l | L39: < 0,01 | M39: < 0,01 | N39: < 0,01 | O39: < 0,5
A40: Perfluordodecansäure (PFDoA) | B40: µg/l | L40: < 0,01 | M40: < 0,01
A41: Perfluordodecansäure (PFDoDA) | B41: µg/l | N41: < 0,01 | O41: < 0,01
A42: Perfluordodecansulfonsäure (PFDoDS) | B42: µg/l | N42: < 0,05 | O42: < 0,5
A43: Perfluorheptansäure (PFHpA) | B43: µg/l | C43: 0,02 | D43: 0,02 | E43: 0,02 | F43: 0,02 | G43: 0,02 | H43: 0,02 | I43: 0,02 | J43: 0,02 | K43: 0,02 | L43: 0,014 | M43: 0,012 | N43: 0,02 | O43: 0,01
A44: Perfluorheptansulfonsäure (PFHpS) | B44: µg/l | L44: 0,015 | M44: < 0,01 | N44: 0,01 | O44: 0,01
A45: Perfluorhexansäure (PFHxA) | B45: µg/l | C45: 0,06 | D45: 0,06 | E45: 0,06 | F45: 0,05 | G45: 0,05 | H45: 0,04 | I45: 0,06 | J45: 0,07 | K45: 0,04 | L45: 0,036 | M45: 0,017 | N45: 0,03 | O45: 0,03
A46: Perfluorhexansulfonsäure (PFHxS) | B46: µg/l | C46: 0,20 | D46: 0,19 | E46: 0,20 | F46: 0,17 | G46: 0,16 | H46: 0,15 | I46: 0,18 | J46: 0,18 | K46: 0,14 | L46: 0,13 | M46: 0,087 | N46: 0,16 | O46: 0,15
A47: Perfluornonansäure (PFNA) | B47: µg/l | C47: 0,06 | D47: 0,06 | E47: 0,05 | F47: 0,04 | G47: 0,04 | H47: 0,04 | I47: 0,05 | J47: 0,05 | K47: 0,04 | L47: 0,038 | M47: 0,022 | N47: 0,04 | O47: 0,04
A48: Perfluornonansulfonsäure (PFNS) | B48: µg/l | N48: 0,02 | O48: < 0,05
A49: Perfluoroctansäure (PFOA) | B49: µg/l | C49: 0,03 | D49: 0,04 | E49: 0,03 | F49: 0,03 | G49: 0,03 | H49: 0,03 | I49: 0,03 | J49: 0,04 | K49: 0,03 | L49: 0,025 | M49: 0,017 | N49: 0,03 | O49: 0,02
A50: Perfluoroctansulfonsäure (PFOS) | B50: µg/l | C50: 0,85 | D50: 1,00 | E50: 1,0 | F50: 0,83 | G50: 0,97 | H50: 0,81 | I50: 0,63 | J50: 0,67 | K50: 0,61 | L50: 0,85 | M50: 0,51 | N50: 0,68 | O50: 0,50
A51: Perfluorpentansäure (PFPeA) | B51: µg/l | C51: 0,04 | D51: 0,05 | E51: 0,04 | F51: 0,03 | G51: 0,03 | H51: 0,03 | I51: 0,04 | J51: 0,05 | K51: 0,03 | L51: 0,027 | M51: < 0,05 | N51: 0,03 | O51: 0,02
A52: Perfluorpentansulfonsäure (PFPeS) | B52: µg/l | N52: 0,02 | O52: 0,02
A53: Perfluortridecansäure (PFTrDA) | B53: µg/l | N53: < 0,05 | O53: < 0,5
A54: Perfluortridecansulfonsäure (PFTrDS) | B54: µg/l | N54: < 0,05 | O54: < 0,5
A55: Perfluorundecansäure (PFUnA) | B55: µg/l | L55: 0,015 | M55: < 0,01
A56: Perfluorundecansäure (PFUnDA) | B56: µg/l | N56: 0,02 | O56: < 0,02
A57: Perfluorundecansulfonsäure (PFUnDS) | B57: µg/l | N57: < 0,05 | O57: < 0,5
